Workbook

Sheet Main
O1: =EOMONTH(ValueDate,-1) -> 42947 | P1: =EOMONTH(ValueDate,-MONTH(ValueDate)) -> 42735
C2: Calculate ROI
B5: * Step 1: Connect to the server
B11: * Step 2: Select or Key in parameters
B13: Fund Group Code: | C13: ALLFUNDS
B15: Value Date: | C15: 2017-08-31
B17: * Step 3: Calculate ROI

Sheet InPVROI (hidden)
C1: 1
A2: Row Labels | B2: Asset Class | C2: Max of WorkingDay | G2: Row Labels | H2: Max of WorkingDay
A3: CASH | B3: ALL | C3: 31 | G3: ALL | H3: 31
A4: CASH | B4: NULL | C4: 31 | G4: NULL | H4: 31
A5: CASH | B5: CSH | C5: 31 | G5: CSH | H5: 31
A6: CASH | B6: EQT | C6: 31 | G6: EQT | H6: 31
A7: CASH | B7: BND | C7: 31 | G7: BND | H7: 31
A8: CORE | B8: ALL | C8: 31 | G8: FMM | H8: 31
A9: CORE | B9: NULL | C9: 31 | G9: CPR | H9: 31
A10: CORE | B10: EQT | C10: 31 | G10: FEQ | H10: 31
A11: DIVIDEND | B11: ALL | C11: 31
A12: DIVIDEND | B12: NULL | C12: 31
A13: DIVIDEND | B13: EQT | C13: 31
A14: DSRA | B14: ALL | C14: 31
A15: DSRA | B15: NULL | C15: 31
A16: DSRA | B16: CSH | C16: 31
A17: FUND | B17: ALL | C17: 31
A18: FUND | B18: NULL | C18: 31
A19: FUND | B19: FMM | C19: 31
A20: FUND | B20: FEQ | C20: 31
A21: GROWTH | B21: ALL | C21: 31
A22: GROWTH | B22: NULL | C22: 31
A23: GROWTH | B23: EQT | C23: 31
A24: INDEX | B24: ALL | C24: 31
A25: INDEX | B25: NULL | C25: 31
A26: INDEX | B26: EQT | C26: 31
A27: OPR | B27: ALL | C27: 31
A28: OPR | B28: NULL | C28: 31
A29: REITS | B29: ALL | C29: 31
A30: REITS | B30: NULL | C30: 31
A31: REITS | B31: EQT | C31: 31
A32: SMALLMIDCAP | B32: ALL | C32: 31
A33: SMALLMIDCAP | B33: NULL | C33: 31
A34: SMALLMIDCAP | B34: EQT | C34: 31
A35: STFI | B35: ALL | C35: 31
A36: STFI | B36: NULL | C36: 31
A37: STFI | B37: CPR | C37: 31
A38: TRA | B38: ALL | C38: 31
A39: TRA | B39: NULL | C39: 31
A40: VALUE | B40: ALL | C40: 31
A41: VALUE | B41: NULL | C41: 31
A42: VALUE | B42: EQT | C42: 31

Sheet InDropList (hidden)
A1: ALLFUNDS
A2: CASH
A3: CASH+DSRA
A4: CASH+DSRA+DUMMY
A5: CASH+DSRA+STFI
A6: CORE
A7: DIVIDEND
A8: DSRA
A9: FUND
A10: GROWTH
A11: INDEX
A12: OPR
A13: REITS
A14: SMALLMIDCAP
A15: STFI
A16: TRA
A17: VALUE

Sheet RIP (hidden)
B2: Asset Class ROI
C3: Asset Class
B4: Fund Code | C4: BND | D4: CPR | E4: CSH | F4: EQT | G4: FEQ | H4: FMM | I4: ALL
B5: ALLFUNDS MTD | C5: =IFERROR(SUMIFS(InCalROI!$D:$D,InCalROI!$B:$B,$B5,InCalROI!$J:$J,C$4)/(SUMIFS(InCalROI!$I:$I,InCalROI!$B:$B,$B5,InCalROI!$J:$J,C$4)/SUMIFS(InPVROI!$C:$C,InPVROI!$A:$A,$B5,InPVROI!$B:$B,C$4))/MAX(InCalROI!$G:$G)*365,"") ->  | D5: =IFERROR(SUMIFS(InCalROI!$D:$D,InCalROI!$B:$B,$B5,InCalROI!$J:$J,D$4)/(SUMIFS(InCalROI!$I:$I,InCalROI!$B:$B,$B5,InCalROI!$J:$J,D$4)/SUMIFS(InPVROI!$C:$C,InPVROI!$A:$A,$B5,InPVROI!$B:$B,D$4))/MAX(InCalROI!$G:$G)*365,"") ->  | E5: =IFERROR(SUMIFS(InCalROI!$D:$D,InCalROI!$B:$B,$B5,InCalROI!$J:$J,E$4)/(SUMIFS(InCalROI!$I:$I,InCalROI!$B:$B,$B5,InCalROI!$J:$J,E$4)/SUMIFS(InPVROI!$C:$C,InPVROI!$A:$A,$B5,InPVROI!$B:$B,E$4))/MAX(InCalROI!$G:$G)*365,"") ->  | F5: =IFERROR(SUMIFS(InCalROI!$D:$D,InCalROI!$B:$B,$B5,InCalROI!$J:$J,F$4)/(SUMIFS(InCalROI!$I:$I,InCalROI!$B:$B,$B5,InCalROI!$J:$J,F$4)/SUMIFS(InPVROI!$C:$C,InPVROI!$A:$A,$B5,InPVROI!$B:$B,F$4))/MAX(InCalROI!$G:$G)*365,"") ->  | G5: =IFERROR(SUMIFS(InCalROI!$D:$D,InCalROI!$B:$B,$B5,InCalROI!$J:$J,G$4)/(SUMIFS(InCalROI!$I:$I,InCalROI!$B:$B,$B5,InCalROI!$J:$J,G$4)/SUMIFS(InPVROI!$C:$C,InPVROI!$A:$A,$B5,InPVROI!$B:$B,G$4))/MAX(InCalROI!$G:$G)*365,"") ->  | H5: =IFERROR(SUMIFS(InCalROI!$D:$D,InCalROI!$B:$B,$B5,InCalROI!$J:$J,H$4)/(SUMIFS(InCalROI!$I:$I,InCalROI!$B:$B,$B5,InCalROI!$J:$J,H$4)/SUMIFS(InPVROI!$C:$C,InPVROI!$A:$A,$B5,InPVROI!$B:$B,H$4))/MAX(InCalROI!$G:$G)*365,"") ->  | I5: =SUMIFS(InCalROI!$H:$H,InCalROI!$B:$B,$B5,InCalROI!$J:$J,"ALL")/MAX(InCalROI!$G:$G)*365 -> 0
B6: ALLFUNDS YTD | C6: =IFERROR(SUMIFS(InCalROI!$D:$D,InCalROI!$J:$J,C$4)/(SUMIFS(InCalROI!$I:$I,InCalROI!$J:$J,C$4)/SUMIFS(InPVROI!$H:$H,InPVROI!$G:$G,C$4))/MAX(InCalROI!$G:$G)*365,"") ->  | D6: =IFERROR(SUMIFS(InCalROI!$D:$D,InCalROI!$J:$J,D$4)/(SUMIFS(InCalROI!$I:$I,InCalROI!$J:$J,D$4)/SUMIFS(InPVROI!$H:$H,InPVROI!$G:$G,D$4))/MAX(InCalROI!$G:$G)*365,"") ->  | E6: =IFERROR(SUMIFS(InCalROI!$D:$D,InCalROI!$J:$J,E$4)/(SUMIFS(InCalROI!$I:$I,InCalROI!$J:$J,E$4)/SUMIFS(InPVROI!$H:$H,InPVROI!$G:$G,E$4))/MAX(InCalROI!$G:$G)*365,"") -> 0.004854923249 | F6: =IFERROR(SUMIFS(InCalROI!$D:$D,InCalROI!$J:$J,F$4)/(SUMIFS(InCalROI!$I:$I,InCalROI!$J:$J,F$4)/SUMIFS(InPVROI!$H:$H,InPVROI!$G:$G,F$4))/MAX(InCalROI!$G:$G)*365,"") -> 0.01162189013 | G6: =IFERROR(SUMIFS(InCalROI!$D:$D,InCalROI!$J:$J,G$4)/(SUMIFS(InCalROI!$I:$I,InCalROI!$J:$J,G$4)/SUMIFS(InPVROI!$H:$H,InPVROI!$G:$G,G$4))/MAX(InCalROI!$G:$G)*365,"") -> 0.006117423167 | H6: =IFERROR(SUMIFS(InCalROI!$D:$D,InCalROI!$J:$J,H$4)/(SUMIFS(InCalROI!$I:$I,InCalROI!$J:$J,H$4)/SUMIFS(InPVROI!$H:$H,InPVROI!$G:$G,H$4))/MAX(InCalROI!$G:$G)*365,"") -> 0.007198675314 | I6: =IFERROR((SUMIFS(InCalROI!$D:$D,InCalROI!$J:$J,"<>ALL",InCalROI!$J:$J,"<>NULL"))/(SUMIFS(InCalROI!$I:$I,InCalROI!$J:$J,"<>ALL",InCalROI!$J:$J,"<>NULL")/MAX(InPVROI!$H:$H))/MAX(InCalROI!$G:$G)*365,"") -> 0.009764214264

Sheet ROI Summary
B1: Return on Investment (ROI)
D3: ="MTD - " & TEXT(ValueDate,"dd-MMMM-yyyy") -> MTD - 31-August-2017 | F3: ="YTD - " & TEXT(ValueDate,"dd-MMMM-yyyy") -> YTD - 31-August-2017
D4: RM | E4: RM | F4: RM | G4: RM
B5: Investment (Average) | C5: Listed Equity | D5: =IFERROR((SUMIFS(InCalROI!$E:$E,InCalROI!$J:$J,"EQT",InCalROI!$A:$A,ValueDate)-IF(MONTH(ValueDate)=1,0,SUMIFS(InCalROI!$E:$E,InCalROI!$J:$J,"EQT",InCalROI!$A:$A,LastMonth)))/($E$44),0) -> 5156162161 | F5: =IFERROR(SUMIFS(InCalROI!$E:$E,InCalROI!$J:$J,"EQT",InCalROI!$A:$A,ValueDate)/$G$44,0) -> 4343505347
C6: Unlisted Equity | D6: =IFERROR((SUMIFS(InCalROI!$E:$E,InCalROI!$J:$J,"FEQ",InCalROI!$A:$A,ValueDate)-IF(MONTH(ValueDate)=1,0,SUMIFS(InCalROI!$E:$E,InCalROI!$J:$J,"FEQ",InCalROI!$A:$A,LastMonth)))/($E$44),0) -> 25000000 | E6: =SUM(D5:D6) -> 5181162161 | F6: =IFERROR(SUMIFS(InCalROI!$E:$E,InCalROI!$J:$J,"FEQ",InCalROI!$A:$A,ValueDate)/$G$44,0) -> 20127572.02 | G6: =SUM(F5:F6) -> 4363632919
C8: Money Market | D8: =IFERROR((SUMIFS(InCalROI!$E:$E,InCalROI!$J:$J,"CSH",InCalROI!$A:$A,ValueDate)-IF(MONTH(ValueDate)=1,0,SUMIFS(InCalROI!$E:$E,InCalROI!$J:$J,"CSH",InCalROI!$A:$A,LastMonth)))/($E$44),0) -> 1150431226 | F8: =IFERROR(SUMIFS(InCalROI!$E:$E,InCalROI!$J:$J,"CSH",InCalROI!$A:$A,ValueDate)/$G$44,0) -> 1542923147
C9: STFI | D9: =IFERROR((SUMIFS(InCalROI!$E:$E,InCalROI!$J:$J,"CPR",InCalROI!$A:$A,ValueDate)-IF(MONTH(ValueDate)=1,0,SUMIFS(InCalROI!$E:$E,InCalROI!$J:$J,"CPR",InCalROI!$A:$A,LastMonth)))/($E$45),0) -> 0 | F9: =IFERROR(SUMIFS(InCalROI!$E:$E,InCalROI!$J:$J,"CPR",InCalROI!$A:$A,ValueDate)/$G$45,0) -> 0
C10: FUND - ISMMF | D10: =IFERROR((SUMIFS(InCalROI!$E:$E,InCalROI!$J:$J,"FMM",InCalROI!$A:$A,ValueDate)-IF(MONTH(ValueDate)=1,0,SUMIFS(InCalROI!$E:$E,InCalROI!$J:$J,"FMM",InCalROI!$A:$A,LastMonth)))/($E$46),0) -> 0 | E10: =SUM(D8:D10) -> 1150431226 | F10: =IFERROR(SUMIFS(InCalROI!$E:$E,InCalROI!$J:$J,"FMM",InCalROI!$A:$A,ValueDate)/$G$46,0) -> 2697264.96 | G10: =SUM(F8:F10) -> 1545620412
C12: Total Investment (Average) | E12: =SUM(E6:E10) -> 6331593387 | G12: =SUM(G6:G10) -> 5909253331
B14: Investment Income | C14: Equity:
C15: Dividend Income | D15: =-(SUMIFS(InTBYTD!$F:$F,InTBYTD!$A:$A,ValueDate,InTBYTD!$I:$I,"PRDIVI",InTBYTD!$J:$J,"PRDVTE",InTBYTD!$N:$N,"EQT")+SUMIFS(InTBYTD!$F:$F,InTBYTD!$A:$A,ValueDate,InTBYTD!$I:$I,"PRDIVI",InTBYTD!$J:$J,"PRDVTA",InTBYTD!$N:$N,"EQT"))-IF(MONTH(ValueDate)=1,0,-(SUMIFS(InTBYTD!$F:$F,InTBYTD!$A:$A,EOMONTH(ValueDate,-1),InTBYTD!$I:$I,"PRDIVI",InTBYTD!$J:$J,"PRDVTE",InTBYTD!$N:$N,"EQT")+SUMIFS(InTBYTD!$F:$F,InTBYTD!$A:$A,EOMONTH(ValueDate,-1),InTBYTD!$I:$I,"PRDIVI",InTBYTD!$J:$J,"PRDVTA",InTBYTD!$N:$N,"EQT"))) -> 28840580.03 | F15: =-(SUMIFS(InTBYTD!$F:$F,InTBYTD!$A:$A,ValueDate,InTBYTD!$I:$I,"PRDIVI",InTBYTD!$J:$J,"PRDVTE",InTBYTD!$N:$N,"EQT")+SUMIFS(InTBYTD!$F:$F,InTBYTD!$A:$A,ValueDate,InTBYTD!$I:$I,"PRDIVI",InTBYTD!$J:$J,"PRDVTA",InTBYTD!$N:$N,"EQT")) -> 126632413
C16: Capital Gain | D16: =-SUMIFS(InTBYTD!$F:$F,InTBYTD!$A:$A,ValueDate,InTBYTD!$M:$M,"RG",InTBYTD!$N:$N,"EQT")-IF(MONTH(ValueDate)=1,0,-SUMIFS(InTBYTD!$F:$F,InTBYTD!$A:$A,EOMONTH(ValueDate,-1),InTBYTD!$M:$M,"RG",InTBYTD!$N:$N,"EQT")) -> 2768657.64 | F16: =-SUMIFS(InTBYTD!$F:$F,InTBYTD!$A:$A,ValueDate,InTBYTD!$M:$M,"RG",InTBYTD!$N:$N,"EQT") -> 124693775
C17: Security Borrowing & Lending Fee | D17: =SUMIFS(SBLSummary!N:N,SBLSummary!O:O,MONTH(ValueDate)) -> 3283.19 | E17: =SUM(D15:D17) -> 31612520.86 | F17: =SUM(SBLSummary!N:N) -> 3289.67 | G17: =SUM(F15:F17) -> 251329477.6
C19: Unlisted Equity:
C20: Income - Unlisted Equity | D20: =SUMIFS(InCalROI!D:D,InCalROI!J:J,"FEQ",InCalROI!$A:$A,ValueDate)-IF(MONTH(ValueDate)=1,0,SUMIFS(InCalROI!D:D,InCalROI!J:J,"FEQ",InCalROI!$A:$A,LastMonth)) -> 0 | E20: =D20 -> 0 | F20: =SUMIFS(InCalROI!D:D,InCalROI!J:J,"FEQ",InCalROI!$A:$A,ValueDate) -> 600000 | G20: =F20 -> 600000
C22: Money Market:
C23: Interest Income - Money Market | D23: =SUMIFS(InCalROI!D:D,InCalROI!J:J,"CSH",InCalROI!$A:$A,ValueDate)-IF(MONTH(ValueDate)=1,0,SUMIFS(InCalROI!D:D,InCalROI!J:J,"CSH",InCalROI!$A:$A,LastMonth)) -> 3632204.13 | F23: =SUMIFS(InCalROI!D:D,InCalROI!J:J,"CSH",InCalROI!$A:$A,ValueDate) -> 38974107.62
C24: Interest Income - STFI | D24: =SUMIFS(InCalROI!D:D,InCalROI!J:J,"CPR",InCalROI!$A:$A,ValueDate)-IF(MONTH(ValueDate)=1,0,SUMIFS(InCalROI!D:D,InCalROI!J:J,"CPR",InCalROI!$A:$A,LastMonth)) -> 0 | F24: =SUMIFS(InCalROI!D:D,InCalROI!J:J,"CPR",InCalROI!$A:$A,ValueDate) -> 0
C25: Income - FUND ISMMF | D25: =SUMIFS(InCalROI!D:D,InCalROI!J:J,"FMM",InCalROI!$A:$A,ValueDate)-IF(MONTH(ValueDate)=1,0,SUMIFS(InCalROI!D:D,InCalROI!J:J,"FMM",InCalROI!$A:$A,LastMonth)) -> 0 | E25: =SUM(D23:D25) -> 3632204.13 | F25: =SUMIFS(InCalROI!D:D,InCalROI!J:J,"FMM",InCalROI!$A:$A,ValueDate) -> 101329.1 | G25: =SUM(F23:F25) -> 39075436.72
C27: Total Investment Income | E27: =SUM(E17,E20,E25) -> 35244724.99 | G27: =SUM(G17,G20,G25) -> 291004914.3
B29: Income - Revenue | C29: SLA & GSSA - VCAM | D29: =SUMIFS(Historical!$B:$B,Historical!A:A,ValueDate) -> 318049.25 | F29: =SUMIFS(Historical!$B:$B,Historical!A:A,">"&EOMONTH(ValueDate,-MONTH(ValueDate)),Historical!A:A,"<="&ValueDate) -> 2544394
C30: SLA - iVCAP | D30: =SUMIFS(Historical!$C:$C,Historical!A:A,ValueDate) -> 158561.67 | E30: =SUM(D29:D30) -> 476610.92 | F30: =SUMIFS(Historical!$C:$C,Historical!A:A,">"&EOMONTH(ValueDate,-MONTH(ValueDate)),Historical!A:A,"<="&ValueDate) -> 1290806.84 | G30: =SUM(F29:F30) -> 3835200.84
C32: Total Income | E32: =E27+E30 -> 35721335.91 | G32: =G27+G30 -> 294840115.2
B34: Expense | C34: Financing Cost | D34: =SUMIFS(Historical!$D:$D,Historical!A:A,ValueDate) -> -22028684.94 | F34: =SUMIFS(Historical!$D:$D,Historical!A:A,">"&EOMONTH(ValueDate,-MONTH(ValueDate)),Historical!A:A,"<="&ValueDate) -> -161847726.1
C35: Loss/ Gain on Disposal of Asset | D35: =SUMIFS(Historical!$E:$E,Historical!A:A,ValueDate) -> 0 | F35: =SUMIFS(Historical!$E:$E,Historical!A:A,">"&EOMONTH(ValueDate,-MONTH(ValueDate)),Historical!A:A,"<="&ValueDate) -> 0
C36: Prov for Unrealised Loss | D36: =SUMIFS(Historical!$F:$F,Historical!A:A,ValueDate) -> 0 | F36: =SUMIFS(Historical!$F:$F,Historical!A:A,">"&EOMONTH(ValueDate,-MONTH(ValueDate)),Historical!A:A,"<="&ValueDate) -> 0
C37: Diminution in value of available-for-sale financial assets | D37: =SUMIFS(Historical!$G:$G,Historical!A:A,ValueDate) -> 0 | F37: =SUMIFS(Historical!$G:$G,Historical!A:A,">"&EOMONTH(ValueDate,-MONTH(ValueDate)),Historical!A:A,"<="&ValueDate) -> 0
C38: G & A | D38: =SUMIFS(Historical!$H:$H,Historical!A:A,ValueDate) -> -2439988.92 | E38: =SUM(D34:D38) -> -24468673.86 | F38: =SUMIFS(Historical!$H:$H,Historical!A:A,">"&EOMONTH(ValueDate,-MONTH(ValueDate)),Historical!A:A,"<="&ValueDate) -> -16974443.16 | G38: =SUM(F34:F38) -> -178822169.2
C40: Profit before tax | E40: =E32+E38 -> 11252662.05 | G40: =G32+G38 -> 116017945.9
C41: Tax Expense | E41: =SUMIFS(Historical!$I:$I,Historical!A:A,ValueDate) -> 0 | G41: =SUMIFS(Historical!$I:$I,Historical!A:A,">"&EOMONTH(ValueDate,-MONTH(ValueDate)),Historical!A:A,"<="&ValueDate) -> 0
C42: Net Profit | E42: =E40+E41 -> 11252662.05 | G42: =G40+G41 -> 116017945.9
C44: No. of days (Total) | E44: =MAX(InCalROI!$K:$K)-IF(MONTH(ValueDate)=1,0,MAX(InCalROI!$L:$L)) -> 31 | G44: =MAX(InCalROI!$K:$K) -> 243
C45: No. of days (STFI) | E45: =SUMIFS(InCalROI!$G:$G,InCalROI!$B:$B,"STFI",InCalROI!$C:$C,"ALL",InCalROI!$A:$A,ValueDate)-IF(MONTH(ValueDate)=1,0,SUMIFS(InCalROI!$G:$G,InCalROI!$B:$B,"STFI",InCalROI!$C:$C,"ALL",InCalROI!$A:$A,LastMonth)) -> 0 | G45: =SUMIFS(InCalROI!$G:$G,InCalROI!$B:$B,"STFI",InCalROI!$C:$C,"ALL",InCalROI!$A:$A,ValueDate) -> 0
C46: No. of days (FUND) | E46: =SUMIFS(InCalROI!$G:$G,InCalROI!$B:$B,"FUND",InCalROI!$C:$C,"ALL",InCalROI!$A:$A,ValueDate)-IF(MONTH(ValueDate)=1,0,SUMIFS(InCalROI!$G:$G,InCalROI!$B:$B,"FUND",InCalROI!$C:$C,"ALL",InCalROI!$A:$A,LastMonth)) -> 31 | G46: =SUMIFS(InCalROI!$G:$G,InCalROI!$B:$B,"FUND",InCalROI!$C:$C,"ALL",InCalROI!$A:$A,ValueDate) -> 243
B49: Gross | C49: ROI - Listed Equity | E49: =IFERROR((E17/D5)/(E44)*365,0) -> 0.07218778764 | G49: =IFERROR((G17/F5)/(G44)*365,0) -> 0.08691398423
C50: ROI - Unlisted Equity | E50: =IFERROR((E20/D6)/(E44)*365,0) -> 0 | G50: =IFERROR((G20/F6)/(G44)*365,0) -> 0.0447761194
C51: ROI - Total Equity | E51: =IFERROR((SUM(E17,E20)/E6)/(E44)*365,0) -> 0.07183946913 | G51: =IFERROR((SUM(G17,G20)/G6)/(G44)*365,0) -> 0.08671962029
C52: ROI - Money Market | E52: =IFERROR((D23/D8)/(E46)*365,0) -> 0.03717412521 | G52: =IFERROR((F23/F8)/(G46)*365,0) -> 0.03794184771
C53: ROI - FUND ISMMF | E53: =IFERROR((D25/D10)/(E46)*365,0) -> 0 | G53: =IFERROR((F25/F10)/(G46)*365,0) -> 0.05642832585
C54: ROI - STFI | E54: =IFERROR((D24/D9)/(E45)*365,0) -> 0 | G54: =IFERROR((F24/F9)/(G45)*365,0) -> 0
C55: ROI - Total Money Market Fund | E55: =IFERROR((E25/E10)/(E46)*365,0) -> 0.03717412521 | G55: =IFERROR((G25/G10)/(G46)*365,0) -> 0.03797410849
C56: ROI - TOTAL INVESTMENT | E56: =IFERROR((E27/E12)/(E44)*365,0) -> 0.06554088177 | G56: =IFERROR((G27/G12)/(G44)*365,0) -> 0.07396977631
C57: ROI - TOTAL REVENUE | E57: =IFERROR((E32/E12)/(E44)*365,0) -> 0.06642718461 | G57: =IFERROR((G32/G12)/(G44)*365,0) -> 0.07494463595
C58: ROCE | E58: =IFERROR((E32/D73)/(E44)*365,0) -> 0.06858584963 | G58: =IFERROR((G32/D74)/(G44)*365,0) -> 0.07922167674
C59: ROE | E59: =IFERROR((E32/G73)/(E44)*365,0) -> 4.209502583 | G59: =IFERROR((G32/G74)/(G44)*365,0) -> 5.973322882
B61: Net | C61: ROI | E61: =IFERROR((E40/E12)/(E44)*365,0) -> 0.02092538368 | G61: =IFERROR((G42/G12)/(G44)*365,0) -> 0.02949029754
C62: ROCE | E62: =IFERROR((E40/D73)/(E44)*365,0) -> 0.02160538982 | G62: =IFERROR((G42/D74)/(G44)*365,0) -> 0.03117328931
C63: ROE | E63: =IFERROR((E40/G73)/(E44)*365,0) -> 1.32604531 | G63: =IFERROR((G42/G74)/(G44)*365,0) -> 2.350469341
C65: NTA | G65: =IFERROR(G71/50000000,0) -> 1.716740896
C66: RNAV | G66: =IFERROR(G71/50000000,0) -> 1.716740896
C69: Total Capital Employed | F69: Shareholders' Equity
C70: =EOMONTH(ValueDate,-MONTH(ValueDate))+1 -> 2017-01-01 | D70: =SUMIFS(Historical!$J:$J,Historical!A:A,EOMONTH(ValueDate,-MONTH(ValueDate))) -> 5066195646 | F70: =EOMONTH(ValueDate,-MONTH(ValueDate))+1 -> 2017-01-01 | G70: =SUMIFS(Historical!$K:$K,Historical!A:A,EOMONTH(ValueDate,-MONTH(ValueDate))) -> 62444522.53
C71: =EOMONTH(ValueDate,0) -> 2017-08-31 | D71: =SUMIFS(Historical!$J:$J,Historical!A:A,EOMONTH(ValueDate,0)) -> 6114250360 | F71: =EOMONTH(ValueDate,0) -> 2017-08-31 | G71: =SUMIFS(Historical!$K:$K,Historical!A:A,EOMONTH(ValueDate,0)) -> 85837044.82
C72: =EOMONTH(ValueDate,-1) -> 2017-07-31 | D72: =SUMIFS(Historical!$J:$J,Historical!A:A,EOMONTH(ValueDate,-1)) -> 6150376384 | F72: =EOMONTH(ValueDate,-1) -> 2017-07-31 | G72: =SUMIFS(Historical!$K:$K,Historical!A:A,EOMONTH(ValueDate,-1)) -> 113991754.2
C73: ="Average Cap. Employed (" & TEXT(ValueDate,"mmm-yy") & ")" -> Average Cap. Employed (Aug-17) | D73: =SUM(D71:D72)/2 -> 6132313372 | F73: ="Average Cap. Employed (" & TEXT(ValueDate,"mmm-yy") & ")" -> Average Cap. Employed (Aug-17) | G73: =SUM(G71:G72)/2 -> 99914399.51
C74: Average Cap. Employed (YTD) | D74: =SUM(D70:D71)/2 -> 5590223003 | F74: Average (YTD) | G74: =SUM(G70:G71)/2 -> 74140783.67

Sheet ROI Summary Qtr
B1: Return on Investment (ROI)
D3: 1st Quarter | F3: 2nd Quarter | H3: 3rd Quarter | J3: 4th Quarter
D4: RM | E4: RM | F4: RM | G4: RM | H4: RM | I4: RM | J4: RM | K4: RM
B5: Investment (Average) | C5: Listed Equity | D5: =IFERROR((SUMIFS(InCalROI!$E:$E,InCalROI!$J:$J,"EQT",InCalROI!$A:$A,IF(MONTH(ValueDate)>3,EOMONTH(LastYear,3),ValueDate)))/($E$44),0) -> 3821683187 | F5: =IFERROR((SUMIFS(InCalROI!$E:$E,InCalROI!$J:$J,"EQT",InCalROI!$A:$A,IF(MONTH(ValueDate)>6,EOMONTH(LastYear,6),ValueDate))-SUMIFS(InCalROI!$E:$E,InCalROI!$J:$J,"EQT",InCalROI!$A:$A,EOMONTH(LastYear,3)))/(G$44),0) -> 4354465170 | H5: =IFERROR((SUMIFS(InCalROI!$E:$E,InCalROI!$J:$J,"EQT",InCalROI!$A:$A,IF(MONTH(ValueDate)>9,EOMONTH(LastYear,9),ValueDate))-SUMIFS(InCalROI!$E:$E,InCalROI!$J:$J,"EQT",InCalROI!$A:$A,EOMONTH(LastYear,6)))/(I$44),0) -> 5084902935 | J5: =IFERROR((SUMIFS(InCalROI!$E:$E,InCalROI!$J:$J,"EQT",InCalROI!$A:$A,IF(MONTH(ValueDate)>12,EOMONTH(LastYear,12),ValueDate))-SUMIFS(InCalROI!$E:$E,InCalROI!$J:$J,"EQT",InCalROI!$A:$A,EOMONTH(LastYear,9)))/(K$44),0) -> 4343505347
C6: Unlisted Equity | D6: =IFERROR((SUMIFS(InCalROI!$E:$E,InCalROI!$J:$J,"FEQ",InCalROI!$A:$A,IF(MONTH(ValueDate)>3,EOMONTH(LastYear,3),ValueDate)))/($E$44),0) -> 15033333.33 | E6: =SUM(D5:D6) -> 3836716520 | F6: =IFERROR((SUMIFS(InCalROI!$E:$E,InCalROI!$J:$J,"FEQ",InCalROI!$A:$A,IF(MONTH(ValueDate)>6,EOMONTH(LastYear,6),ValueDate))-SUMIFS(InCalROI!$E:$E,InCalROI!$J:$J,"FEQ",InCalROI!$A:$A,EOMONTH(LastYear,3)))/(G$44),0) -> 21846153.85 | G6: =SUM(F5:F6) -> 4376311324 | H6: =IFERROR((SUMIFS(InCalROI!$E:$E,InCalROI!$J:$J,"FEQ",InCalROI!$A:$A,IF(MONTH(ValueDate)>9,EOMONTH(LastYear,9),ValueDate))-SUMIFS(InCalROI!$E:$E,InCalROI!$J:$J,"FEQ",InCalROI!$A:$A,EOMONTH(LastYear,6)))/(I$44),0) -> 25000000 | I6: =SUM(H5:H6) -> 5109902935 | J6: =IFERROR((SUMIFS(InCalROI!$E:$E,InCalROI!$J:$J,"FEQ",InCalROI!$A:$A,IF(MONTH(ValueDate)>12,EOMONTH(LastYear,12),ValueDate))-SUMIFS(InCalROI!$E:$E,InCalROI!$J:$J,"FEQ",InCalROI!$A:$A,EOMONTH(LastYear,9)))/(K$44),0) -> 20127572.02 | K6: =SUM(J5:J6) -> 4363632919
C8: Money Market | D8: =IFERROR((SUMIFS(InCalROI!$E:$E,InCalROI!$J:$J,"CSH",InCalROI!$A:$A,IF(MONTH(ValueDate)>3,EOMONTH(LastYear,3),ValueDate)))/($E$44),0) -> 1365579136 | F8: =IFERROR((SUMIFS(InCalROI!$E:$E,InCalROI!$J:$J,"CSH",InCalROI!$A:$A,IF(MONTH(ValueDate)>6,EOMONTH(LastYear,6),ValueDate))-SUMIFS(InCalROI!$E:$E,InCalROI!$J:$J,"CSH",InCalROI!$A:$A,EOMONTH(LastYear,3)))/(G$44),0) -> 1945332434 | H8: =IFERROR((SUMIFS(InCalROI!$E:$E,InCalROI!$J:$J,"CSH",InCalROI!$A:$A,IF(MONTH(ValueDate)>9,EOMONTH(LastYear,9),ValueDate))-SUMIFS(InCalROI!$E:$E,InCalROI!$J:$J,"CSH",InCalROI!$A:$A,EOMONTH(LastYear,6)))/(I$44),0) -> 1209725016 | J8: =IFERROR((SUMIFS(InCalROI!$E:$E,InCalROI!$J:$J,"CSH",InCalROI!$A:$A,IF(MONTH(ValueDate)>12,EOMONTH(LastYear,12),ValueDate))-SUMIFS(InCalROI!$E:$E,InCalROI!$J:$J,"CSH",InCalROI!$A:$A,EOMONTH(LastYear,9)))/(K$44),0) -> 1542923147
C9: STFI | D9: =IFERROR((SUMIFS(InCalROI!$E:$E,InCalROI!$J:$J,"CPR",InCalROI!$A:$A,IF(MONTH(ValueDate)>3,EOMONTH(LastYear,3),ValueDate)))/($E$45),0) -> 0 | F9: =IFERROR((SUMIFS(InCalROI!$E:$E,InCalROI!$J:$J,"CPR",InCalROI!$A:$A,IF(MONTH(ValueDate)>6,EOMONTH(LastYear,6),ValueDate))-SUMIFS(InCalROI!$E:$E,InCalROI!$J:$J,"CPR",InCalROI!$A:$A,EOMONTH(LastYear,3)))/(G$45),0) -> 0 | H9: =IFERROR((SUMIFS(InCalROI!$E:$E,InCalROI!$J:$J,"CPR",InCalROI!$A:$A,IF(MONTH(ValueDate)>9,EOMONTH(LastYear,9),ValueDate))-SUMIFS(InCalROI!$E:$E,InCalROI!$J:$J,"CPR",InCalROI!$A:$A,EOMONTH(LastYear,6)))/(I$45),0) -> 0 | J9: =IFERROR((SUMIFS(InCalROI!$E:$E,InCalROI!$J:$J,"CPR",InCalROI!$A:$A,IF(MONTH(ValueDate)>12,EOMONTH(LastYear,12),ValueDate))-SUMIFS(InCalROI!$E:$E,InCalROI!$J:$J,"CPR",InCalROI!$A:$A,EOMONTH(LastYear,9)))/(K$45),0) -> 0
C10: FUND - ISMMF | D10: =IFERROR((SUMIFS(InCalROI!$E:$E,InCalROI!$J:$J,"FMM",InCalROI!$A:$A,IF(MONTH(ValueDate)>3,EOMONTH(LastYear,3),ValueDate)))/($E$46),0) -> 7282615.393 | E10: =SUM(D8:D10) -> 1372861751 | F10: =IFERROR((SUMIFS(InCalROI!$E:$E,InCalROI!$J:$J,"FMM",InCalROI!$A:$A,IF(MONTH(ValueDate)>6,EOMONTH(LastYear,6),ValueDate))-SUMIFS(InCalROI!$E:$E,InCalROI!$J:$J,"FMM",InCalROI!$A:$A,EOMONTH(LastYear,3)))/(G$46),0) -> 0 | G10: =SUM(F8:F10) -> 1945332434 | H10: =IFERROR((SUMIFS(InCalROI!$E:$E,InCalROI!$J:$J,"FMM",InCalROI!$A:$A,IF(MONTH(ValueDate)>9,EOMONTH(LastYear,9),ValueDate))-SUMIFS(InCalROI!$E:$E,InCalROI!$J:$J,"FMM",InCalROI!$A:$A,EOMONTH(LastYear,6)))/(I$46),0) -> 0 | I10: =SUM(H8:H10) -> 1209725016 | J10: =IFERROR((SUMIFS(InCalROI!$E:$E,InCalROI!$J:$J,"FMM",InCalROI!$A:$A,IF(MONTH(ValueDate)>12,EOMONTH(LastYear,12),ValueDate))-SUMIFS(InCalROI!$E:$E,InCalROI!$J:$J,"FMM",InCalROI!$A:$A,EOMONTH(LastYear,9)))/(K$46),0) -> 10571538.47 | K10: =SUM(J8:J10) -> 1553494685
C12: Total Investment (Average) | E12: =SUM(E6:E10) -> 5209578271 | G12: =SUM(G6:G10) -> 6321643758 | I12: =SUM(I6:I10) -> 6319627951 | K12: =SUM(K6:K10) -> 5917127604
B14: Investment Income | C14: Equity:
C15: Dividend Income | D15: =-(SUMIFS(InTBYTD!$F:$F,InTBYTD!$A:$A,IF(MONTH(ValueDate)>3,EOMONTH(LastYear,3),ValueDate),InTBYTD!$I:$I,"PRDIVI",InTBYTD!$J:$J,"PRDVTE",InTBYTD!$N:$N,"EQT")+SUMIFS(InTBYTD!$F:$F,InTBYTD!$A:$A,IF(MONTH(ValueDate)>3,EOMONTH(LastYear,3),ValueDate),InTBYTD!$I:$I,"PRDIVI",InTBYTD!$J:$J,"PRDVTA",InTBYTD!$N:$N,"EQT")) -> 32356530.57 | F15: =-(SUMIFS(InTBYTD!$F:$F,InTBYTD!$A:$A,IF(MONTH(ValueDate)>6,EOMONTH(LastYear,6),ValueDate),InTBYTD!$I:$I,"PRDIVI",InTBYTD!$J:$J,"PRDVTE",InTBYTD!$N:$N,"EQT")+SUMIFS(InTBYTD!$F:$F,InTBYTD!$A:$A,IF(MONTH(ValueDate)>6,EOMONTH(LastYear,6),ValueDate),InTBYTD!$I:$I,"PRDIVI",InTBYTD!$J:$J,"PRDVTA",InTBYTD!$N:$N,"EQT"))-(-(SUMIFS(InTBYTD!$F:$F,InTBYTD!$A:$A,EOMONTH(LastYear,3),InTBYTD!$I:$I,"PRDIVI",InTBYTD!$J:$J,"PRDVTE",InTBYTD!$N:$N,"EQT")+SUMIFS(InTBYTD!$F:$F,InTBYTD!$A:$A,EOMONTH(LastYear,3),InTBYTD!$I:$I,"PRDIVI",InTBYTD!$J:$J,"PRDVTA",InTBYTD!$N:$N,"EQT"))) -> 65183172.38 | H15: =-(SUMIFS(InTBYTD!$F:$F,InTBYTD!$A:$A,IF(MONTH(ValueDate)>9,EOMONTH(LastYear,9),ValueDate),InTBYTD!$I:$I,"PRDIVI",InTBYTD!$J:$J,"PRDVTE",InTBYTD!$N:$N,"EQT")+SUMIFS(InTBYTD!$F:$F,InTBYTD!$A:$A,IF(MONTH(ValueDate)>9,EOMONTH(LastYear,9),ValueDate),InTBYTD!$I:$I,"PRDIVI",InTBYTD!$J:$J,"PRDVTA",InTBYTD!$N:$N,"EQT"))-(-(SUMIFS(InTBYTD!$F:$F,InTBYTD!$A:$A,EOMONTH(LastYear,6),InTBYTD!$I:$I,"PRDIVI",InTBYTD!$J:$J,"PRDVTE",InTBYTD!$N:$N,"EQT")+SUMIFS(InTBYTD!$F:$F,InTBYTD!$A:$A,EOMONTH(LastYear,6),InTBYTD!$I:$I,"PRDIVI",InTBYTD!$J:$J,"PRDVTA",InTBYTD!$N:$N,"EQT"))) -> 29092710.03 | J15: =-(SUMIFS(InTBYTD!$F:$F,InTBYTD!$A:$A,IF(MONTH(ValueDate)>12,EOMONTH(LastYear,12),ValueDate),InTBYTD!$I:$I,"PRDIVI",InTBYTD!$J:$J,"PRDVTE",InTBYTD!$N:$N,"EQT")+SUMIFS(InTBYTD!$F:$F,InTBYTD!$A:$A,IF(MONTH(ValueDate)>12,EOMONTH(LastYear,12),ValueDate),InTBYTD!$I:$I,"PRDIVI",InTBYTD!$J:$J,"PRDVTA",InTBYTD!$N:$N,"EQT"))-(-(SUMIFS(InTBYTD!$F:$F,InTBYTD!$A:$A,EOMONTH(LastYear,9),InTBYTD!$I:$I,"PRDIVI",InTBYTD!$J:$J,"PRDVTE",InTBYTD!$N:$N,"EQT")+SUMIFS(InTBYTD!$F:$F,InTBYTD!$A:$A,EOMONTH(LastYear,9),InTBYTD!$I:$I,"PRDIVI",InTBYTD!$J:$J,"PRDVTA",InTBYTD!$N:$N,"EQT"))) -> 126632413
C16: Capital Gain | D16: =-SUMIFS(InTBYTD!$F:$F,InTBYTD!$A:$A,IF(MONTH(ValueDate)>3,EOMONTH(LastYear,3),ValueDate),InTBYTD!$M:$M,"RG",InTBYTD!$N:$N,"EQT") -> 46311379.37 | F16: =-SUMIFS(InTBYTD!$F:$F,InTBYTD!$A:$A,IF(MONTH(ValueDate)>6,EOMONTH(LastYear,6),ValueDate),InTBYTD!$M:$M,"RG",InTBYTD!$N:$N,"EQT")-(-SUMIFS(InTBYTD!$F:$F,InTBYTD!$A:$A,EOMONTH(LastYear,3),InTBYTD!$M:$M,"RG",InTBYTD!$N:$N,"EQT")) -> 64011148.1 | H16: =-SUMIFS(InTBYTD!$F:$F,InTBYTD!$A:$A,IF(MONTH(ValueDate)>9,EOMONTH(LastYear,9),ValueDate),InTBYTD!$M:$M,"RG",InTBYTD!$N:$N,"EQT")-(-SUMIFS(InTBYTD!$F:$F,InTBYTD!$A:$A,EOMONTH(LastYear,6),InTBYTD!$M:$M,"RG",InTBYTD!$N:$N,"EQT")) -> 14371247.48 | J16: =-SUMIFS(InTBYTD!$F:$F,InTBYTD!$A:$A,IF(MONTH(ValueDate)>12,EOMONTH(LastYear,12),ValueDate),InTBYTD!$M:$M,"RG",InTBYTD!$N:$N,"EQT")-(-SUMIFS(InTBYTD!$F:$F,InTBYTD!$A:$A,EOMONTH(LastYear,9),InTBYTD!$M:$M,"RG",InTBYTD!$N:$N,"EQT")) -> 124693775
C17: Security Borrowing & Lending Fee | D17: =SUMIFS(SBLSummary!$N:$N,SBLSummary!O:O,"<=3") -> 0 | E17: =SUM(D15:D17) -> 78667909.94 | F17: =SUMIFS(SBLSummary!$N:$N,SBLSummary!O:O,"<=6",SBLSummary!O:O,">3") -> 0 | G17: =SUM(F15:F17) -> 129194320.5 | H17: =SUMIFS(SBLSummary!$N:$N,SBLSummary!O:O,"<=9",SBLSummary!O:O,">6") -> 3289.67 | I17: =SUM(H15:H17) -> 43467247.18 | J17: =SUMIFS(SBLSummary!$N:$N,SBLSummary!O:O,"<=12",SBLSummary!O:O,">9") -> 0 | K17: =SUM(J15:J17) -> 251326187.9
C19: Unlisted Equity:
C20: Income - Unlisted Equity | D20: =SUMIFS(InCalROI!$D:$D,InCalROI!$J:$J,"FEQ",InCalROI!$A:$A,IF(MONTH(ValueDate)>3,EOMONTH(LastYear,3),ValueDate)) -> 0 | E20: =D20 -> 0 | F20: =SUMIFS(InCalROI!$D:$D,InCalROI!$J:$J,"FEQ",InCalROI!$A:$A,IF(MONTH(ValueDate)>6,EOMONTH(LastYear,6),ValueDate))-(SUMIFS(InCalROI!$D:$D,InCalROI!$J:$J,"FEQ",InCalROI!$A:$A,EOMONTH(LastYear,3))) -> 600000 | G20: =F20 -> 600000 | H20: =SUMIFS(InCalROI!$D:$D,InCalROI!$J:$J,"FEQ",InCalROI!$A:$A,IF(MONTH(ValueDate)>9,EOMONTH(LastYear,9),ValueDate))-(SUMIFS(InCalROI!$D:$D,InCalROI!$J:$J,"FEQ",InCalROI!$A:$A,EOMONTH(LastYear,6))) -> 0 | I20: =H20 -> 0 | J20: =SUMIFS(InCalROI!$D:$D,InCalROI!$J:$J,"FEQ",InCalROI!$A:$A,IF(MONTH(ValueDate)>12,EOMONTH(LastYear,12),ValueDate))-(SUMIFS(InCalROI!$D:$D,InCalROI!$J:$J,"FEQ",InCalROI!$A:$A,EOMONTH(LastYear,9))) -> 600000 | K20: =J20 -> 600000
C22: Money Market:
C23: Interest Income - Money Market | D23: =SUMIFS(InCalROI!$D:$D,InCalROI!$J:$J,"CSH",InCalROI!$A:$A,IF(MONTH(ValueDate)>3,EOMONTH(LastYear,3),ValueDate)) -> 12962121.29 | F23: =SUMIFS(InCalROI!$D:$D,InCalROI!$J:$J,"CSH",InCalROI!$A:$A,IF(MONTH(ValueDate)>6,EOMONTH(LastYear,6),ValueDate))-(SUMIFS(InCalROI!$D:$D,InCalROI!$J:$J,"CSH",InCalROI!$A:$A,EOMONTH(LastYear,3))) -> 18310624.79 | H23: =SUMIFS(InCalROI!$D:$D,InCalROI!$J:$J,"CSH",InCalROI!$A:$A,IF(MONTH(ValueDate)>9,EOMONTH(LastYear,9),ValueDate))-(SUMIFS(InCalROI!$D:$D,InCalROI!$J:$J,"CSH",InCalROI!$A:$A,EOMONTH(LastYear,6))) -> 7701361.54 | J23: =SUMIFS(InCalROI!$D:$D,InCalROI!$J:$J,"CSH",InCalROI!$A:$A,IF(MONTH(ValueDate)>12,EOMONTH(LastYear,12),ValueDate))-(SUMIFS(InCalROI!$D:$D,InCalROI!$J:$J,"CSH",InCalROI!$A:$A,EOMONTH(Last year,9))) -> 38974107.62
C24: Interest Income - STFI | D24: =SUMIFS(InCalROI!$D:$D,InCalROI!$J:$J,"CPR",InCalROI!$A:$A,IF(MONTH(ValueDate)>3,EOMONTH(LastYear,3),ValueDate)) -> 0 | F24: =SUMIFS(InCalROI!$D:$D,InCalROI!$J:$J,"CPR",InCalROI!$A:$A,IF(MONTH(ValueDate)>6,EOMONTH(LastYear,6),ValueDate))-(SUMIFS(InCalROI!$D:$D,InCalROI!$J:$J,"CPR",InCalROI!$A:$A,EOMONTH(LastYear,3))) -> 0 | H24: =SUMIFS(InCalROI!$D:$D,InCalROI!$J:$J,"CPR",InCalROI!$A:$A,IF(MONTH(ValueDate)>9,EOMONTH(LastYear,9),ValueDate))-(SUMIFS(InCalROI!$D:$D,InCalROI!$J:$J,"CPR",InCalROI!$A:$A,EOMONTH(LastYear,6))) -> 0 | J24: =SUMIFS(InCalROI!$D:$D,InCalROI!$J:$J,"CPR",InCalROI!$A:$A,IF(MONTH(ValueDate)>12,EOMONTH(LastYear,12),ValueDate))-(SUMIFS(InCalROI!$D:$D,InCalROI!$J:$J,"CPR",InCalROI!$A:$A,EOMONTH(LastYear,9))) -> 0
C25: Income - FUND ISMMF | D25: =SUMIFS(InCalROI!$D:$D,InCalROI!$J:$J,"FMM",InCalROI!$A:$A,IF(MONTH(ValueDate)>3,EOMONTH(LastYear,3),ValueDate)) -> 101329.1 | E25: =SUM(D23:D25) -> 13063450.39 | F25: =SUMIFS(InCalROI!$D:$D,InCalROI!$J:$J,"FMM",InCalROI!$A:$A,IF(MONTH(ValueDate)>6,EOMONTH(LastYear,6),ValueDate))-(SUMIFS(InCalROI!$D:$D,InCalROI!$J:$J,"FMM",InCalROI!$A:$A,EOMONTH(LastYear,3))) -> 0 | G25: =SUM(F23:F25) -> 18310624.79 | H25: =SUMIFS(InCalROI!$D:$D,InCalROI!$J:$J,"FMM",InCalROI!$A:$A,IF(MONTH(ValueDate)>9,EOMONTH(LastYear,9),ValueDate))-(SUMIFS(InCalROI!$D:$D,InCalROI!$J:$J,"FMM",InCalROI!$A:$A,EOMONTH(LastYear,6))) -> 0 | I25: =SUM(H23:H25) -> 7701361.54 | J25: =SUMIFS(InCalROI!$D:$D,InCalROI!$J:$J,"FMM",InCalROI!$A:$A,IF(MONTH(ValueDate)>12,EOMONTH(LastYear,12),ValueDate))-(SUMIFS(InCalROI!$D:$D,InCalROI!$J:$J,"FMM",InCalROI!$A:$A,EOMONTH(LastYear,9))) -> 101329.1 | K25: =SUM(J23:J25) -> 39075436.72
C27: Total Investment Income | E27: =SUM(E17,E20,E25) -> 91731360.33 | G27: =SUM(G17,G20,G25) -> 148104945.3 | I27: =SUM(I17,I20,I25) -> 51168608.72 | K27: =SUM(K17,K20,K25) -> 291001624.7
B29: Income - Revenue | C29: SLA & GSSA - VCAM | D29: =SUMIFS(Historical!$B:$B,Historical!$A:$A,IF(MONTH(ValueDate)>3,"<=" & EOMONTH(LastYear,3),"<=" & ValueDate),Historical!$A:$A,">=" & EOMONTH(LastYear,1)) -> 954147.75 | F29: =SUMIFS(Historical!$B:$B,Historical!$A:$A,IF(MONTH(ValueDate)>6,"<=" & EOMONTH(LastYear,6),"<=" & ValueDate),Historical!$A:$A,">=" & EOMONTH(LastYear,4)) -> 954147.75 | H29: =SUMIFS(Historical!$B:$B,Historical!$A:$A,IF(MONTH(ValueDate)>9,"<=" & EOMONTH(LastYear,9),"<=" & ValueDate),Historical!$A:$A,">=" & EOMONTH(LastYear,7)) -> 636098.5 | J29: =SUMIFS(Historical!$B:$B,Historical!$A:$A,IF(MONTH(ValueDate)>12,"<=" & EOMONTH(LastYear,12),"<=" & ValueDate),Historical!$A:$A,">=" & EOMONTH(LastYear,10)) -> 0
C30: SLA - iVCAP | D30: =SUMIFS(Historical!$C:$C,Historical!$A:$A,IF(MONTH(ValueDate)>3,"<=" & EOMONTH(LastYear,3),"<=" & ValueDate),Historical!$A:$A,">=" & EOMONTH(LastYear,1)) -> 475685 | E30: =SUM(D29:D30) -> 1429832.75 | F30: =SUMIFS(Historical!$C:$C,Historical!$A:$A,IF(MONTH(ValueDate)>6,"<=" & EOMONTH(LastYear,6),"<=" & ValueDate),Historical!$A:$A,">=" & EOMONTH(LastYear,4)) -> 486841.75 | G30: =SUM(F29:F30) -> 1440989.5 | H30: =SUMIFS(Historical!$C:$C,Historical!$A:$A,IF(MONTH(ValueDate)>9,"<=" & EOMONTH(LastYear,9),"<=" & ValueDate),Historical!$A:$A,">=" & EOMONTH(LastYear,7)) -> 328280.09 | I30: =SUM(H29:H30) -> 964378.59 | J30: =SUMIFS(Historical!$C:$C,Historical!$A:$A,IF(MONTH(ValueDate)>12,"<=" & EOMONTH(LastYear,12),"<=" & ValueDate),Historical!$A:$A,">=" & EOMONTH(LastYear,10)) -> 0 | K30: =SUM(J29:J30) -> 0
C32: Total Income | E32: =E27+E30 -> 93161193.08 | G32: =G27+G30 -> 149545934.8 | I32: =I27+I30 -> 52132987.31 | K32: =K27+K30 -> 291001624.7
B34: Expense | C34: Financing Cost | D34: =SUMIFS(Historical!$D:$D,Historical!$A:$A,IF(MONTH(ValueDate)>3,"<=" & EOMONTH(LastYear,3),"<=" & ValueDate),Historical!$A:$A,">=" & EOMONTH(LastYear,1)) -> -53125506.87 | F34: =SUMIFS(Historical!$D:$D,Historical!$A:$A,IF(MONTH(ValueDate)>6,"<=" & EOMONTH(LastYear,6),"<=" & ValueDate),Historical!$A:$A,">=" & EOMONTH(LastYear,4)) -> -64664849.32 | H34: =SUMIFS(Historical!$D:$D,Historical!$A:$A,IF(MONTH(ValueDate)>9,"<=" & EOMONTH(LastYear,9),"<=" & ValueDate),Historical!$A:$A,">=" & EOMONTH(LastYear,7)) -> -44057369.88 | J34: =SUMIFS(Historical!$D:$D,Historical!$A:$A,IF(MONTH(ValueDate)>12,"<=" & EOMONTH(LastYear,12),"<=" & ValueDate),Historical!$A:$A,">=" & EOMONTH(LastYear,10)) -> 0
C35: Loss/ Gain on Disposal of Asset | D35: =SUMIFS(Historical!$E:$E,Historical!$A:$A,IF(MONTH(ValueDate)>3,"<=" & EOMONTH(LastYear,3),"<=" & ValueDate),Historical!$A:$A,">=" & EOMONTH(LastYear,1)) -> 0 | F35: =SUMIFS(Historical!$E:$E,Historical!$A:$A,IF(MONTH(ValueDate)>6,"<=" & EOMONTH(LastYear,6),"<=" & ValueDate),Historical!$A:$A,">=" & EOMONTH(LastYear,4)) -> 0 | H35: =SUMIFS(Historical!$E:$E,Historical!$A:$A,IF(MONTH(ValueDate)>9,"<=" & EOMONTH(LastYear,9),"<=" & ValueDate),Historical!$A:$A,">=" & EOMONTH(LastYear,7)) -> 0 | J35: =SUMIFS(Historical!$E:$E,Historical!$A:$A,IF(MONTH(ValueDate)>12,"<=" & EOMONTH(LastYear,12),"<=" & ValueDate),Historical!$A:$A,">=" & EOMONTH(LastYear,10)) -> 0
C36: Prov for Unrealised Loss | D36: =SUMIFS(Historical!$F:$F,Historical!$A:$A,IF(MONTH(ValueDate)>3,"<=" & EOMONTH(LastYear,3),"<=" & ValueDate),Historical!$A:$A,">=" & EOMONTH(LastYear,1)) -> 0 | F36: =SUMIFS(Historical!$F:$F,Historical!$A:$A,IF(MONTH(ValueDate)>6,"<=" & EOMONTH(LastYear,6),"<=" & ValueDate),Historical!$A:$A,">=" & EOMONTH(LastYear,4)) -> 0 | H36: =SUMIFS(Historical!$F:$F,Historical!$A:$A,IF(MONTH(ValueDate)>9,"<=" & EOMONTH(LastYear,9),"<=" & ValueDate),Historical!$A:$A,">=" & EOMONTH(LastYear,7)) -> 0 | J36: =SUMIFS(Historical!$F:$F,Historical!$A:$A,IF(MONTH(ValueDate)>12,"<=" & EOMONTH(LastYear,12),"<=" & ValueDate),Historical!$A:$A,">=" & EOMONTH(LastYear,10)) -> 0
C37: Diminution in value of available-for-sale financial assets | D37: =SUMIFS(Historical!$G:$G,Historical!$A:$A,IF(MONTH(ValueDate)>3,"<=" & EOMONTH(LastYear,3),"<=" & ValueDate),Historical!$A:$A,">=" & EOMONTH(LastYear,1)) -> 0 | F37: =SUMIFS(Historical!$G:$G,Historical!$A:$A,IF(MONTH(ValueDate)>6,"<=" & EOMONTH(LastYear,6),"<=" & ValueDate),Historical!$A:$A,">=" & EOMONTH(LastYear,4)) -> 0 | H37: =SUMIFS(Historical!$G:$G,Historical!$A:$A,IF(MONTH(ValueDate)>9,"<=" & EOMONTH(LastYear,9),"<=" & ValueDate),Historical!$A:$A,">=" & EOMONTH(LastYear,7)) -> 0 | J37: =SUMIFS(Historical!$G:$G,Historical!$A:$A,IF(MONTH(ValueDate)>12,"<=" & EOMONTH(LastYear,12),"<=" & ValueDate),Historical!$A:$A,">=" & EOMONTH(LastYear,10)) -> 0
C38: G & A | D38: =SUMIFS(Historical!$H:$H,Historical!$A:$A,IF(MONTH(ValueDate)>3,"<=" & EOMONTH(LastYear,3),"<=" & ValueDate),Historical!$A:$A,">=" & EOMONTH(LastYear,1)) -> -5769621.14 | E38: =SUM(D34:D38) -> -58895128.01 | F38: =SUMIFS(Historical!$H:$H,Historical!$A:$A,IF(MONTH(ValueDate)>6,"<=" & EOMONTH(LastYear,6),"<=" & ValueDate),Historical!$A:$A,">=" & EOMONTH(LastYear,4)) -> -6323090.15 | G38: =SUM(F34:F38) -> -70987939.47 | H38: =SUMIFS(Historical!$H:$H,Historical!$A:$A,IF(MONTH(ValueDate)>9,"<=" & EOMONTH(LastYear,9),"<=" & ValueDate),Historical!$A:$A,">=" & EOMONTH(LastYear,7)) -> -4881731.87 | I38: =SUM(H34:H38) -> -48939101.75 | J38: =SUMIFS(Historical!$H:$H,Historical!$A:$A,IF(MONTH(ValueDate)>12,"<=" & EOMONTH(LastYear,12),"<=" & ValueDate),Historical!$A:$A,">=" & EOMONTH(LastYear,10)) -> 0 | K38: =SUM(J34:J38) -> 0
C40: Profit before tax | E40: =E32+E38 -> 34266065.07 | G40: =G32+G38 -> 78557995.3 | I40: =I32+I38 -> 3193885.56 | K40: =K32+K38 -> 291001624.7
C41: Tax Expense | E41: =SUMIFS(Historical!$I:$I,Historical!$A:$A,IF(MONTH(ValueDate)>3,"<=" & EOMONTH(LastYear,3),"<=" & ValueDate),Historical!$A:$A,">=" & EOMONTH(LastYear,1)) -> 0 | G41: =SUMIFS(Historical!$I:$I,Historical!$A:$A,IF(MONTH(ValueDate)>6,"<=" & EOMONTH(LastYear,6),"<=" & ValueDate),Historical!$A:$A,">=" & EOMONTH(LastYear,4)) -> 0 | I41: =SUMIFS(Historical!$I:$I,Historical!$A:$A,IF(MONTH(ValueDate)>9,"<=" & EOMONTH(LastYear,9),"<=" & ValueDate),Historical!$A:$A,">=" & EOMONTH(LastYear,7)) -> 0 | K41: =SUMIFS(Historical!$I:$I,Historical!$A:$A,IF(MONTH(ValueDate)>12,"<=" & EOMONTH(LastYear,12),"<=" & ValueDate),Historical!$A:$A,">=" & EOMONTH(LastYear,10)) -> 0
C42: Net Profit | E42: =E40+E41 -> 34266065.07 | G42: =G40+G41 -> 78557995.3 | I42: =I40+I41 -> 3193885.56 | K42: =K40+K41 -> 291001624.7
C44: No. of days (Total) | E44: =IF(MONTH(ValueDate)>3,MAX(InCalROI!$M:$M),MAX(InCalROI!$K:$K)) -> 90 | G44: =IF(MONTH(ValueDate)>6,MAX(InCalROI!$N:$N),MAX(InCalROI!$K:$K))-MAX(InCalROI!$M:$M) -> 91 | I44: =IF(MONTH(ValueDate)>9,MAX(InCalROI!$O:$O),MAX(InCalROI!$K:$K))-MAX(InCalROI!$N:$N) -> 62 | K44: =IF(MONTH(ValueDate)>12,0,MAX(InCalROI!$K:$K))-MAX(InCalROI!$O:$O) -> 243
C45: No. of days (STFI) | E45: =SUMIFS(InCalROI!$G:$G,InCalROI!$B:$B,"STFI",InCalROI!$C:$C,"ALL",InCalROI!$A:$A,IF(MONTH(ValueDate)>3,EOMONTH(LastYear,3),ValueDate)) -> 0 | G45: =SUMIFS(InCalROI!$G:$G,InCalROI!$B:$B,"STFI",InCalROI!$C:$C,"ALL",InCalROI!$A:$A,IF(MONTH(ValueDate)>6,EOMONTH(LastYear,6),ValueDate))-(SUMIFS(InCalROI!$G:$G,InCalROI!$B:$B,"STFI",InCalROI!$C:$C,"ALL",InCalROI!$A:$A,EOMONTH(LastYear,3))) -> 0 | I45: =SUMIFS(InCalROI!$G:$G,InCalROI!$B:$B,"STFI",InCalROI!$C:$C,"ALL",InCalROI!$A:$A,IF(MONTH(ValueDate)>9,EOMONTH(LastYear,9),ValueDate))-(SUMIFS(InCalROI!$G:$G,InCalROI!$B:$B,"STFI",InCalROI!$C:$C,"ALL",InCalROI!$A:$A,EOMONTH(LastYear,6))) -> 0 | K45: =SUMIFS(InCalROI!$G:$G,InCalROI!$B:$B,"STFI",InCalROI!$C:$C,"ALL",InCalROI!$A:$A,IF(MONTH(ValueDate)>9,EOMONTH(LastYear,9),ValueDate))-(SUMIFS(InCalROI!$G:$G,InCalROI!$B:$B,"STFI",InCalROI!$C:$C,"ALL",InCalROI!$A:$A,EOMONTH(LastYear,6))) -> 0
C46: No. of days (FUND) | E46: =SUMIFS(InCalROI!$G:$G,InCalROI!$B:$B,"FUND",InCalROI!$C:$C,"ALL",InCalROI!$A:$A,IF(MONTH(ValueDate)>3,EOMONTH(LastYear,3),ValueDate)) -> 90 | G46: =SUMIFS(InCalROI!$G:$G,InCalROI!$B:$B,"FUND",InCalROI!$C:$C,"ALL",InCalROI!$A:$A,IF(MONTH(ValueDate)>6,EOMONTH(LastYear,6),ValueDate))-(SUMIFS(InCalROI!$G:$G,InCalROI!$B:$B,"FUND",InCalROI!$C:$C,"ALL",InCalROI!$A:$A,EOMONTH(LastYear,3))) -> 91 | I46: =SUMIFS(InCalROI!$G:$G,InCalROI!$B:$B,"FUND",InCalROI!$C:$C,"ALL",InCalROI!$A:$A,IF(MONTH(ValueDate)>9,EOMONTH(LastYear,9),ValueDate))-(SUMIFS(InCalROI!$G:$G,InCalROI!$B:$B,"FUND",InCalROI!$C:$C,"ALL",InCalROI!$A:$A,EOMONTH(LastYear,6))) -> 62 | K46: =SUMIFS(InCalROI!$G:$G,InCalROI!$B:$B,"FUND",InCalROI!$C:$C,"ALL",InCalROI!$A:$A,IF(MONTH(ValueDate)>9,EOMONTH(LastYear,9),ValueDate))-(SUMIFS(InCalROI!$G:$G,InCalROI!$B:$B,"FUND",InCalROI!$C:$C,"ALL",InCalROI!$A:$A,EOMONTH(LastYear,6))) -> 62
B49: Gross | C49: ROI - Listed Equity | E49: =IFERROR((E17/D5)/(E44)*365,0) -> 0.08348208462 | G49: =IFERROR((G17/F5)/(G44)*365,0) -> 0.1190035927 | I49: =IFERROR((I17/H5)/(I44)*365,0) -> 0.05032463626 | K49: =IFERROR((K17/J5)/(K44)*365,0) -> 0.08691284661
C50: ROI - Unlisted Equity | E50: =IFERROR((E20/D6)/(E44)*365,0) -> 0 | G50: =IFERROR((G20/F6)/(G44)*365,0) -> 0.1101609658 | I50: =IFERROR((I20/H6)/(I44)*365,0) -> 0 | K50: =IFERROR((K20/J6)/(K44)*365,0) -> 0.0447761194
C51: ROI - Total Equity | E51: =IFERROR((SUM(E17,E20)/E6)/(E44)*365,0) -> 0.08315497836 | G51: =IFERROR((SUM(G17,G20)/G6)/(G44)*365,0) -> 0.1189594511 | I51: =IFERROR((SUM(I17,I20)/I6)/(I44)*365,0) -> 0.05007842495 | K51: =IFERROR((SUM(K17,K20)/K6)/(K44)*365,0) -> 0.08671848791
C52: ROI - Money Market | E52: =IFERROR((D23/D8)/(E46)*365,0) -> 0.0384954644 | G52: =IFERROR((F23/F8)/(G46)*365,0) -> 0.03775381191 | I52: =IFERROR((H23/H8)/(I46)*365,0) -> 0.03747848484 | K52: =IFERROR((J23/J8)/(K46)*365,0) -> 0.1487075644
C53: ROI - FUND ISMMF | E53: =IFERROR((D25/D10)/(E46)*365,0) -> 0.05642832585 | G53: =IFERROR((F25/F10)/(G46)*365,0) -> 0 | I53: =IFERROR((H25/H10)/(I46)*365,0) -> 0 | K53: =IFERROR((J25/J10)/(K46)*365,0) -> 0.05642832585
C54: ROI - STFI | E54: =IFERROR((D24/D9)/(E45)*365,0) -> 0 | G54: =IFERROR((F24/F9)/(G45)*365,0) -> 0 | I54: =IFERROR((H24/H9)/(I45)*365,0) -> 0 | K54: =IFERROR((J24/J9)/(K45)*365,0) -> 0
C55: ROI - Total Money Market Fund | E55: =IFERROR((E25/E10)/(E46)*365,0) -> 0.03859059279 | G55: =IFERROR((G25/G10)/(G46)*365,0) -> 0.03775381191 | I55: =IFERROR((I25/I10)/(I46)*365,0) -> 0.03747848484 | K55: =IFERROR((K25/K10)/(K46)*365,0) -> 0.1480796038
C56: ROI - TOTAL INVESTMENT | E56: =IFERROR((E27/E12)/(E44)*365,0) -> 0.07141108332 | G56: =IFERROR((G27/G12)/(G44)*365,0) -> 0.09397038661 | I56: =IFERROR((I27/I12)/(I44)*365,0) -> 0.04766650089 | K56: =IFERROR((K27/K12)/(K44)*365,0) -> 0.07387050525
C57: ROI - TOTAL REVENUE | E57: =IFERROR((E32/E12)/(E44)*365,0) -> 0.07252418036 | G57: =IFERROR((G32/G12)/(G44)*365,0) -> 0.09488467303 | I57: =IFERROR((I32/I12)/(I44)*365,0) -> 0.04856487499 | K57: =IFERROR((K32/K12)/(K44)*365,0) -> 0.07387050525
C58: ROCE | E58: =IFERROR((E32/E71)/(E44)*365,0) -> 0.06687073513 | G58: =IFERROR((G32/G71)/(G44)*365,0) -> 0.09623494568 | I58: =IFERROR((I32/I71)/(I44)*365,0) -> 0.09849449216 | K58: =IFERROR((K32/K71)/(K44)*365,0) -> 0
C59: ROE | E59: =IFERROR((E32/E80)/(E44)*365,0) -> 3.156468119 | G59: =IFERROR((G32/G80)/(G44)*365,0) -> 3.039739148 | I59: =IFERROR((I32/I80)/(I44)*365,0) -> 2.819494348 | K59: =IFERROR((K32/K80)/(K44)*365,0) -> 0
B61: Net | C61: ROI | E61: =IFERROR((E40/E12)/(E44)*365,0) -> 0.02667546648 | G61: =IFERROR((G42/G12)/(G44)*365,0) -> 0.04984388047 | I61: =IFERROR((I40/I12)/(I44)*365,0) -> 0.002975288027 | K61: =IFERROR((K40/K12)/(K44)*365,0) -> 0.07387050525
C62: ROCE | E62: =IFERROR((E40/E71)/(E44)*365,0) -> 0.02459604569 | G62: =IFERROR((G42/G71)/(G44)*365,0) -> 0.05055319238 | I62: =IFERROR((I40/I71)/(I44)*365,0) -> 0.006034185887 | K62: =IFERROR((K40/K71)/(K44)*365,0) -> 0
C63: ROE | E63: =IFERROR((E40/E80)/(E44)*365,0) -> 1.160995672 | G63: =IFERROR((G42/G80)/(G44)*365,0) -> 1.596805785 | I63: =IFERROR((I40/I80)/(I44)*365,0) -> 0.1727340548 | K63: =IFERROR((K40/K80)/(K44)*365,0) -> 0
D66: Total Capital Employed
D67: =EOMONTH(ValueDate,-MONTH(ValueDate))+1 -> 2017-01-01 | E67: =SUMIFS(Historical!$J:$J,Historical!$A:$A,EOMONTH(ValueDate,-MONTH(ValueDate))) -> 5066195646 | F67: =EOMONTH(ValueDate,-MONTH(ValueDate)+3)+1 -> 2017-04-01 | G67: =SUMIFS(Historical!$J:$J,Historical!$A:$A,EOMONTH(ValueDate,-MONTH(ValueDate)+3)) -> 6233826506 | H67: =EOMONTH(ValueDate,-MONTH(ValueDate)+6)+1 -> 2017-07-01 | I67: =SUMIFS(Historical!$J:$J,Historical!$A:$A,EOMONTH(ValueDate,-MONTH(ValueDate)+6)) -> 6232063026 | J67: =EOMONTH(ValueDate,-MONTH(ValueDate)+9)+1 -> 2017-10-01 | K67: =SUMIFS(Historical!$J:$J,Historical!$A:$A,EOMONTH(ValueDate,-MONTH(ValueDate)+9)) -> 0
D68: =EOMONTH(LastYear,1) -> 2017-01-31 | E68: =IF(MONTH(ValueDate)>=1,SUMIFS(Historical!$J:$J,Historical!$A:$A,D68),0) -> 5085090842 | F68: =EOMONTH(LastYear,4) -> 2017-04-30 | G68: =IF(MONTH(ValueDate)>=4,SUMIFS(Historical!$J:$J,Historical!$A:$A,F68),0) -> 6283423427 | H68: =EOMONTH(LastYear,7) -> 2017-07-31 | I68: =IF(MONTH(ValueDate)>=7,SUMIFS(Historical!$J:$J,Historical!$A:$A,H68),0) -> 6150376384 | J68: =EOMONTH(LastYear,10) -> 2017-10-31 | K68: =IF(MONTH(ValueDate)>=10,SUMIFS(Historical!$J:$J,Historical!$A:$A,J68),0) -> 0
D69: =EOMONTH(LastYear,2) -> 2017-02-28 | E69: =IF(MONTH(ValueDate)>=2,SUMIFS(Historical!$J:$J,Historical!$A:$A,D69),0) -> 5139155971 | F69: =EOMONTH(LastYear,5) -> 2017-05-31 | G69: =IF(MONTH(ValueDate)>=5,SUMIFS(Historical!$J:$J,Historical!$A:$A,F69),0) -> 6303846127 | H69: =EOMONTH(LastYear,8) -> 2017-08-31 | I69: =IF(MONTH(ValueDate)>=8,SUMIFS(Historical!$J:$J,Historical!$A:$A,H69),0) -> 6114250360 | J69: =EOMONTH(LastYear,11) -> 2017-11-30 | K69: =IF(MONTH(ValueDate)>=11,SUMIFS(Historical!$J:$J,Historical!$A:$A,J69),0) -> 0
D70: =EOMONTH(LastYear,3) -> 2017-03-31 | E70: =IF(MONTH(ValueDate)>=3,SUMIFS(Historical!$J:$J,Historical!$A:$A,D70),0) -> 6233826506 | F70: =EOMONTH(LastYear,6) -> 2017-06-30 | G70: =IF(MONTH(ValueDate)>=6,SUMIFS(Historical!$J:$J,Historical!$A:$A,F70),0) -> 6232063026 | H70: =EOMONTH(LastYear,9) -> 2017-09-30 | I70: =IF(MONTH(ValueDate)>=9,SUMIFS(Historical!$J:$J,Historical!$A:$A,H70),0) -> 0 | J70: =EOMONTH(LastYear,12) -> 2017-12-31 | K70: =IF(MONTH(ValueDate)>=12,SUMIFS(Historical!$J:$J,Historical!$A:$A,J70),0) -> 0
D71: Average 1st Qrt | E71: =IFERROR(SUM(E67,E70)/2,0) -> 5650011076 | F71: Average 2nd Qrt | G71: =IFERROR(SUM(G67,G70)/2,0) -> 6232944766 | H71: Average 3rd Qrt | I71: =IFERROR(SUM(I67,I70)/2,0) -> 3116031513 | J71: Average 4th Qrt | K71: =IFERROR(SUM(K67,K70)/2,0) -> 0
D75: Shareholders' Equity
D76: =EOMONTH(ValueDate,-MONTH(ValueDate))+1 -> 2017-01-01 | E76: =SUMIFS(Historical!$K:$K,Historical!$A:$A,EOMONTH(ValueDate,-MONTH(ValueDate))) -> 62444522.53 | F76: =EOMONTH(ValueDate,-MONTH(ValueDate)+3)+1 -> 2017-04-01 | G76: =SUMIFS(Historical!$K:$K,Historical!$A:$A,EOMONTH(ValueDate,-MONTH(ValueDate)+3)) -> 176949876.5 | H76: =EOMONTH(ValueDate,-MONTH(ValueDate)+6)+1 -> 2017-07-01 | I76: =SUMIFS(Historical!$K:$K,Historical!$A:$A,EOMONTH(ValueDate,-MONTH(ValueDate)+6)) -> 217707080.4 | J76: =EOMONTH(ValueDate,-MONTH(ValueDate)+9)+1 -> 2017-10-01 | K76: =SUMIFS(Historical!$K:$K,Historical!$A:$A,EOMONTH(ValueDate,-MONTH(ValueDate)+9)) -> 0
D77: =EOMONTH(LastYear,1) -> 2017-01-31 | E77: =IF(MONTH(ValueDate)>=1,SUMIFS(Historical!$K:$K,Historical!$A:$A,D77),0) -> 63082841.62 | F77: =EOMONTH(LastYear,4) -> 2017-04-30 | G77: =IF(MONTH(ValueDate)>=4,SUMIFS(Historical!$K:$K,Historical!$A:$A,F77),0) -> 205228714.3 | H77: =EOMONTH(LastYear,7) -> 2017-07-31 | I77: =IF(MONTH(ValueDate)>=7,SUMIFS(Historical!$K:$K,Historical!$A:$A,H77),0) -> 113991754.2 | J77: =EOMONTH(LastYear,10) -> 2017-10-31 | K77: =IF(MONTH(ValueDate)>=10,SUMIFS(Historical!$K:$K,Historical!$A:$A,J77),0) -> 0
D78: =EOMONTH(LastYear,2) -> 2017-02-28 | E78: =IF(MONTH(ValueDate)>=2,SUMIFS(Historical!$K:$K,Historical!$A:$A,D78),0) -> 100657889.2 | F78: =EOMONTH(LastYear,5) -> 2017-05-31 | G78: =IF(MONTH(ValueDate)>=5,SUMIFS(Historical!$K:$K,Historical!$A:$A,F78),0) -> 203622730.1 | H78: =EOMONTH(LastYear,8) -> 2017-08-31 | I78: =IF(MONTH(ValueDate)>=8,SUMIFS(Historical!$K:$K,Historical!$A:$A,H78),0) -> 85837044.82 | J78: =EOMONTH(LastYear,11) -> 2017-11-30 | K78: =IF(MONTH(ValueDate)>=11,SUMIFS(Historical!$K:$K,Historical!$A:$A,J78),0) -> 0
D79: =EOMONTH(LastYear,3) -> 2017-03-31 | E79: =IF(MONTH(ValueDate)>=3,SUMIFS(Historical!$K:$K,Historical!$A:$A,D79),0) -> 176949876.5 | F79: =EOMONTH(LastYear,6) -> 2017-06-30 | G79: =IF(MONTH(ValueDate)>=6,SUMIFS(Historical!$K:$K,Historical!$A:$A,F79),0) -> 217707080.4 | H79: =EOMONTH(LastYear,9) -> 2017-09-30 | I79: =IF(MONTH(ValueDate)>=9,SUMIFS(Historical!$K:$K,Historical!$A:$A,H79),0) -> 0 | J79: =EOMONTH(LastYear,12) -> 2017-12-31 | K79: =IF(MONTH(ValueDate)>=12,SUMIFS(Historical!$K:$K,Historical!$A:$A,J79),0) -> 0
D80: Average 1st Qrt | E80: =IFERROR(SUM(E76,E79)/2,0) -> 119697199.5 | F80: Average 2nd Qrt | G80: =IFERROR(SUM(G76,G79)/2,0) -> 197328478.4 | H80: Average 3rd Qrt | I80: =IFERROR(SUM(I76,I79)/2,0) -> 108853540.2 | J80: Average 4th Qrt | K80: =IFERROR(SUM(K76,K79)/2,0) -> 0

Sheet Historical
B1: SLA & GSSA - VCAM | C1: SLA - iVCAP | D1: Financing Cost | E1: Loss/ Gain on Disposal of Asset | F1: Prov for Unrealised Loss | G1: Diminution in value of available-for-sale financial assets | H1: G & A | I1: Tax Expense | J1: Capital Employed | K1: Shareholders' Equity
A2: 2015-12-31 | J2: 3173912306 | K2: 172505511.6
A3: 2016-01-31 | B3: 318049.25 | C3: 158561.67 | D3: -10902657.53 | H3: -1206784.68 | I3: 247678.23 | J3: 3189037494 | K3: 176728041.7
A4: 2016-02-29 | B4: 318049.25 | C4: 158561.67 | D4: -10199260.27 | H4: -1640524.47 | J4: 3196618237 | K4: 174109524.9
A5: 2016-03-31 | B5: 318049.25 | C5: 158561.66 | D5: -10902657.54 | H5: -1755784.66 | J5: 3221677242 | K5: 188265872.3
A6: 2016-04-30 | B6: 318049.25 | C6: 158561.67 | D6: -10550958.9 | H6: -2029471.15 | J6: 3166088526 | K6: 122126196.8
A7: 2016-05-31 | B7: 318049.25 | C7: 169718.42 | D7: -10902657.54 | H7: -1876896.56 | J7: 3139917545 | K7: 85052558.84
A8: 2016-06-30 | B8: 318049.25 | C8: 158561.66 | D8: -10663534.24 | H8: -1981673.98 | J8: 4107088819 | K8: 105921148
A9: 2016-07-31 | B9: 318049.25 | C9: 158561.67 | D9: -14392493.16 | H9: -2217045.74 | J9: 4095105722 | K9: 79545557.65
A10: 2016-08-31 | B10: 318049.25 | C10: 169718.42 | D10: -14392493.16 | H10: -2122590.13 | I10: -190225.25 | J10: 4098431896 | K10: 68479238.71
A11: 2016-09-30 | B11: 318049.25 | C11: 169718.41 | D11: -13928219.17 | H11: -2042768.49 | J11: 4087433899 | K11: 43553022.26
A12: 2016-10-31 | B12: 318049.25 | C12: 169718.42 | D12: -14392493.16 | H12: -2012096.65 | J12: 4152947059 | K12: 94673688.92
A13: 2016-11-30 | B13: 318049.25 | C13: 158561.67 | D13: -13928219.17 | H13: -2280767.26 | J13: 4042224370 | K13: -29977218.96
A14: 2016-12-31 | B14: 318049.25 | C14: 158561.66 | D14: -16511671.24 | H14: =-4383513.32 -> -4383513.32 | J14: 5066195646 | K14: 62444522.53
A15: 2017-01-31 | B15: 318049.25 | C15: 158561.67 | D15: -18256876.72 | H15: =-1717293.83 -> -1717293.83 | J15: 5085090842 | K15: 63082841.62
A16: 2017-02-28 | B16: 318049.25 | C16: 158561.67 | D16: -16490082.2 | H16: -2056175.79 | J16: 5139155971 | K16: 100657889.2
A17: 2017-03-31 | B17: 318049.25 | C17: 158561.66 | D17: -18378547.95 | H17: -1996151.52 | J17: 6233826506 | K17: 176949876.5
A18: 2017-04-30 | B18: 318049.25 | C18: 158561.67 | D18: -21318082.19 | H18: -1944961.47 | J18: 6283423427 | K18: 205228714.3
A19: 2017-05-31 | B19: 318049.25 | C19: 158561.67 | D19: -22028684.94 | H19: -1973228.91 | J19: 6303846127 | K19: 203622730.1
A20: 2017-06-30 | B20: 318049.25 | C20: 169718.41 | D20: -21318082.19 | H20: -2404899.77 | J20: 6232063026 | K20: 217707080.4
A21: 2017-07-31 | B21: 318049.25 | C21: 169718.42 | D21: -22028684.94 | H21: -2441742.95 | J21: 6150376384 | K21: 113991754.2
A22: 2017-08-31 | B22: 318049.25 | C22: 158561.67 | D22: -22028684.94 | H22: -2439988.92 | J22: 6114250360 | K22: 85837044.82
A23: 2017-09-30
A24: 2017-10-31
A25: 2017-11-30
A26: 2017-12-31
A27: 2018-01-31
A28: 2018-02-28
A29: 2018-03-31
A30: 2018-04-30
A31: 2018-05-31
A32: 2018-06-30
A33: 2018-07-31
A34: 2018-08-31
A35: 2018-09-30
A36: 2018-10-31
A37: 2018-11-30
A38: 2018-12-31
A39: 2019-01-31
A40: 2019-02-28
A41: 2019-03-31
A42: 2019-04-30
A43: 2019-05-31
A44: 2019-06-30
A45: 2019-07-31
A46: 2019-08-31
A47: 2019-09-30
A48: 2019-10-31
A49: 2019-11-30
A50: 2019-12-31
A51: 2020-01-31
A52: 2020-02-29
A53: 2020-03-31
A54: 2020-04-30
A55: 2020-05-31
A56: 2020-06-30
A57: 2020-07-31
A58: 2020-08-31
A59: 2020-09-30
A60: 2020-10-31
A61: 2020-11-30
A62: 2020-12-31
A63: 2021-01-31
A64: 2021-02-28
A65: 2021-03-31
A66: 2021-04-30
A67: 2021-05-31
A68: 2021-06-30
A69: 2021-07-31
A70: 2021-08-31
A71: 2021-09-30
A72: 2021-10-31
A73: 2021-11-30
A74: 2021-12-31
A75: 2022-01-31
A76: 2022-02-28
A77: 2022-03-31
A78: 2022-04-30
A79: 2022-05-31
A80: 2022-06-30
A81: 2022-07-31
A82: 2022-08-31
A83: 2022-09-30
A84: 2022-10-31
A85: 2022-11-30
A86: 2022-12-31
A87: 2023-01-31
A88: 2023-02-28
A89: 2023-03-31
A90: 2023-04-30
A91: 2023-05-31
A92: 2023-06-30
A93: 2023-07-31
A94: 2023-08-31
A95: 2023-09-30
A96: 2023-10-31
A97: 2023-11-30
A98: 2023-12-31
A99: 2024-01-31
A100: 2024-02-29
A101: 2024-03-31
A102: 2024-04-30
A103: 2024-05-31
A104: 2024-06-30
A105: 2024-07-31
A106: 2024-08-31
A107: 2024-09-30
A108: 2024-10-31
A109: 2024-11-30
A110: 2024-12-31

Sheet InTBYTD
K1: =RIGHT(E1,3) ->  | L1: =LEFT(E1,1) ->  | M1: =VLOOKUP(E1,TBgp,2) -> BS | N1: =IF(ISNA(VLOOKUP(MOD(E1,1000),$S$1:$V$26,4,0))=TRUE,0,VLOOKUP(MOD(E1,1000),$S$1:$V$26,4,0)) -> CSH | P1: 0 | Q1: BS | S1: 0 | T1: CAPT | U1: Unitholder Capital | V1: CSH
A2: TBDate | B2: GLCode | C2: qFundCode | D2: qCurrencyCode | E2: ShortGL | F2: Value | G2: ValuationGL | H2: TBType | I2: qRptGrpID | J2: qRptGrp1ID | K2: AccType | L2: First | M2: Group | N2: Product Type | P2: 200000 | Q2: CSH | S2: 10 | T2: SHLI | U2: Local Listed Share | V2: EQT
A3: 2016-12-31 | B3: 0-CH-MYR-100210 | C3: CASH | D3: MYR | E3: 100210 | F3: 1544226000 | G3: 0 | H3: BS | I3: BIRPFD | J3: BIACDP | K3: 210 | L3: 1 | M3: BS | N3: CSH | P3: 299000 | Q3: DR | S3: 15 | T3: SHFL | U3: Foreign Listed Equities | V3: EQT
A4: 2016-12-31 | B4: 0-CH-MYR-139210 | C4: CASH | D4: MYR | E4: 139210 | F4: 3882763.86 | G4: 1 | H4: BS | I4: BAINTR | J4: BOAIND | K4: 210 | L4: 1 | M4: BS | N4: CSH | P4: 300000 | Q4: CSH | S4: 30 | T4: SHUL | U4: Local UnListed Share | V4: EQT
A5: 2016-12-31 | B5: 0-CH-MYR-500000 | C5: CASH | D5: MYR | E5: 500000 | F5: 821.46 | G5: 0 | H5: BS | I5: BABANK | J5: BOABNK | K5: 000 | L5: 5 | M5: CSH | N5: CSH | P5: 600000 | Q5: RG | S5: 100 | T5: BDCG | U5: Cagamas Bond | V5: BND
A6: 2016-12-31 | B6: 0-CH-MYR-630210 | C6: CASH | D6: MYR | E6: 630210 | F6: -59412776.15 | G6: 0 | H6: PLR | I6: PRINTI | J6: PRINMM | K6: 210 | L6: 6 | M6: INC | N6: CSH | P6: 619000 | Q6: INC | S6: 110 | T6: BDCO | U6: Commercial Bond | V6: BND
A7: 2016-12-31 | B7: 0-CH-MYR-636003 | C7: CASH | D7: MYR | E7: 636003 | F7: -6457915.8 | G7: 0 | H7: PLR | I7: PROTHI | J7: PRINOT | K7: 003 | L7: 6 | M7: DI | N7: 0 | P7: 630000 | Q7: INC | S7: 115 | T7: BXCO | U7: Foreign Commercial Bond | V7: BND
A8: 2016-12-31 | B8: 0-CH-MYR-636010 | C8: CASH | D8: MYR | E8: 636010 | F8: -535.13 | G8: 0 | H8: PLR | I8: PRDIVI | J8: PRDVTE | K8: 010 | L8: 6 | M8: DI | N8: EQT | P8: 635000 | Q8: DI | S8: 120 | T8: BDCP | U8: Commercial Paper | V8: BND
A9: 2016-12-31 | B9: 0-CH-MYR-639210 | C9: CASH | D9: MYR | E9: 639210 | F9: -3882763.86 | G9: 1 | H9: PLR | I9: PRINTI | J9: PRINMM | K9: 210 | L9: 6 | M9: INC | N9: CSH | P9: 636000 | Q9: DI | S9: 125 | T9: BXCP | U9: Foreign Commercial Paper | V9: BND
A10: 2016-12-31 | B10: 0-CH-MYR-710102 | C10: CASH | D10: MYR | E10: 710102 | F10: 4671 | G10: 0 | H10: PLR | I10: PEEOTF | J10: PREBKC | K10: 102 | L10: 7 | M10: EX | N10: 0 | P10: 639000 | Q10: INC | S10: 130 | T10: BDGG | U10: Government Guaranteed Bond | V10: BND
A11: 2016-12-31 | B11: 0-CH-MYR-710876 | C11: CASH | D11: MYR | E11: 710876 | F11: 292.98 | G11: 0 | H11: PLR | I11: PEEOTF | J11: PREGST | K11: 876 | L11: 7 | M11: EX | N11: 0 | P11: 689000 | Q11: CG | S11: 140 | T11: BDMG | U11: Malaysia Government Securities | V11: BND
A12: 2016-12-31 | B12: 0-CH-MYR-800000 | C12: CASH | D12: MYR | E12: 800000 | F12: -1474511309 | G12: 0 | H12: BS | I12: BCUCAP | J12: BCUCAP | K12: 000 | L12: 8 | M12: CAP | N12: CSH | P12: 700000 | Q12: EX | S12: 150 | T12: LNST | U12: Loan Stock | V12: EQT
A13: 2016-12-31 | B13: 0-CH-MYR-830000 | C13: CASH | D13: MYR | E13: 830000 | F13: -5208823.43 | G13: 0 | H13: BS | I13: PRDSEQ | J13: BSRRPF | K13: 000 | L13: 8 | M13: CAP | N13: CSH | P13: 800000 | Q13: CAP | S13: 190 | T13: BNID | U13: NID | V13: BND
A14: 2016-12-31 | B14: 0-CH-MYR-939210 | C14: CASH | D14: MYR | E14: 939210 | F14: 1359574.13 | G14: 0 | H14: PLR | I14: PUUUGL | J14: PRINMM | K14: 210 | L14: 9 | M14: CAP | N14: CSH | P14: 900000 | Q14: CTR | S14: 210 | T14: CSMM | U14: Local Money Market Placement | V14: CSH
A15: 2016-12-31 | B15: 0-CR-MYR-100010 | C15: CORE | D15: MYR | E15: 100010 | F15: 938084886.3 | G15: 0 | H15: BS | I15: BIQEQT | J15: BIACLS | K15: 010 | L15: 1 | M15: BS | N15: EQT | S15: 215 | T15: CSMF | U15: Foreign Money Market Placement | V15: CSH
A16: 2016-12-31 | B16: 0-CR-MYR-189010 | C16: CORE | D16: MYR | E16: 189010 | F16: -61243977.29 | G16: 1 | H16: BS | I16: BIQEQT | J16: BIAULS | K16: 010 | L16: 1 | M16: BS | N16: EQT | S16: 220 | T16: CSFD | U16: Local Fixed Deposit Placement | V16: CSH
A17: 2016-12-31 | B17: 0-CR-MYR-300200 | C17: CORE | D17: MYR | E17: 300200 | F17: -55921074.78 | G17: 0 | H17: BS | I17: BLATBR | J17: BLBRLO | K17: 200 | L17: 3 | M17: CSH | N17: 0 | S17: 300 | T17: FUDE | U17: Futures
A18: 2016-12-31 | B18: 0-CR-MYR-600010 | C18: CORE | D18: MYR | E18: 600010 | F18: -9937249.02 | G18: 0 | H18: PLR | I18: PRRGNL | J18: PRGNLO | K18: 010 | L18: 6 | M18: RG | N18: EQT | S18: 310 | T18: FORD | U18: Forward Contract
A19: 2016-12-31 | B19: 0-CR-MYR-635010 | C19: CORE | D19: MYR | E19: 635010 | F19: -33543580.41 | G19: 0 | H19: PLR | I19: PRDIVI | J19: PRDVTA | K19: 010 | L19: 6 | M19: DI | N19: EQT | S19: 320 | T19: OPLO | U19: Options Local
A20: 2016-12-31 | B20: 0-CR-MYR-689010 | C20: CORE | D20: MYR | E20: 689010 | F20: 61243977.29 | G20: 1 | H20: PLU | I20: PUUQGL | J20: PUGINV | K20: 010 | L20: 6 | M20: CG | N20: EQT | S20: 325 | T20: OPFO | U20: Options Foreign
A21: 2016-12-31 | B21: 0-CR-MYR-800000 | C21: CORE | D21: MYR | E21: 800000 | F21: -838227768.1 | G21: 0 | H21: BS | I21: BCUCAP | J21: BCUCAP | K21: 000 | L21: 8 | M21: CAP | N21: CSH | S21: 330 | T21: DEVCF | U21: Derivative
A22: 2016-12-31 | B22: 0-CR-MYR-810000 | C22: CORE | D22: MYR | E22: 810000 | F22: 908327.34 | G22: 0 | H22: BS | I22: BCURPF | J22: BSURPF | K22: 000 | L22: 8 | M22: CAP | N22: CSH | S22: 410 | T22: UTEX | U22: Local Bond Unit Trust
A23: 2016-12-31 | B23: 0-CR-MYR-830000 | C23: CORE | D23: MYR | E23: 830000 | F23: -455213.97 | G23: 0 | H23: BS | I23: PRDSEQ | J23: BSRRPF | K23: 000 | L23: 8 | M23: CAP | N23: CSH | S23: 415 | T23: UTFX | U23: Foreign Bond Unit Trust
A24: 2016-12-31 | B24: 0-CR-MYR-989010 | C24: CORE | D24: MYR | E24: 989010 | F24: -908327.34 | G24: 0 | H24: PLU | I24: PUUQGL | J24: PUGINV | K24: 010 | L24: 9 | M24: CAP | N24: EQT | S24: 430 | T24: UTCX | U24: Local Cash Unit Trust
A25: 2016-12-31 | B25: 0-DS-MYR-100210 | C25: DSRA | D25: MYR | E25: 100210 | F25: 107185100 | G25: 0 | H25: BS | I25: BIRPFD | J25: BIACDP | K25: 210 | L25: 1 | M25: BS | N25: CSH | S25: 460 | T25: REIT | U25: Real Estate Investment Trust | V25: EQT
A26: 2016-12-31 | B26: 0-DS-MYR-139210 | C26: DSRA | D26: MYR | E26: 139210 | F26: 74816.79 | G26: 1 | H26: BS | I26: BAINTR | J26: BOAIND | K26: 210 | L26: 1 | M26: BS | N26: CSH | S26: 465 | T26: REIF | U26: Foreign Real Estate Investment Trust
A27: 2016-12-31 | B27: 0-DS-MYR-500000 | C27: DSRA | D27: MYR | E27: 500000 | F27: 712.33 | G27: 0 | H27: BS | I27: BABANK | J27: BOABNK | K27: 000 | L27: 5 | M27: CSH | N27: CSH
A28: 2016-12-31 | B28: 0-DS-MYR-630210 | C28: DSRA | D28: MYR | E28: 630210 | F28: -3153915.59 | G28: 0 | H28: PLR | I28: PRINTI | J28: PRINMM | K28: 210 | L28: 6 | M28: INC | N28: CSH
A29: 2016-12-31 | B29: 0-DS-MYR-639210 | C29: DSRA | D29: MYR | E29: 639210 | F29: -74816.79 | G29: 1 | H29: PLR | I29: PRINTI | J29: PRINMM | K29: 210 | L29: 6 | M29: INC | N29: CSH
A30: 2016-12-31 | B30: 0-DS-MYR-710102 | C30: DSRA | D30: MYR | E30: 710102 | F30: 62 | G30: 0 | H30: PLR | I30: PEEOTF | J30: PREBKC | K30: 102 | L30: 7 | M30: EX | N30: 0
A31: 2016-12-31 | B31: 0-DS-MYR-710104 | C31: DSRA | D31: MYR | E31: 710104 | F31: 84962136.99 | G31: 0 | H31: PLR | I31: PEEOTF | J31: PREGEN | K31: 104 | L31: 7 | M31: EX | N31: 0
A32: 2016-12-31 | B32: 0-DS-MYR-710876 | C32: DSRA | D32: MYR | E32: 710876 | F32: 3.72 | G32: 0 | H32: PLR | I32: PEEOTF | J32: PREGST | K32: 876 | L32: 7 | M32: EX | N32: 0
A33: 2016-12-31 | B33: 0-DS-MYR-800000 | C33: DSRA | D33: MYR | E33: 800000 | F33: -253354948.8 | G33: 0 | H33: BS | I33: BCUCAP | J33: BCUCAP | K33: 000 | L33: 8 | M33: CAP | N33: CSH
A34: 2016-12-31 | B34: 0-DS-MYR-830000 | C34: DSRA | D34: MYR | E34: 830000 | F34: -32797.15 | G34: 0 | H34: BS | I34: PRDSEQ | J34: BSRRPF | K34: 000 | L34: 8 | M34: CAP | N34: CSH
A35: 2016-12-31 | B35: 0-DS-MYR-850000 | C35: DSRA | D35: MYR | E35: 850000 | F35: 64360849.32 | G35: 0 | H35: PLR | I35: PRDSEQ | J35: PRDSEQ | K35: 000 | L35: 8 | M35: CAP | N35: CSH
A36: 2016-12-31 | B36: 0-DS-MYR-939210 | C36: DSRA | D36: MYR | E36: 939210 | F36: 32797.15 | G36: 0 | H36: PLR | I36: PUUUGL | J36: PRINMM | K36: 210 | L36: 9 | M36: CAP | N36: CSH
A37: 2016-12-31 | B37: 0-DV-MYR-100010 | C37: DIVIDEND | D37: MYR | E37: 100010 | F37: 832479400.8 | G37: 0 | H37: BS | I37: BIQEQT | J37: BIACLS | K37: 010 | L37: 1 | M37: BS | N37: EQT
A38: 2016-12-31 | B38: 0-DV-MYR-189010 | C38: DIVIDEND | D38: MYR | E38: 189010 | F38: -17235794.77 | G38: 1 | H38: BS | I38: BIQEQT | J38: BIAULS | K38: 010 | L38: 1 | M38: BS | N38: EQT
A39: 2016-12-31 | B39: 0-DV-MYR-299010 | C39: DIVIDEND | D39: MYR | E39: 299010 | F39: 902630 | G39: 0 | H39: BS | I39: BADIVR | J39: BOADVL | K39: 010 | L39: 2 | M39: DR | N39: EQT
A40: 2016-12-31 | B40: 0-DV-MYR-300200 | C40: DIVIDEND | D40: MYR | E40: 300200 | F40: -167896468.5 | G40: 0 | H40: BS | I40: BLATBR | J40: BLBRLO | K40: 200 | L40: 3 | M40: CSH | N40: 0
A41: 2016-12-31 | B41: 0-DV-MYR-600010 | C41: DIVIDEND | D41: MYR | E41: 600010 | F41: -3806851.42 | G41: 0 | H41: PLR | I41: PRRGNL | J41: PRGNLO | K41: 010 | L41: 6 | M41: RG | N41: EQT
A42: 2016-12-31 | B42: 0-DV-MYR-635010 | C42: DIVIDEND | D42: MYR | E42: 635010 | F42: -14327807.1 | G42: 0 | H42: PLR | I42: PRDIVI | J42: PRDVTA | K42: 010 | L42: 6 | M42: DI | N42: EQT
A43: 2016-12-31 | B43: 0-DV-MYR-689010 | C43: DIVIDEND | D43: MYR | E43: 689010 | F43: 17235794.77 | G43: 1 | H43: PLU | I43: PUUQGL | J43: PUGINV | K43: 010 | L43: 6 | M43: CG | N43: EQT
A44: 2016-12-31 | B44: 0-DV-MYR-800000 | C44: DIVIDEND | D44: MYR | E44: 800000 | F44: -647228438.8 | G44: 0 | H44: BS | I44: BCUCAP | J44: BCUCAP | K44: 000 | L44: 8 | M44: CAP | N44: CSH
A45: 2016-12-31 | B45: 0-DV-MYR-810000 | C45: DIVIDEND | D45: MYR | E45: 810000 | F45: 187452.6 | G45: 0 | H45: BS | I45: BCURPF | J45: BSURPF | K45: 000 | L45: 8 | M45: CAP | N45: CSH
A46: 2016-12-31 | B46: 0-DV-MYR-830000 | C46: DIVIDEND | D46: MYR | E46: 830000 | F46: -122465 | G46: 0 | H46: BS | I46: PRDSEQ | J46: BSRRPF | K46: 000 | L46: 8 | M46: CAP | N46: CSH
A47: 2016-12-31 | B47: 0-DV-MYR-989010 | C47: DIVIDEND | D47: MYR | E47: 989010 | F47: -187452.6 | G47: 0 | H47: PLU | I47: PUUQGL | J47: PUGINV | K47: 010 | L47: 9 | M47: CAP | N47: EQT
A48: 2016-12-31 | B48: 0-FD-MYR-100410 | C48: FUND | D48: MYR | E48: 100410 | F48: 15000000 | G48: 0 | H48: BS | I48: BIUCIV | J48: BIACUT | K48: 410 | L48: 1 | M48: BS | N48: 0
A49: 2016-12-31 | B49: 0-FD-MYR-100430 | C49: FUND | D49: MYR | E49: 100430 | F49: 21847846.18 | G49: 0 | H49: BS | I49: BIUCIV | J49: BIACUT | K49: 430 | L49: 1 | M49: BS | N49: 0
A50: 2016-12-31 | B50: 0-FD-MYR-189410 | C50: FUND | D50: MYR | E50: 189410 | F50: 1465500 | G50: 1 | H50: BS | I50: N/A | J50: BIAUUT | K50: 410 | L50: 1 | M50: BS | N50: 0
A51: 2016-12-31 | B51: 0-FD-MYR-189430 | C51: FUND | D51: MYR | E51: 189430 | F51: 131898.98 | G51: 1 | H51: BS | I51: N/A | J51: BIAUUT | K51: 430 | L51: 1 | M51: BS | N51: 0
A52: 2016-12-31 | B52: 0-FD-MYR-299430 | C52: FUND | D52: MYR | E52: 299430 | F52: 59331.62 | G52: 0 | H52: BS | I52: BADIVR | J52: BOADVL | K52: 430 | L52: 2 | M52: DR | N52: 0
A53: 2016-12-31 | B53: 0-FD-MYR-635430 | C53: FUND | D53: MYR | E53: 635430 | F53: -201611.19 | G53: 0 | H53: PLR | I53: PRDIVI | J53: PRINMM | K53: 430 | L53: 6 | M53: DI | N53: 0
A54: 2016-12-31 | B54: 0-FD-MYR-636430 | C54: FUND | D54: MYR | E54: 636430 | F54: -546293.29 | G54: 0 | H54: PLR | I54: PRDIVI | J54: PRINMM | K54: 430 | L54: 6 | M54: DI | N54: 0
A55: 2016-12-31 | B55: 0-FD-MYR-689410 | C55: FUND | D55: MYR | E55: 689410 | F55: -1465500 | G55: 1 | H55: PLU | I55: PUUUGL | J55: PUGINV | K55: 410 | L55: 6 | M55: CG | N55: 0
A56: 2016-12-31 | B56: 0-FD-MYR-689430 | C56: FUND | D56: MYR | E56: 689430 | F56: -131898.98 | G56: 1 | H56: PLU | I56: PUUUGL | J56: PUGINV | K56: 430 | L56: 6 | M56: CG | N56: 0
A57: 2016-12-31 | B57: 0-FD-MYR-800000 | C57: FUND | D57: MYR | E57: 800000 | F57: -35238113.98 | G57: 0 | H57: BS | I57: BCUCAP | J57: BCUCAP | K57: 000 | L57: 8 | M57: CAP | N57: CSH
A58: 2016-12-31 | B58: 0-FD-MYR-810000 | C58: FUND | D58: MYR | E58: 810000 | F58: -984544.15 | G58: 0 | H58: BS | I58: BCURPF | J58: BSURPF | K58: 000 | L58: 8 | M58: CAP | N58: CSH
A59: 2016-12-31 | B59: 0-FD-MYR-830000 | C59: FUND | D59: MYR | E59: 830000 | F59: -921159.34 | G59: 0 | H59: BS | I59: PRDSEQ | J59: BSRRPF | K59: 000 | L59: 8 | M59: CAP | N59: CSH
A60: 2016-12-31 | B60: 0-FD-MYR-989410 | C60: FUND | D60: MYR | E60: 989410 | F60: 898500 | G60: 0 | H60: PLU | I60: PUUUGL | J60: PUGINV | K60: 410 | L60: 9 | M60: CAP | N60: 0
A61: 2016-12-31 | B61: 0-FD-MYR-989430 | C61: FUND | D61: MYR | E61: 989430 | F61: 86044.15 | G61: 0 | H61: PLU | I61: PUUUGL | J61: PUGINV | K61: 430 | L61: 9 | M61: CAP | N61: 0
A62: 2016-12-31 | B62: 0-GW-MYR-100010 | C62: GROWTH | D62: MYR | E62: 100010 | F62: 412949905.4 | G62: 0 | H62: BS | I62: BIQEQT | J62: BIACLS | K62: 010 | L62: 1 | M62: BS | N62: EQT
A63: 2016-12-31 | B63: 0-GW-MYR-189010 | C63: GROWTH | D63: MYR | E63: 189010 | F63: -24247435.35 | G63: 1 | H63: BS | I63: BIQEQT | J63: BIAULS | K63: 010 | L63: 1 | M63: BS | N63: EQT
A64: 2016-12-31 | B64: 0-GW-MYR-299010 | C64: GROWTH | D64: MYR | E64: 299010 | F64: 2733679 | G64: 0 | H64: BS | I64: BADIVR | J64: BOADVL | K64: 010 | L64: 2 | M64: DR | N64: EQT
A65: 2016-12-31 | B65: 0-GW-MYR-300200 | C65: GROWTH | D65: MYR | E65: 300200 | F65: -62202523.4 | G65: 0 | H65: BS | I65: BLATBR | J65: BLBRLO | K65: 200 | L65: 3 | M65: CSH | N65: 0
A66: 2016-12-31 | B66: 0-GW-MYR-600010 | C66: GROWTH | D66: MYR | E66: 600010 | F66: -363227.19 | G66: 0 | H66: PLR | I66: PRRGNL | J66: PRGNLO | K66: 010 | L66: 6 | M66: RG | N66: EQT
A67: 2016-12-31 | B67: 0-GW-MYR-635010 | C67: GROWTH | D67: MYR | E67: 635010 | F67: -8403304 | G67: 0 | H67: PLR | I67: PRDIVI | J67: PRDVTA | K67: 010 | L67: 6 | M67: DI | N67: EQT
A68: 2016-12-31 | B68: 0-GW-MYR-689010 | C68: GROWTH | D68: MYR | E68: 689010 | F68: 24247435.35 | G68: 1 | H68: PLU | I68: PUUQGL | J68: PUGINV | K68: 010 | L68: 6 | M68: CG | N68: EQT
A69: 2016-12-31 | B69: 0-GW-MYR-800000 | C69: GROWTH | D69: MYR | E69: 800000 | F69: -344714529.8 | G69: 0 | H69: BS | I69: BCUCAP | J69: BCUCAP | K69: 000 | L69: 8 | M69: CAP | N69: CSH
A70: 2016-12-31 | B70: 0-ID-MYR-100010 | C70: INDEX | D70: MYR | E70: 100010 | F70: 118160302.6 | G70: 0 | H70: BS | I70: BIQEQT | J70: BIACLS | K70: 010 | L70: 1 | M70: BS | N70: EQT
A71: 2016-12-31 | B71: 0-ID-MYR-189010 | C71: INDEX | D71: MYR | E71: 189010 | F71: 188386.53 | G71: 1 | H71: BS | I71: BIQEQT | J71: BIAULS | K71: 010 | L71: 1 | M71: BS | N71: EQT
A72: 2016-12-31 | B72: 0-ID-MYR-600010 | C72: INDEX | D72: MYR | E72: 600010 | F72: -5633.49 | G72: 0 | H72: PLR | I72: PRRGNL | J72: PRGNLO | K72: 010 | L72: 6 | M72: RG | N72: EQT
A73: 2016-12-31 | B73: 0-ID-MYR-635010 | C73: INDEX | D73: MYR | E73: 635010 | F73: -226078.95 | G73: 0 | H73: PLR | I73: PRDIVI | J73: PRDVTA | K73: 010 | L73: 6 | M73: DI | N73: EQT
A74: 2016-12-31 | B74: 0-ID-MYR-689010 | C74: INDEX | D74: MYR | E74: 689010 | F74: -188386.53 | G74: 1 | H74: PLU | I74: PUUQGL | J74: PUGINV | K74: 010 | L74: 6 | M74: CG | N74: EQT
A75: 2016-12-31 | B75: 0-ID-MYR-800000 | C75: INDEX | D75: MYR | E75: 800000 | F75: -117928590.1 | G75: 0 | H75: BS | I75: BCUCAP | J75: BCUCAP | K75: 000 | L75: 8 | M75: CAP | N75: CSH
A76: 2016-12-31 | B76: 0-ID-MYR-810000 | C76: INDEX | D76: MYR | E76: 810000 | F76: 621366.6 | G76: 0 | H76: BS | I76: BCURPF | J76: BSURPF | K76: 000 | L76: 8 | M76: CAP | N76: CSH
A77: 2016-12-31 | B77: 0-ID-MYR-989010 | C77: INDEX | D77: MYR | E77: 989010 | F77: -621366.6 | G77: 0 | H77: PLU | I77: PUUQGL | J77: PUGINV | K77: 010 | L77: 9 | M77: CAP | N77: EQT
A78: 2016-12-31 | B78: 0-OP-MYR-500000 | C78: OPR | D78: MYR | E78: 500000 | F78: 4800.12 | G78: 0 | H78: BS | I78: BABANK | J78: BOABNK | K78: 000 | L78: 5 | M78: CSH | N78: CSH
A79: 2016-12-31 | B79: 0-OP-MYR-636003 | C79: OPR | D79: MYR | E79: 636003 | F79: -33805.82 | G79: 0 | H79: PLR | I79: PROTHI | J79: PRINOT | K79: 003 | L79: 6 | M79: DI | N79: 0
A80: 2016-12-31 | B80: 0-OP-MYR-710102 | C80: OPR | D80: MYR | E80: 710102 | F80: 3794.5 | G80: 0 | H80: PLR | I80: PEEOTF | J80: PREBKC | K80: 102 | L80: 7 | M80: EX | N80: 0
A81: 2016-12-31 | B81: 0-OP-MYR-710104 | C81: OPR | D81: MYR | E81: 710104 | F81: 30194508.53 | G81: 0 | H81: PLR | I81: PEEOTF | J81: PREGEN | K81: 104 | L81: 7 | M81: EX | N81: 0
A82: 2016-12-31 | B82: 0-OP-MYR-710876 | C82: OPR | D82: MYR | E82: 710876 | F82: 112.58 | G82: 0 | H82: PLR | I82: PEEOTF | J82: PREGST | K82: 876 | L82: 7 | M82: EX | N82: 0
A83: 2016-12-31 | B83: 0-OP-MYR-800000 | C83: OPR | D83: MYR | E83: 800000 | F83: -30168932.29 | G83: 0 | H83: BS | I83: BCUCAP | J83: BCUCAP | K83: 000 | L83: 8 | M83: CAP | N83: CSH
A84: 2016-12-31 | B84: 0-OP-MYR-830000 | C84: OPR | D84: MYR | E84: 830000 | F84: -477.62 | G84: 0 | H84: BS | I84: PRDSEQ | J84: BSRRPF | K84: 000 | L84: 8 | M84: CAP | N84: CSH
A85: 2016-12-31 | B85: 0-RT-MYR-100460 | C85: REITS | D85: MYR | E85: 100460 | F85: 490154582.9 | G85: 0 | H85: BS | I85: BIQCIV | J85: BIACUT | K85: 460 | L85: 1 | M85: BS | N85: EQT
A86: 2016-12-31 | B86: 0-RT-MYR-189460 | C86: REITS | D86: MYR | E86: 189460 | F86: 11613262.08 | G86: 1 | H86: BS | I86: BIQCIV | J86: BIAUUT | K86: 460 | L86: 1 | M86: BS | N86: EQT
A87: 2016-12-31 | B87: 0-RT-MYR-299460 | C87: REITS | D87: MYR | E87: 299460 | F87: 1101278.1 | G87: 0 | H87: BS | I87: BADIVR | J87: BOADVL | K87: 460 | L87: 2 | M87: DR | N87: EQT
A88: 2016-12-31 | B88: 0-RT-MYR-300200 | C88: REITS | D88: MYR | E88: 300200 | F88: -26239305.08 | G88: 0 | H88: BS | I88: BLATBR | J88: BLBRLO | K88: 200 | L88: 3 | M88: CSH | N88: 0
A89: 2016-12-31 | B89: 0-RT-MYR-600460 | C89: REITS | D89: MYR | E89: 600460 | F89: -4431659.41 | G89: 0 | H89: PLR | I89: PRRGNL | J89: PRGNLO | K89: 460 | L89: 6 | M89: RG | N89: EQT
A90: 2016-12-31 | B90: 0-RT-MYR-635460 | C90: REITS | D90: MYR | E90: 635460 | F90: -9696652.76 | G90: 0 | H90: PLR | I90: PRDIVI | J90: PRDVTE | K90: 460 | L90: 6 | M90: DI | N90: EQT
A91: 2016-12-31 | B91: 0-RT-MYR-689460 | C91: REITS | D91: MYR | E91: 689460 | F91: -11613262.08 | G91: 1 | H91: PLU | I91: PUUQGL | J91: PUGINV | K91: 460 | L91: 6 | M91: CG | N91: EQT
A92: 2016-12-31 | B92: 0-RT-MYR-800000 | C92: REITS | D92: MYR | E92: 800000 | F92: -450835315 | G92: 0 | H92: BS | I92: BCUCAP | J92: BCUCAP | K92: 000 | L92: 8 | M92: CAP | N92: CSH
A93: 2016-12-31 | B93: 0-RT-MYR-810000 | C93: REITS | D93: MYR | E93: 810000 | F93: 14154.92 | G93: 0 | H93: BS | I93: BCURPF | J93: BSURPF | K93: 000 | L93: 8 | M93: CAP | N93: CSH
A94: 2016-12-31 | B94: 0-RT-MYR-830000 | C94: REITS | D94: MYR | E94: 830000 | F94: -52928.8 | G94: 0 | H94: BS | I94: PRDSEQ | J94: BSRRPF | K94: 000 | L94: 8 | M94: CAP | N94: CSH
A95: 2016-12-31 | B95: 0-RT-MYR-989460 | C95: REITS | D95: MYR | E95: 989460 | F95: -14154.92 | G95: 0 | H95: PLU | I95: PUUQGL | J95: PUGINV | K95: 460 | L95: 9 | M95: CAP | N95: EQT
A96: 2016-12-31 | B96: 0-SMC-MYR-100010 | C96: SMALLMIDCAP | D96: MYR | E96: 100010 | F96: 110233988.6 | G96: 0 | H96: BS | I96: BIQEQT | J96: BIACLS | K96: 010 | L96: 1 | M96: BS | N96: EQT
A97: 2016-12-31 | B97: 0-SMC-MYR-189010 | C97: SMALLMIDCAP | D97: MYR | E97: 189010 | F97: -11198081.57 | G97: 1 | H97: BS | I97: BIQEQT | J97: BIAULS | K97: 010 | L97: 1 | M97: BS | N97: EQT
A98: 2016-12-31 | B98: 0-SMC-MYR-299010 | C98: SMALLMIDCAP | D98: MYR | E98: 299010 | F98: -27465 | G98: 0 | H98: BS | I98: BADIVR | J98: BOADVL | K98: 010 | L98: 2 | M98: DR | N98: EQT
A99: 2016-12-31 | B99: 0-SMC-MYR-300200 | C99: SMALLMIDCAP | D99: MYR | E99: 300200 | F99: -23371722.76 | G99: 0 | H99: BS | I99: BLATBR | J99: BLBRLO | K99: 200 | L99: 3 | M99: CSH | N99: 0
A100: 2016-12-31 | B100: 0-SMC-MYR-600010 | C100: SMALLMIDCAP | D100: MYR | E100: 600010 | F100: -1298742.55 | G100: 0 | H100: PLR | I100: PRRGNL | J100: PRGNLO | K100: 010 | L100: 6 | M100: RG | N100: EQT
A101: 2016-12-31 | B101: 0-SMC-MYR-635010 | C101: SMALLMIDCAP | D101: MYR | E101: 635010 | F101: -3201814 | G101: 0 | H101: PLR | I101: PRDIVI | J101: PRDVTA | K101: 010 | L101: 6 | M101: DI | N101: EQT
A102: 2016-12-31 | B102: 0-SMC-MYR-689010 | C102: SMALLMIDCAP | D102: MYR | E102: 689010 | F102: 11198081.57 | G102: 1 | H102: PLU | I102: PUUQGL | J102: PUGINV | K102: 010 | L102: 6 | M102: CG | N102: EQT
A103: 2016-12-31 | B103: 0-SMC-MYR-800000 | C103: SMALLMIDCAP | D103: MYR | E103: 800000 | F103: -82334244.26 | G103: 0 | H103: BS | I103: BCUCAP | J103: BCUCAP | K103: 000 | L103: 8 | M103: CAP | N103: CSH
A104: 2016-12-31 | B104: 0-SMC-MYR-810000 | C104: SMALLMIDCAP | D104: MYR | E104: 810000 | F104: 2222.35 | G104: 0 | H104: BS | I104: BCURPF | J104: BSURPF | K104: 000 | L104: 8 | M104: CAP | N104: CSH
A105: 2016-12-31 | B105: 0-SMC-MYR-989010 | C105: SMALLMIDCAP | D105: MYR | E105: 989010 | F105: -2222.35 | G105: 0 | H105: PLU | I105: PUUQGL | J105: PUGINV | K105: 010 | L105: 9 | M105: CAP | N105: EQT
A106: 2016-12-31 | B106: 0-STFI-MYR-620120 | C106: STFI | D106: MYR | E106: 620120 | F106: -90613.15 | G106: 0 | H106: PLR | I106: BIUSEC | J106: PRDSCP | K106: 120 | L106: 6 | M106: INC | N106: BND
A107: 2016-12-31 | B107: 0-STFI-MYR-800000 | C107: STFI | D107: MYR | E107: 800000 | F107: 90613.15 | G107: 0 | H107: BS | I107: BCUCAP | J107: BCUCAP | K107: 000 | L107: 8 | M107: CAP | N107: CSH
A108: 2016-12-31 | B108: 0-TR-MYR-500000 | C108: TRA | D108: MYR | E108: 500000 | F108: 29970.32 | G108: 0 | H108: BS | I108: BABANK | J108: BOABNK | K108: 000 | L108: 5 | M108: CSH | N108: CSH
A109: 2016-12-31 | B109: 0-TR-MYR-710102 | C109: TRA | D109: MYR | E109: 710102 | F109: 28 | G109: 0 | H109: PLR | I109: PEEOTF | J109: PREBKC | K109: 102 | L109: 7 | M109: EX | N109: 0
A110: 2016-12-31 | B110: 0-TR-MYR-710876 | C110: TRA | D110: MYR | E110: 710876 | F110: 1.68 | G110: 0 | H110: PLR | I110: PEEOTF | J110: PREGST | K110: 876 | L110: 7 | M110: EX | N110: 0
A111: 2016-12-31 | B111: 0-TR-MYR-800000 | C111: TRA | D111: MYR | E111: 800000 | F111: -30000 | G111: 0 | H111: BS | I111: BCUCAP | J111: BCUCAP | K111: 000 | L111: 8 | M111: CAP | N111: CSH
A112: 2016-12-31 | B112: 0-VL-MYR-100010 | C112: VALUE | D112: MYR | E112: 100010 | F112: 909502485.7 | G112: 0 | H112: BS | I112: BIQEQT | J112: BIACLS | K112: 010 | L112: 1 | M112: BS | N112: EQT
A113: 2016-12-31 | B113: 0-VL-MYR-189010 | C113: VALUE | D113: MYR | E113: 189010 | F113: -48661305.69 | G113: 1 | H113: BS | I113: BIQEQT | J113: BIAULS | K113: 010 | L113: 1 | M113: BS | N113: EQT
A114: 2016-12-31 | B114: 0-VL-MYR-200200 | C114: VALUE | D114: MYR | E114: 200200 | F114: 10323061.68 | G114: 0 | H114: BS | I114: BAAFBR | J114: BOABRL | K114: 200 | L114: 2 | M114: CSH | N114: 0
A115: 2016-12-31 | B115: 0-VL-MYR-300200 | C115: VALUE | D115: MYR | E115: 300200 | F115: -9959270.8 | G115: 0 | H115: BS | I115: BLATBR | J115: BLBRLO | K115: 200 | L115: 3 | M115: CSH | N115: 0
A116: 2016-12-31 | B116: 0-VL-MYR-600010 | C116: VALUE | D116: MYR | E116: 600010 | F116: -21183530.91 | G116: 0 | H116: PLR | I116: PRRGNL | J116: PRGNLO | K116: 010 | L116: 6 | M116: RG | N116: EQT
A117: 2016-12-31 | B117: 0-VL-MYR-635010 | C117: VALUE | D117: MYR | E117: 635010 | F117: -36134379.79 | G117: 0 | H117: PLR | I117: PRDIVI | J117: PRDVTA | K117: 010 | L117: 6 | M117: DI | N117: EQT
A118: 2016-12-31 | B118: 0-VL-MYR-689010 | C118: VALUE | D118: MYR | E118: 689010 | F118: 48661305.69 | G118: 1 | H118: PLU | I118: PUUQGL | J118: PUGINV | K118: 010 | L118: 6 | M118: CG | N118: EQT
A119: 2016-12-31 | B119: 0-VL-MYR-800000 | C119: VALUE | D119: MYR | E119: 800000 | F119: -852474263 | G119: 0 | H119: BS | I119: BCUCAP | J119: BCUCAP | K119: 000 | L119: 8 | M119: CAP | N119: CSH
A120: 2016-12-31 | B120: 0-VL-MYR-810000 | C120: VALUE | D120: MYR | E120: 810000 | F120: 35737.54 | G120: 0 | H120: BS | I120: BCURPF | J120: BSURPF | K120: 000 | L120: 8 | M120: CAP | N120: CSH
A121: 2016-12-31 | B121: 0-VL-MYR-830000 | C121: VALUE | D121: MYR | E121: 830000 | F121: -74102.84 | G121: 0 | H121: BS | I121: PRDSEQ | J121: BSRRPF | K121: 000 | L121: 8 | M121: CAP | N121: CSH
A122: 2016-12-31 | B122: 0-VL-MYR-989010 | C122: VALUE | D122: MYR | E122: 989010 | F122: -35737.54 | G122: 0 | H122: PLU | I122: PUUQGL | J122: PUGINV | K122: 010 | L122: 9 | M122: CAP | N122: EQT
A123: 2017-01-31 | B123: 0-CH-MYR-100210 | C123: CASH | D123: MYR | E123: 100210 | F123: 1215234575 | G123: 0 | H123: BS | I123: BIRPFD | J123: BIACDP | K123: 210 | L123: 1 | M123: BS | N123: CSH
A124: 2017-01-31 | B124: 0-CH-MYR-139210 | C124: CASH | D124: MYR | E124: 139210 | F124: 5230359.38 | G124: 1 | H124: BS | I124: BAINTR | J124: BOAIND | K124: 210 | L124: 1 | M124: BS | N124: CSH
A125: 2017-01-31 | B125: 0-CH-MYR-500000 | C125: CASH | D125: MYR | E125: 500000 | F125: 950.32 | G125: 0 | H125: BS | I125: BABANK | J125: BOABNK | K125: 000 | L125: 5 | M125: CSH | N125: CSH
A126: 2017-01-31 | B126: 0-CH-MYR-630210 | C126: CASH | D126: MYR | E126: 630210 | F126: -2828239.61 | G126: 0 | H126: PLR | I126: PRINTI | J126: PRINMM | K126: 210 | L126: 6 | M126: INC | N126: CSH
A127: 2017-01-31 | B127: 0-CH-MYR-636003 | C127: CASH | D127: MYR | E127: 636003 | F127: -1544698.44 | G127: 0 | H127: PLR | I127: PROTHI | J127: PRINOT | K127: 003 | L127: 6 | M127: DI | N127: 0
A128: 2017-01-31 | B128: 0-CH-MYR-639210 | C128: CASH | D128: MYR | E128: 639210 | F128: -5230359.38 | G128: 1 | H128: PLR | I128: PRINTI | J128: PRINMM | K128: 210 | L128: 6 | M128: INC | N128: CSH
A129: 2017-01-31 | B129: 0-CH-MYR-710102 | C129: CASH | D129: MYR | E129: 710102 | F129: 245 | G129: 0 | H129: PLR | I129: PEEOTF | J129: PREBKC | K129: 102 | L129: 7 | M129: EX | N129: 0
A130: 2017-01-31 | B130: 0-CH-MYR-710876 | C130: CASH | D130: MYR | E130: 710876 | F130: 14.7 | G130: 0 | H130: PLR | I130: PEEOTF | J130: PREGST | K130: 876 | L130: 7 | M130: EX | N130: 0
A131: 2017-01-31 | B131: 0-CH-MYR-800000 | C131: CASH | D131: MYR | E131: 800000 | F131: -1141147335 | G131: 0 | H131: BS | I131: BCUCAP | J131: BCUCAP | K131: 000 | L131: 8 | M131: CAP | N131: CSH
A132: 2017-01-31 | B132: 0-CH-MYR-830000 | C132: CASH | D132: MYR | E132: 830000 | F132: -73598276.26 | G132: 0 | H132: BS | I132: PRDSEQ | J132: BSRRPF | K132: 000 | L132: 8 | M132: CAP | N132: CSH
A133: 2017-01-31 | B133: 0-CH-MYR-939210 | C133: CASH | D133: MYR | E133: 939210 | F133: 3882763.86 | G133: 0 | H133: PLR | I133: PUUUGL | J133: PRINMM | K133: 210 | L133: 9 | M133: CAP | N133: CSH
A134: 2017-01-31 | B134: 0-CR-MYR-100010 | C134: CORE | D134: MYR | E134: 100010 | F134: 940430763.8 | G134: 0 | H134: BS | I134: BIQEQT | J134: BIACLS | K134: 010 | L134: 1 | M134: BS | N134: EQT
A135: 2017-01-31 | B135: 0-CR-MYR-189010 | C135: CORE | D135: MYR | E135: 189010 | F135: -61643398.8 | G135: 1 | H135: BS | I135: BIQEQT | J135: BIAULS | K135: 010 | L135: 1 | M135: BS | N135: EQT
A136: 2017-01-31 | B136: 0-CR-MYR-299010 | C136: CORE | D136: MYR | E136: 299010 | F136: 137250 | G136: 0 | H136: BS | I136: BADIVR | J136: BOADVL | K136: 010 | L136: 2 | M136: DR | N136: EQT
A137: 2017-01-31 | B137: 0-CR-MYR-635010 | C137: CORE | D137: MYR | E137: 635010 | F137: -137250 | G137: 0 | H137: PLR | I137: PRDIVI | J137: PRDVTA | K137: 010 | L137: 6 | M137: DI | N137: EQT
A138: 2017-01-31 | B138: 0-CR-MYR-689010 | C138: CORE | D138: MYR | E138: 689010 | F138: 61643398.8 | G138: 1 | H138: PLU | I138: PUUQGL | J138: PUGINV | K138: 010 | L138: 6 | M138: CG | N138: EQT
A139: 2017-01-31 | B139: 0-CR-MYR-800000 | C139: CORE | D139: MYR | E139: 800000 | F139: -896494720.4 | G139: 0 | H139: BS | I139: BCUCAP | J139: BCUCAP | K139: 000 | L139: 8 | M139: CAP | N139: CSH
A140: 2017-01-31 | B140: 0-CR-MYR-810000 | C140: CORE | D140: MYR | E140: 810000 | F140: 61243977.29 | G140: 0 | H140: BS | I140: BCURPF | J140: BSURPF | K140: 000 | L140: 8 | M140: CAP | N140: CSH
A141: 2017-01-31 | B141: 0-CR-MYR-830000 | C141: CORE | D141: MYR | E141: 830000 | F141: -43936043.4 | G141: 0 | H141: BS | I141: PRDSEQ | J141: BSRRPF | K141: 000 | L141: 8 | M141: CAP | N141: CSH
A142: 2017-01-31 | B142: 0-CR-MYR-989010 | C142: CORE | D142: MYR | E142: 989010 | F142: -61243977.29 | G142: 0 | H142: PLU | I142: PUUQGL | J142: PUGINV | K142: 010 | L142: 9 | M142: CAP | N142: EQT
A143: 2017-01-31 | B143: 0-DS-MYR-100210 | C143: DSRA | D143: MYR | E143: 100210 | F143: 107185100 | G143: 0 | H143: BS | I143: BIRPFD | J143: BIACDP | K143: 210 | L143: 1 | M143: BS | N143: CSH
A144: 2017-01-31 | B144: 0-DS-MYR-139210 | C144: DSRA | D144: MYR | E144: 139210 | F144: 438952.47 | G144: 1 | H144: BS | I144: BAINTR | J144: BOAIND | K144: 210 | L144: 1 | M144: BS | N144: CSH
A145: 2017-01-31 | B145: 0-DS-MYR-500000 | C145: DSRA | D145: MYR | E145: 500000 | F145: 712.33 | G145: 0 | H145: BS | I145: BABANK | J145: BOABNK | K145: 000 | L145: 5 | M145: CSH | N145: CSH
A146: 2017-01-31 | B146: 0-DS-MYR-639210 | C146: DSRA | D146: MYR | E146: 639210 | F146: -438952.47 | G146: 1 | H146: PLR | I146: PRINTI | J146: PRINMM | K146: 210 | L146: 6 | M146: INC | N146: CSH
A147: 2017-01-31 | B147: 0-DS-MYR-800000 | C147: DSRA | D147: MYR | E147: 800000 | F147: -253354948.8 | G147: 0 | H147: BS | I147: BCUCAP | J147: BCUCAP | K147: 000 | L147: 8 | M147: CAP | N147: CSH
A148: 2017-01-31 | B148: 0-DS-MYR-830000 | C148: DSRA | D148: MYR | E148: 830000 | F148: 146094319.7 | G148: 0 | H148: BS | I148: PRDSEQ | J148: BSRRPF | K148: 000 | L148: 8 | M148: CAP | N148: CSH
A149: 2017-01-31 | B149: 0-DS-MYR-939210 | C149: DSRA | D149: MYR | E149: 939210 | F149: 74816.79 | G149: 0 | H149: PLR | I149: PUUUGL | J149: PRINMM | K149: 210 | L149: 9 | M149: CAP | N149: CSH
A150: 2017-01-31 | B150: 0-DV-MYR-100010 | C150: DIVIDEND | D150: MYR | E150: 100010 | F150: 835498380.3 | G150: 0 | H150: BS | I150: BIQEQT | J150: BIACLS | K150: 010 | L150: 1 | M150: BS | N150: EQT
A151: 2017-01-31 | B151: 0-DV-MYR-189010 | C151: DIVIDEND | D151: MYR | E151: 189010 | F151: -20804143.32 | G151: 1 | H151: BS | I151: BIQEQT | J151: BIAULS | K151: 010 | L151: 1 | M151: BS | N151: EQT
A152: 2017-01-31 | B152: 0-DV-MYR-200200 | C152: DIVIDEND | D152: MYR | E152: 200200 | F152: 87480.53 | G152: 0 | H152: BS | I152: BAAFBR | J152: BOABRL | K152: 200 | L152: 2 | M152: CSH | N152: 0
A153: 2017-01-31 | B153: 0-DV-MYR-299010 | C153: DIVIDEND | D153: MYR | E153: 299010 | F153: 27465 | G153: 0 | H153: BS | I153: BADIVR | J153: BOADVL | K153: 010 | L153: 2 | M153: DR | N153: EQT
A154: 2017-01-31 | B154: 0-DV-MYR-300200 | C154: DIVIDEND | D154: MYR | E154: 300200 | F154: -3655089.73 | G154: 0 | H154: BS | I154: BLATBR | J154: BLBRLO | K154: 200 | L154: 3 | M154: CSH | N154: 0
A155: 2017-01-31 | B155: 0-DV-MYR-600010 | C155: DIVIDEND | D155: MYR | E155: 600010 | F155: -40230.33 | G155: 0 | H155: PLR | I155: PRRGNL | J155: PRGNLO | K155: 010 | L155: 6 | M155: RG | N155: EQT
A156: 2017-01-31 | B156: 0-DV-MYR-689010 | C156: DIVIDEND | D156: MYR | E156: 689010 | F156: 20804143.32 | G156: 1 | H156: PLU | I156: PUUQGL | J156: PUGINV | K156: 010 | L156: 6 | M156: CG | N156: EQT
A157: 2017-01-31 | B157: 0-DV-MYR-800000 | C157: DIVIDEND | D157: MYR | E157: 800000 | F157: -813660882.3 | G157: 0 | H157: BS | I157: BCUCAP | J157: BCUCAP | K157: 000 | L157: 8 | M157: CAP | N157: CSH
A158: 2017-01-31 | B158: 0-DV-MYR-810000 | C158: DIVIDEND | D158: MYR | E158: 810000 | F158: 17235794.77 | G158: 0 | H158: BS | I158: BCURPF | J158: BSURPF | K158: 000 | L158: 8 | M158: CAP | N158: CSH
A159: 2017-01-31 | B159: 0-DV-MYR-830000 | C159: DIVIDEND | D159: MYR | E159: 830000 | F159: -18257123.52 | G159: 0 | H159: BS | I159: PRDSEQ | J159: BSRRPF | K159: 000 | L159: 8 | M159: CAP | N159: CSH
A160: 2017-01-31 | B160: 0-DV-MYR-989010 | C160: DIVIDEND | D160: MYR | E160: 989010 | F160: -17235794.77 | G160: 0 | H160: PLU | I160: PUUQGL | J160: PUGINV | K160: 010 | L160: 9 | M160: CAP | N160: EQT
A161: 2017-01-31 | B161: 0-FD-MYR-100410 | C161: FUND | D161: MYR | E161: 100410 | F161: 15000000 | G161: 0 | H161: BS | I161: BIUCIV | J161: BIACUT | K161: 410 | L161: 1 | M161: BS | N161: 0
A162: 2017-01-31 | B162: 0-FD-MYR-189410 | C162: FUND | D162: MYR | E162: 189410 | F162: 1944000 | G162: 1 | H162: BS | I162: N/A | J162: BIAUUT | K162: 410 | L162: 1 | M162: BS | N162: 0
A163: 2017-01-31 | B163: 0-FD-MYR-600430 | C163: FUND | D163: MYR | E163: 600430 | F163: -101329.1 | G163: 0 | H163: PLR | I163: PRRGNL | J163: PRGNLO | K163: 430 | L163: 6 | M163: RG | N163: 0
A164: 2017-01-31 | B164: 0-FD-MYR-689410 | C164: FUND | D164: MYR | E164: 689410 | F164: -1944000 | G164: 1 | H164: PLU | I164: PUUUGL | J164: PUGINV | K164: 410 | L164: 6 | M164: CG | N164: 0
A165: 2017-01-31 | B165: 0-FD-MYR-800000 | C165: FUND | D165: MYR | E165: 800000 | F165: -13229607.08 | G165: 0 | H165: BS | I165: BCUCAP | J165: BCUCAP | K165: 000 | L165: 8 | M165: CAP | N165: CSH
A166: 2017-01-31 | B166: 0-FD-MYR-810000 | C166: FUND | D166: MYR | E166: 810000 | F166: -1597398.98 | G166: 0 | H166: BS | I166: BCURPF | J166: BSURPF | K166: 000 | L166: 8 | M166: CAP | N166: CSH
A167: 2017-01-31 | B167: 0-FD-MYR-830000 | C167: FUND | D167: MYR | E167: 830000 | F167: -1669063.82 | G167: 0 | H167: BS | I167: PRDSEQ | J167: BSRRPF | K167: 000 | L167: 8 | M167: CAP | N167: CSH
A168: 2017-01-31 | B168: 0-FD-MYR-989410 | C168: FUND | D168: MYR | E168: 989410 | F168: 1465500 | G168: 0 | H168: PLU | I168: PUUUGL | J168: PUGINV | K168: 410 | L168: 9 | M168: CAP | N168: 0
A169: 2017-01-31 | B169: 0-FD-MYR-989430 | C169: FUND | D169: MYR | E169: 989430 | F169: 131898.98 | G169: 0 | H169: PLU | I169: PUUUGL | J169: PUGINV | K169: 430 | L169: 9 | M169: CAP | N169: 0
A170: 2017-01-31 | B170: 0-GW-MYR-100010 | C170: GROWTH | D170: MYR | E170: 100010 | F170: 277975851.3 | G170: 0 | H170: BS | I170: BIQEQT | J170: BIACLS | K170: 010 | L170: 1 | M170: BS | N170: EQT
A171: 2017-01-31 | B171: 0-GW-MYR-189010 | C171: GROWTH | D171: MYR | E171: 189010 | F171: -17622529.27 | G171: 1 | H171: BS | I171: BIQEQT | J171: BIAULS | K171: 010 | L171: 1 | M171: BS | N171: EQT
A172: 2017-01-31 | B172: 0-GW-MYR-200200 | C172: GROWTH | D172: MYR | E172: 200200 | F172: 253795.73 | G172: 0 | H172: BS | I172: BAAFBR | J172: BOABRL | K172: 200 | L172: 2 | M172: CSH | N172: 0
A173: 2017-01-31 | B173: 0-GW-MYR-300200 | C173: GROWTH | D173: MYR | E173: 300200 | F173: -11567267.04 | G173: 0 | H173: BS | I173: BLATBR | J173: BLBRLO | K173: 200 | L173: 3 | M173: CSH | N173: 0
A174: 2017-01-31 | B174: 0-GW-MYR-600010 | C174: GROWTH | D174: MYR | E174: 600010 | F174: -3457228.29 | G174: 0 | H174: PLR | I174: PRRGNL | J174: PRGNLO | K174: 010 | L174: 6 | M174: RG | N174: EQT
A175: 2017-01-31 | B175: 0-GW-MYR-689010 | C175: GROWTH | D175: MYR | E175: 689010 | F175: 17622529.27 | G175: 1 | H175: PLU | I175: PUUQGL | J175: PUGINV | K175: 010 | L175: 6 | M175: CG | N175: EQT
A176: 2017-01-31 | B176: 0-GW-MYR-800000 | C176: GROWTH | D176: MYR | E176: 800000 | F176: -254438620.5 | G176: 0 | H176: BS | I176: BCUCAP | J176: BCUCAP | K176: 000 | L176: 8 | M176: CAP | N176: CSH
A177: 2017-01-31 | B177: 0-GW-MYR-810000 | C177: GROWTH | D177: MYR | E177: 810000 | F177: 24247435.35 | G177: 0 | H177: BS | I177: BCURPF | J177: BSURPF | K177: 000 | L177: 8 | M177: CAP | N177: CSH
A178: 2017-01-31 | B178: 0-GW-MYR-830000 | C178: GROWTH | D178: MYR | E178: 830000 | F178: -8766531.19 | G178: 0 | H178: BS | I178: PRDSEQ | J178: BSRRPF | K178: 000 | L178: 8 | M178: CAP | N178: CSH
A179: 2017-01-31 | B179: 0-GW-MYR-989010 | C179: GROWTH | D179: MYR | E179: 989010 | F179: -24247435.35 | G179: 0 | H179: PLU | I179: PUUQGL | J179: PUGINV | K179: 010 | L179: 9 | M179: CAP | N179: EQT
A180: 2017-01-31 | B180: 0-ID-MYR-100010 | C180: INDEX | D180: MYR | E180: 100010 | F180: 118160302.6 | G180: 0 | H180: BS | I180: BIQEQT | J180: BIACLS | K180: 010 | L180: 1 | M180: BS | N180: EQT
A181: 2017-01-31 | B181: 0-ID-MYR-189010 | C181: INDEX | D181: MYR | E181: 189010 | F181: 501924.93 | G181: 1 | H181: BS | I181: BIQEQT | J181: BIAULS | K181: 010 | L181: 1 | M181: BS | N181: EQT
A182: 2017-01-31 | B182: 0-ID-MYR-689010 | C182: INDEX | D182: MYR | E182: 689010 | F182: -501924.93 | G182: 1 | H182: PLU | I182: PUUQGL | J182: PUGINV | K182: 010 | L182: 6 | M182: CG | N182: EQT
A183: 2017-01-31 | B183: 0-ID-MYR-800000 | C183: INDEX | D183: MYR | E183: 800000 | F183: -117928590.1 | G183: 0 | H183: BS | I183: BCUCAP | J183: BCUCAP | K183: 000 | L183: 8 | M183: CAP | N183: CSH
A184: 2017-01-31 | B184: 0-ID-MYR-810000 | C184: INDEX | D184: MYR | E184: 810000 | F184: -188386.53 | G184: 0 | H184: BS | I184: BCURPF | J184: BSURPF | K184: 000 | L184: 8 | M184: CAP | N184: CSH
A185: 2017-01-31 | B185: 0-ID-MYR-830000 | C185: INDEX | D185: MYR | E185: 830000 | F185: -231712.44 | G185: 0 | H185: BS | I185: PRDSEQ | J185: BSRRPF | K185: 000 | L185: 8 | M185: CAP | N185: CSH
A186: 2017-01-31 | B186: 0-ID-MYR-989010 | C186: INDEX | D186: MYR | E186: 989010 | F186: 188386.53 | G186: 0 | H186: PLU | I186: PUUQGL | J186: PUGINV | K186: 010 | L186: 9 | M186: CAP | N186: EQT
A187: 2017-01-31 | B187: 0-OP-MYR-500000 | C187: OPR | D187: MYR | E187: 500000 | F187: 4551.76 | G187: 0 | H187: BS | I187: BABANK | J187: BOABNK | K187: 000 | L187: 5 | M187: CSH | N187: CSH
A188: 2017-01-31 | B188: 0-OP-MYR-636003 | C188: OPR | D188: MYR | E188: 636003 | F188: -1242.78 | G188: 0 | H188: PLR | I188: PROTHI | J188: PRINOT | K188: 003 | L188: 6 | M188: DI | N188: 0
A189: 2017-01-31 | B189: 0-OP-MYR-710102 | C189: OPR | D189: MYR | E189: 710102 | F189: 897.62 | G189: 0 | H189: PLR | I189: PEEOTF | J189: PREBKC | K189: 102 | L189: 7 | M189: EX | N189: 0
A190: 2017-01-31 | B190: 0-OP-MYR-710104 | C190: OPR | D190: MYR | E190: 710104 | F190: 4089083.2 | G190: 0 | H190: PLR | I190: PEEOTF | J190: PREGEN | K190: 104 | L190: 7 | M190: EX | N190: 0
A191: 2017-01-31 | B191: 0-OP-MYR-710876 | C191: OPR | D191: MYR | E191: 710876 | F191: 10.32 | G191: 0 | H191: PLR | I191: PEEOTF | J191: PREGST | K191: 876 | L191: 7 | M191: EX | N191: 0
A192: 2017-01-31 | B192: 0-OP-MYR-800000 | C192: OPR | D192: MYR | E192: 800000 | F192: -34257432.29 | G192: 0 | H192: BS | I192: BCUCAP | J192: BCUCAP | K192: 000 | L192: 8 | M192: CAP | N192: CSH
A193: 2017-01-31 | B193: 0-OP-MYR-830000 | C193: OPR | D193: MYR | E193: 830000 | F193: 30164132.17 | G193: 0 | H193: BS | I193: PRDSEQ | J193: BSRRPF | K193: 000 | L193: 8 | M193: CAP | N193: CSH
A194: 2017-01-31 | B194: 0-RT-MYR-100460 | C194: REITS | D194: MYR | E194: 100460 | F194: 753222068.1 | G194: 0 | H194: BS | I194: BIQCIV | J194: BIACUT | K194: 460 | L194: 1 | M194: BS | N194: EQT
A195: 2017-01-31 | B195: 0-RT-MYR-189460 | C195: REITS | D195: MYR | E195: 189460 | F195: 25111433.9 | G195: 1 | H195: BS | I195: BIQCIV | J195: BIAUUT | K195: 460 | L195: 1 | M195: BS | N195: EQT
A196: 2017-01-31 | B196: 0-RT-MYR-200200 | C196: REITS | D196: MYR | E196: 200200 | F196: 804551.86 | G196: 0 | H196: BS | I196: BAAFBR | J196: BOABRL | K196: 200 | L196: 2 | M196: CSH | N196: 0
A197: 2017-01-31 | B197: 0-RT-MYR-300200 | C197: REITS | D197: MYR | E197: 300200 | F197: -87196719.45 | G197: 0 | H197: BS | I197: BLATBR | J197: BLBRLO | K197: 200 | L197: 3 | M197: CSH | N197: 0
A198: 2017-01-31 | B198: 0-RT-MYR-500000 | C198: REITS | D198: MYR | E198: 500000 | F198: 0 | G198: 0 | H198: BS | I198: BABANK | J198: BOABNK | K198: 000 | L198: 5 | M198: CSH | N198: CSH
A199: 2017-01-31 | B199: 0-RT-MYR-600460 | C199: REITS | D199: MYR | E199: 600460 | F199: -50097.79 | G199: 0 | H199: PLR | I199: PRRGNL | J199: PRGNLO | K199: 460 | L199: 6 | M199: RG | N199: EQT
A200: 2017-01-31 | B200: 0-RT-MYR-689460 | C200: REITS | D200: MYR | E200: 689460 | F200: -25111433.9 | G200: 1 | H200: PLU | I200: PUUQGL | J200: PUGINV | K200: 460 | L200: 6 | M200: CG | N200: EQT
... 858 more rows

Sheet SBLSummary
N1: =I1*(1-M1) -> 0 | O1: =MONTH(A1) -> 1
A2: InterestDate | B2: qFundCode | C2: qStockCode | D2: StockName | E2: ParcelID | F2: UnitFaceValue | G2: PriceCurr | H2: ValueYTM | I2: DailyInterest | J2: PayDate | K2: CPName | L2: StockCurrency | M2: qRank | N2: Value | O2: Month
A3: 2017-07-05 | B3: REITS | C3: 5109 | D3: YTLREIT | E3: SBL*170700001 | F3: 50000 | G3: 1.17 | H3: 1 | I3: 1.6 | J3: 2017-07-05 | K3: AFFIN HWANG INVESTMENT BANK BHD | L3: MYR | M3: 0.2 | N3: 1.28 | O3: 7
A4: 2017-07-06 | B4: REITS | C4: 5109 | D4: YTLREIT | E4: SBL*170700001 | F4: 50000 | G4: 1.18 | H4: 1 | I4: 1.62 | J4: 2017-07-05 | K4: AFFIN HWANG INVESTMENT BANK BHD | L4: MYR | M4: 0.2 | N4: 1.296 | O4: 7
A5: 2017-07-07 | B5: REITS | C5: 5109 | D5: YTLREIT | E5: SBL*170700001 | F5: 50000 | G5: 1.18 | H5: 1 | I5: 1.62 | J5: 2017-07-05 | K5: AFFIN HWANG INVESTMENT BANK BHD | L5: MYR | M5: 0.2 | N5: 1.296 | O5: 7
A6: 2017-07-08 | B6: REITS | C6: 5109 | D6: YTLREIT | E6: SBL*170700001 | F6: 50000 | G6: 1.19 | H6: 1 | I6: 1.63 | J6: 2017-07-05 | K6: AFFIN HWANG INVESTMENT BANK BHD | L6: MYR | M6: 0.2 | N6: 1.304 | O6: 7
A7: 2017-07-09 | B7: REITS | C7: 5109 | D7: YTLREIT | E7: SBL*170700001 | F7: 50000 | G7: 1.19 | H7: 1 | I7: 1.63 | J7: 2017-07-05 | K7: AFFIN HWANG INVESTMENT BANK BHD | L7: MYR | M7: 0.2 | N7: 1.304 | O7: 7
A8: 2017-08-18 | B8: DIVIDEND | C8: 8583 | D8: MAHSING | E8: SBL*170800002 | F8: 1700000 | G8: 1.57 | H8: 3.25 | I8: 237.65 | J8: 2017-08-18 | K8: CIMB INVESTMENT BANK BHD | L8: MYR | M8: 0 | N8: 237.65 | O8: 8
A9: 2017-08-19 | B9: DIVIDEND | C9: 8583 | D9: MAHSING | E9: SBL*170800002 | F9: 1700000 | G9: 1.55 | H9: 3.25 | I9: 234.62 | J9: 2017-08-18 | K9: CIMB INVESTMENT BANK BHD | L9: MYR | M9: 0 | N9: 234.62 | O9: 8
A10: 2017-08-20 | B10: DIVIDEND | C10: 8583 | D10: MAHSING | E10: SBL*170800002 | F10: 1700000 | G10: 1.55 | H10: 3.25 | I10: 234.62 | J10: 2017-08-18 | K10: CIMB INVESTMENT BANK BHD | L10: MYR | M10: 0 | N10: 234.62 | O10: 8
A11: 2017-08-21 | B11: DIVIDEND | C11: 8583 | D11: MAHSING | E11: SBL*170800002 | F11: 1700000 | G11: 1.55 | H11: 3.25 | I11: 234.62 | J11: 2017-08-18 | K11: CIMB INVESTMENT BANK BHD | L11: MYR | M11: 0 | N11: 234.62 | O11: 8
A12: 2017-08-22 | B12: DIVIDEND | C12: 8583 | D12: MAHSING | E12: SBL*170800002 | F12: 1700000 | G12: 1.57 | H12: 3.25 | I12: 237.65 | J12: 2017-08-18 | K12: CIMB INVESTMENT BANK BHD | L12: MYR | M12: 0 | N12: 237.65 | O12: 8
A13: 2017-08-23 | B13: DIVIDEND | C13: 8583 | D13: MAHSING | E13: SBL*170800002 | F13: 1700000 | G13: 1.55 | H13: 3.25 | I13: 234.62 | J13: 2017-08-18 | K13: CIMB INVESTMENT BANK BHD | L13: MYR | M13: 0 | N13: 234.62 | O13: 8
A14: 2017-08-24 | B14: DIVIDEND | C14: 8583 | D14: MAHSING | E14: SBL*170800002 | F14: 1700000 | G14: 1.54 | H14: 3.25 | I14: 233.11 | J14: 2017-08-18 | K14: CIMB INVESTMENT BANK BHD | L14: MYR | M14: 0 | N14: 233.11 | O14: 8
A15: 2017-08-25 | B15: DIVIDEND | C15: 8583 | D15: MAHSING | E15: SBL*170800002 | F15: 1700000 | G15: 1.55 | H15: 3.25 | I15: 234.62 | J15: 2017-08-18 | K15: CIMB INVESTMENT BANK BHD | L15: MYR | M15: 0 | N15: 234.62 | O15: 8
A16: 2017-08-26 | B16: DIVIDEND | C16: 8583 | D16: MAHSING | E16: SBL*170800002 | F16: 1700000 | G16: 1.57 | H16: 3.25 | I16: 237.65 | J16: 2017-08-18 | K16: CIMB INVESTMENT BANK BHD | L16: MYR | M16: 0 | N16: 237.65 | O16: 8
A17: 2017-08-27 | B17: DIVIDEND | C17: 8583 | D17: MAHSING | E17: SBL*170800002 | F17: 1700000 | G17: 1.57 | H17: 3.25 | I17: 237.65 | J17: 2017-08-18 | K17: CIMB INVESTMENT BANK BHD | L17: MYR | M17: 0 | N17: 237.65 | O17: 8
A18: 2017-08-28 | B18: DIVIDEND | C18: 8583 | D18: MAHSING | E18: SBL*170800002 | F18: 1700000 | G18: 1.57 | H18: 3.25 | I18: 237.65 | J18: 2017-08-18 | K18: CIMB INVESTMENT BANK BHD | L18: MYR | M18: 0 | N18: 237.65 | O18: 8
A19: 2017-08-29 | B19: DIVIDEND | C19: 8583 | D19: MAHSING | E19: SBL*170800002 | F19: 1700000 | G19: 1.58 | H19: 3.25 | I19: 239.16 | J19: 2017-08-18 | K19: CIMB INVESTMENT BANK BHD | L19: MYR | M19: 0 | N19: 239.16 | O19: 8
A20: 2017-08-30 | B20: DIVIDEND | C20: 8583 | D20: MAHSING | E20: SBL*170800002 | F20: 1700000 | G20: 1.49 | H20: 3.25 | I20: 225.54 | J20: 2017-08-18 | K20: CIMB INVESTMENT BANK BHD | L20: MYR | M20: 0 | N20: 225.54 | O20: 8
A21: 2017-08-31 | B21: DIVIDEND | C21: 8583 | D21: MAHSING | E21: SBL*170800002 | F21: 1700000 | G21: 1.48 | H21: 3.25 | I21: 224.03 | J21: 2017-08-18 | K21: CIMB INVESTMENT BANK BHD | L21: MYR | M21: 0 | N21: 224.03 | O21: 8

Sheet InCalROI
I1: =IF(D1=0,E1,E1) -> 0 | J1: =IFERROR(IF(OR(C1="ALL",C1="NULL"),C1,VLOOKUP(C1,AccTypeRef!$A:$D,4,0)),"") ->  | K1: =IF($A1=ValueDate,$G1,0) -> 0 | L1: =IF($A1=LastMonth,$G1,0) -> 0 | M1: =IF($A1=EOMONTH(LastYear,3),$G1,0) -> 0 | N1: =IF($A1=EOMONTH(LastYear,6),$G1,0) -> 0 | O1: =IF($A1=EOMONTH(LastYear,9),$G1,0) -> 0
A2: TBDate | B2: qFundCode | C2: qAccType | D2: TotIncome | E2: TotHolding | F2: TotExpenses | G2: WorkingDay | H2: ROI | I2: CalHolding | J2: AssetClass | K2: VD | L2: LM | M2: D3 | N2: D6 | O2: D9
A3: 2017-08-31 | B3: CASH | C3: NULL | D3: 5802934.41 | E3: 0 | F3: 1838.2 | G3: 0 | H3: 0 | I3: 0 | J3: NULL | K3: 0 | L3: 0 | M3: 0 | N3: 0 | O3: 0
A4: 2017-08-31 | B4: CASH | C4: BDCG | D4: 0 | E4: 0 | F4: 0 | G4: 0 | H4: 0 | I4: 0 | J4: BND | K4: 0 | L4: 0 | M4: 0 | N4: 0 | O4: 0
A5: 2017-08-31 | B5: CASH | C5: CSMM | D5: 35784733.96 | E5: 345802719825 | F5: 0 | G5: 243 | H5: 0.02514639 | I5: 345802719825 | J5: CSH | K5: 243 | L5: 0 | M5: 0 | N5: 0 | O5: 0
A6: 2017-08-31 | B6: CASH | C6: SHLI | D6: 0 | E6: 0 | F6: 0 | G6: 0 | H6: 0 | I6: 0 | J6: EQT | K6: 0 | L6: 0 | M6: 0 | N6: 0 | O6: 0
A7: 2017-08-31 | B7: CASH | C7: ALL | D7: 41587668.37 | E7: 345802719825 | F7: 1838.2 | G7: 243 | H7: 0.0292229 | I7: 345802719825 | J7: ALL | K7: 243 | L7: 0 | M7: 0 | N7: 0 | O7: 0
A8: 2017-08-31 | B8: CORE | C8: NULL | D8: 0 | E8: 0 | F8: 0 | G8: 0 | H8: 0 | I8: 0 | J8: NULL | K8: 0 | L8: 0 | M8: 0 | N8: 0 | O8: 0
A9: 2017-08-31 | B9: CORE | C9: SHLI | D9: 56317844.34 | E9: 2.376560802e+11 | F9: 0 | G9: 243 | H9: 0.0575842 | I9: 2.376560802e+11 | J9: EQT | K9: 243 | L9: 0 | M9: 0 | N9: 0 | O9: 0
A10: 2017-08-31 | B10: CORE | C10: ALL | D10: 56317844.34 | E10: 2.376560802e+11 | F10: 0 | G10: 243 | H10: 0.0575842 | I10: 2.376560802e+11 | J10: ALL | K10: 243 | L10: 0 | M10: 0 | N10: 0 | O10: 0
A11: 2017-08-31 | B11: DIVIDEND | C11: NULL | D11: 0 | E11: 0 | F11: 0 | G11: 0 | H11: 0 | I11: 0 | J11: NULL | K11: 0 | L11: 0 | M11: 0 | N11: 0 | O11: 0
A12: 2017-08-31 | B12: DIVIDEND | C12: SBLL | D12: 3283.19 | E12: 0 | F12: 0 | G12: 0 | H12: 0 | I12: 0 | J12: NA | K12: 0 | L12: 0 | M12: 0 | N12: 0 | O12: 0
A13: 2017-08-31 | B13: DIVIDEND | C13: SHLI | D13: 61149545.07 | E13: 1.944939188e+11 | F13: 0 | G13: 243 | H13: 0.07640002 | I13: 1.944939188e+11 | J13: EQT | K13: 243 | L13: 0 | M13: 0 | N13: 0 | O13: 0
A14: 2017-08-31 | B14: DIVIDEND | C14: ALL | D14: 61152828.26 | E14: 1.944939188e+11 | F14: 0 | G14: 243 | H14: 0.07640412 | I14: 1.944939188e+11 | J14: ALL | K14: 243 | L14: 0 | M14: 0 | N14: 0 | O14: 0
A15: 2017-08-31 | B15: DSRA | C15: NULL | D15: 0 | E15: 0 | F15: 107185568.2 | G15: 0 | H15: 0 | I15: 0 | J15: NULL | K15: 0 | L15: 0 | M15: 0 | N15: 0 | O15: 0
A16: 2017-08-31 | B16: DSRA | C16: CSMM | D16: 3189373.66 | E16: 29127604900 | F16: 0 | G16: 243 | H16: 0.02660767 | I16: 29127604900 | J16: CSH | K16: 243 | L16: 0 | M16: 0 | N16: 0 | O16: 0
A17: 2017-08-31 | B17: DSRA | C17: ALL | D17: 3189373.66 | E17: 29127604900 | F17: 107185568.2 | G17: 243 | H17: -0.86759881 | I17: 29127604900 | J17: ALL | K17: 243 | L17: 0 | M17: 0 | N17: 0 | O17: 0
A18: 2017-08-31 | B18: FUND | C18: NULL | D18: 0 | E18: 0 | F18: 0 | G18: 0 | H18: 0 | I18: 0 | J18: NULL | K18: 0 | L18: 0 | M18: 0 | N18: 0 | O18: 0
A19: 2017-08-31 | B19: FUND | C19: UTCX | D19: 101329.1 | E19: 655435385.4 | F19: 0 | G19: 30 | H19: 0.00463794 | I19: 655435385.4 | J19: FMM | K19: 30 | L19: 0 | M19: 0 | N19: 0 | O19: 0
A20: 2017-08-31 | B20: FUND | C20: UTEX | D20: 600000 | E20: 4891000000 | F20: 0 | G20: 243 | H20: 0.02980985 | I20: 4891000000 | J20: FEQ | K20: 243 | L20: 0 | M20: 0 | N20: 0 | O20: 0
A21: 2017-08-31 | B21: FUND | C21: ALL | D21: 701329.1 | E21: 5546435385 | F21: 0 | G21: 243 | H21: 0.03072658 | I21: 5546435385 | J21: ALL | K21: 243 | L21: 0 | M21: 0 | N21: 0 | O21: 0
A22: 2017-08-31 | B22: GROWTH | C22: NULL | D22: 0 | E22: 0 | F22: 0 | G22: 0 | H22: 0 | I22: 0 | J22: NULL | K22: 0 | L22: 0 | M22: 0 | N22: 0 | O22: 0
A23: 2017-08-31 | B23: GROWTH | C23: SHLI | D23: 41425132.21 | E23: 1.894685773e+11 | F23: 0 | G23: 243 | H23: 0.05312916 | I23: 1.894685773e+11 | J23: EQT | K23: 243 | L23: 0 | M23: 0 | N23: 0 | O23: 0
A24: 2017-08-31 | B24: GROWTH | C24: ALL | D24: 41425132.21 | E24: 1.894685773e+11 | F24: 0 | G24: 243 | H24: 0.05312916 | I24: 1.894685773e+11 | J24: ALL | K24: 243 | L24: 0 | M24: 0 | N24: 0 | O24: 0
A25: 2017-08-31 | B25: INDEX | C25: NULL | D25: 0 | E25: 0 | F25: 0 | G25: 0 | H25: 0 | I25: 0 | J25: NULL | K25: 0 | L25: 0 | M25: 0 | N25: 0 | O25: 0
A26: 2017-08-31 | B26: INDEX | C26: SHLI | D26: 2239725.6 | E26: 2.861412986e+10 | F26: 0 | G26: 243 | H26: 0.01902044 | I26: 2.861412986e+10 | J26: EQT | K26: 243 | L26: 0 | M26: 0 | N26: 0 | O26: 0
A27: 2017-08-31 | B27: INDEX | C27: ALL | D27: 2239725.6 | E27: 2.861412986e+10 | F27: 0 | G27: 243 | H27: 0.01902044 | I27: 2.861412986e+10 | J27: ALL | K27: 243 | L27: 0 | M27: 0 | N27: 0 | O27: 0
A28: 2017-08-31 | B28: OPR | C28: NULL | D28: 78224.91 | E28: 0 | F28: 28222754.23 | G28: 0 | H28: 0 | I28: 0 | J28: NULL | K28: 0 | L28: 0 | M28: 0 | N28: 0 | O28: 0
A29: 2017-08-31 | B29: OPR | C29: ALL | D29: 78224.91 | E29: 0 | F29: 28222754.23 | G29: 0 | H29: 0 | I29: 0 | J29: ALL | K29: 0 | L29: 0 | M29: 0 | N29: 0 | O29: 0
A30: 2017-08-31 | B30: REITS | C30: NULL | D30: 0 | E30: 0 | F30: -0.39 | G30: 0 | H30: 0 | I30: 0 | J30: NULL | K30: 0 | L30: 0 | M30: 0 | N30: 0 | O30: 0
A31: 2017-08-31 | B31: REITS | C31: REIT | D31: 34433786.62 | E31: 2.170955443e+11 | F31: 0 | G31: 243 | H31: 0.03854252 | I31: 2.170955443e+11 | J31: EQT | K31: 243 | L31: 0 | M31: 0 | N31: 0 | O31: 0
A32: 2017-08-31 | B32: REITS | C32: SBLL | D32: 6.48 | E32: 0 | F32: 0 | G32: 0 | H32: 0 | I32: 0 | J32: NA | K32: 0 | L32: 0 | M32: 0 | N32: 0 | O32: 0
A33: 2017-08-31 | B33: REITS | C33: ALL | D33: 34433793.1 | E33: 2.170955443e+11 | F33: -0.39 | G33: 243 | H33: 0.03854253 | I33: 2.170955443e+11 | J33: ALL | K33: 243 | L33: 0 | M33: 0 | N33: 0 | O33: 0
A34: 2017-08-31 | B34: SMALLMIDCAP | C34: NULL | D34: 0 | E34: 0 | F34: 0 | G34: 0 | H34: 0 | I34: 0 | J34: NULL | K34: 0 | L34: 0 | M34: 0 | N34: 0 | O34: 0
A35: 2017-08-31 | B35: SMALLMIDCAP | C35: SHLI | D35: 3113479 | E35: 3.626399138e+10 | F35: 0 | G35: 243 | H35: 0.02086299 | I35: 3.626399138e+10 | J35: EQT | K35: 243 | L35: 0 | M35: 0 | N35: 0 | O35: 0
A36: 2017-08-31 | B36: SMALLMIDCAP | C36: ALL | D36: 3113479 | E36: 3.626399138e+10 | F36: 0 | G36: 243 | H36: 0.02086299 | I36: 3.626399138e+10 | J36: ALL | K36: 243 | L36: 0 | M36: 0 | N36: 0 | O36: 0
A37: 2017-08-31 | B37: STFI | C37: NULL | D37: 0 | E37: 0 | F37: 0 | G37: 0 | H37: 0 | I37: 0 | J37: NULL | K37: 0 | L37: 0 | M37: 0 | N37: 0 | O37: 0
A38: 2017-08-31 | B38: STFI | C38: BDCP | D38: 0 | E38: 0 | F38: 0 | G38: 0 | H38: 0 | I38: 0 | J38: CPR | K38: 0 | L38: 0 | M38: 0 | N38: 0 | O38: 0
A39: 2017-08-31 | B39: STFI | C39: ALL | D39: 0 | E39: 0 | F39: 0 | G39: 0 | H39: 0 | I39: 0 | J39: ALL | K39: 0 | L39: 0 | M39: 0 | N39: 0 | O39: 0
A40: 2017-08-31 | B40: TRA | C40: NULL | D40: 0 | E40: 0 | F40: 31.8 | G40: 0 | H40: 0 | I40: 0 | J40: NULL | K40: 0 | L40: 0 | M40: 0 | N40: 0 | O40: 0
A41: 2017-08-31 | B41: TRA | C41: ALL | D41: 0 | E41: 0 | F41: 31.8 | G41: 0 | H41: 0 | I41: 0 | J41: ALL | K41: 0 | L41: 0 | M41: 0 | N41: 0 | O41: 0
A42: 2017-08-31 | B42: VALUE | C42: NULL | D42: 0 | E42: 0 | F42: 0 | G42: 0 | H42: 0 | I42: 0 | J42: NULL | K42: 0 | L42: 0 | M42: 0 | N42: 0 | O42: 0
A43: 2017-08-31 | B43: VALUE | C43: SHLI | D43: 52646675.09 | E43: 1.518795575e+11 | F43: 0 | G43: 243 | H43: 0.08423215 | I43: 1.518795575e+11 | J43: EQT | K43: 243 | L43: 0 | M43: 0 | N43: 0 | O43: 0
A44: 2017-08-31 | B44: VALUE | C44: ALL | D44: 52646675.09 | E44: 1.518795575e+11 | F44: 0 | G44: 243 | H44: 0.08423215 | I44: 1.518795575e+11 | J44: ALL | K44: 243 | L44: 0 | M44: 0 | N44: 0 | O44: 0
A45: 2017-07-31 | B45: CASH | C45: NULL | D45: 5197064.71 | E45: 0 | F45: 1626.2 | G45: 0 | H45: 0 | I45: 0 | J45: NULL | K45: 0 | L45: 0 | M45: 0 | N45: 0 | O45: 0
A46: 2017-07-31 | B46: CASH | C46: BDCG | D46: 0 | E46: 0 | F46: 0 | G46: 0 | H46: 0 | I46: 0 | J46: BND | K46: 0 | L46: 0 | M46: 0 | N46: 0 | O46: 0
A47: 2017-07-31 | B47: CASH | C47: CSMM | D47: 32593507.81 | E47: 314163275825 | F47: 0 | G47: 212 | H47: 0.02199437 | I47: 314163275825 | J47: CSH | K47: 0 | L47: 212 | M47: 0 | N47: 0 | O47: 0
A48: 2017-07-31 | B48: CASH | C48: SHLI | D48: 0 | E48: 0 | F48: 0 | G48: 0 | H48: 0 | I48: 0 | J48: EQT | K48: 0 | L48: 0 | M48: 0 | N48: 0 | O48: 0
A49: 2017-07-31 | B49: CASH | C49: ALL | D49: 37790572.52 | E49: 314163275825 | F49: 1626.2 | G49: 212 | H49: 0.0255003 | I49: 314163275825 | J49: ALL | K49: 0 | L49: 212 | M49: 0 | N49: 0 | O49: 0
A50: 2017-07-31 | B50: CORE | C50: NULL | D50: 0 | E50: 0 | F50: 0 | G50: 0 | H50: 0 | I50: 0 | J50: NULL | K50: 0 | L50: 0 | M50: 0 | N50: 0 | O50: 0
A51: 2017-07-31 | B51: CORE | C51: SHLI | D51: 59541909.18 | E51: 2.007355096e+11 | F51: 0 | G51: 212 | H51: 0.06288317 | I51: 2.007355096e+11 | J51: EQT | K51: 0 | L51: 212 | M51: 0 | N51: 0 | O51: 0
A52: 2017-07-31 | B52: CORE | C52: ALL | D52: 59541909.18 | E52: 2.007355096e+11 | F52: 0 | G52: 212 | H52: 0.06288317 | I52: 2.007355096e+11 | J52: ALL | K52: 0 | L52: 212 | M52: 0 | N52: 0 | O52: 0
A53: 2017-07-31 | B53: DIVIDEND | C53: NULL | D53: 0 | E53: 0 | F53: 0 | G53: 0 | H53: 0 | I53: 0 | J53: NULL | K53: 0 | L53: 0 | M53: 0 | N53: 0 | O53: 0
A54: 2017-07-31 | B54: DIVIDEND | C54: SHLI | D54: 48667601.16 | E54: 1.683761981e+11 | F54: 0 | G54: 212 | H54: 0.06127666 | I54: 1.683761981e+11 | J54: EQT | K54: 0 | L54: 212 | M54: 0 | N54: 0 | O54: 0
A55: 2017-07-31 | B55: DIVIDEND | C55: ALL | D55: 48667601.16 | E55: 1.683761981e+11 | F55: 0 | G55: 212 | H55: 0.06127666 | I55: 1.683761981e+11 | J55: ALL | K55: 0 | L55: 212 | M55: 0 | N55: 0 | O55: 0
A56: 2017-07-31 | B56: DSRA | C56: NULL | D56: 0 | E56: 0 | F56: 107185568.2 | G56: 0 | H56: 0 | I56: 0 | J56: NULL | K56: 0 | L56: 0 | M56: 0 | N56: 0 | O56: 0
A57: 2017-07-31 | B57: DSRA | C57: CSMM | D57: 2748395.68 | E57: 25103680900 | F57: 0 | G57: 212 | H57: 0.02321014 | I57: 25103680900 | J57: CSH | K57: 0 | L57: 212 | M57: 0 | N57: 0 | O57: 0
A58: 2017-07-31 | B58: DSRA | C58: ALL | D58: 2748395.68 | E58: 25103680900 | F58: 107185568.2 | G58: 212 | H58: -0.88196949 | I58: 25103680900 | J58: ALL | K58: 0 | L58: 212 | M58: 0 | N58: 0 | O58: 0
A59: 2017-07-31 | B59: FUND | C59: NULL | D59: 0 | E59: 0 | F59: 0 | G59: 0 | H59: 0 | I59: 0 | J59: NULL | K59: 0 | L59: 0 | M59: 0 | N59: 0 | O59: 0
A60: 2017-07-31 | B60: FUND | C60: UTCX | D60: 101329.1 | E60: 655435385.4 | F60: 0 | G60: 30 | H60: 0.00463794 | I60: 655435385.4 | J60: FMM | K60: 0 | L60: 30 | M60: 0 | N60: 0 | O60: 0
A61: 2017-07-31 | B61: FUND | C61: UTEX | D61: 600000 | E61: 4116000000 | F61: 0 | G61: 212 | H61: 0.03090379 | I61: 4116000000 | J61: FEQ | K61: 0 | L61: 212 | M61: 0 | N61: 0 | O61: 0
A62: 2017-07-31 | B62: FUND | C62: ALL | D62: 701329.1 | E62: 4771435385 | F62: 0 | G62: 212 | H62: 0.03116081 | I62: 4771435385 | J62: ALL | K62: 0 | L62: 212 | M62: 0 | N62: 0 | O62: 0
A63: 2017-07-31 | B63: GROWTH | C63: NULL | D63: 0 | E63: 0 | F63: 0 | G63: 0 | H63: 0 | I63: 0 | J63: NULL | K63: 0 | L63: 0 | M63: 0 | N63: 0 | O63: 0
A64: 2017-07-31 | B64: GROWTH | C64: SHLI | D64: 36548798.39 | E64: 1.471824805e+11 | F64: 0 | G64: 212 | H64: 0.05264448 | I64: 1.471824805e+11 | J64: EQT | K64: 0 | L64: 212 | M64: 0 | N64: 0 | O64: 0
A65: 2017-07-31 | B65: GROWTH | C65: ALL | D65: 36548798.39 | E65: 1.471824805e+11 | F65: 0 | G65: 212 | H65: 0.05264448 | I65: 1.471824805e+11 | J65: ALL | K65: 0 | L65: 212 | M65: 0 | N65: 0 | O65: 0
A66: 2017-07-31 | B66: INDEX | C66: NULL | D66: 0 | E66: 0 | F66: 0 | G66: 0 | H66: 0 | I66: 0 | J66: NULL | K66: 0 | L66: 0 | M66: 0 | N66: 0 | O66: 0
A67: 2017-07-31 | B67: INDEX | C67: SHLI | D67: 2159102.4 | E67: 2.501428257e+10 | F67: 0 | G67: 212 | H67: 0.01829873 | I67: 2.501428257e+10 | J67: EQT | K67: 0 | L67: 212 | M67: 0 | N67: 0 | O67: 0
A68: 2017-07-31 | B68: INDEX | C68: ALL | D68: 2159102.4 | E68: 2.501428257e+10 | F68: 0 | G68: 212 | H68: 0.01829873 | I68: 2.501428257e+10 | J68: ALL | K68: 0 | L68: 212 | M68: 0 | N68: 0 | O68: 0
A69: 2017-07-31 | B69: OPR | C69: NULL | D69: 78224.91 | E69: 0 | F69: 25805643.6 | G69: 0 | H69: 0 | I69: 0 | J69: NULL | K69: 0 | L69: 0 | M69: 0 | N69: 0 | O69: 0
A70: 2017-07-31 | B70: OPR | C70: ALL | D70: 78224.91 | E70: 0 | F70: 25805643.6 | G70: 0 | H70: 0 | I70: 0 | J70: ALL | K70: 0 | L70: 0 | M70: 0 | N70: 0 | O70: 0
A71: 2017-07-31 | B71: REITS | C71: NULL | D71: 0 | E71: 0 | F71: -0.39 | G71: 0 | H71: 0 | I71: 0 | J71: NULL | K71: 0 | L71: 0 | M71: 0 | N71: 0 | O71: 0
A72: 2017-07-31 | B72: REITS | C72: REIT | D72: 19828805.03 | E72: 1.871445744e+11 | F72: 0 | G72: 212 | H72: 0.02246235 | I72: 1.871445744e+11 | J72: EQT | K72: 0 | L72: 212 | M72: 0 | N72: 0 | O72: 0
A73: 2017-07-31 | B73: REITS | C73: SBLL | D73: 6.48 | E73: 0 | F73: 0 | G73: 0 | H73: 0 | I73: 0 | J73: NA | K73: 0 | L73: 0 | M73: 0 | N73: 0 | O73: 0
A74: 2017-07-31 | B74: REITS | C74: ALL | D74: 19828811.51 | E74: 1.871445744e+11 | F74: -0.39 | G74: 212 | H74: 0.02246236 | I74: 1.871445744e+11 | J74: ALL | K74: 0 | L74: 212 | M74: 0 | N74: 0 | O74: 0
A75: 2017-07-31 | B75: SMALLMIDCAP | C75: NULL | D75: 0 | E75: 0 | F75: 0 | G75: 0 | H75: 0 | I75: 0 | J75: NULL | K75: 0 | L75: 0 | M75: 0 | N75: 0 | O75: 0
A76: 2017-07-31 | B76: SMALLMIDCAP | C76: SHLI | D76: 2197550.68 | E76: 3.190131569e+10 | F76: 0 | G76: 212 | H76: 0.01460381 | I76: 3.190131569e+10 | J76: EQT | K76: 0 | L76: 212 | M76: 0 | N76: 0 | O76: 0
A77: 2017-07-31 | B77: SMALLMIDCAP | C77: ALL | D77: 2197550.68 | E77: 3.190131569e+10 | F77: 0 | G77: 212 | H77: 0.01460381 | I77: 3.190131569e+10 | J77: ALL | K77: 0 | L77: 212 | M77: 0 | N77: 0 | O77: 0
A78: 2017-07-31 | B78: STFI | C78: NULL | D78: 0 | E78: 0 | F78: 0 | G78: 0 | H78: 0 | I78: 0 | J78: NULL | K78: 0 | L78: 0 | M78: 0 | N78: 0 | O78: 0
A79: 2017-07-31 | B79: STFI | C79: BDCP | D79: 0 | E79: 0 | F79: 0 | G79: 0 | H79: 0 | I79: 0 | J79: CPR | K79: 0 | L79: 0 | M79: 0 | N79: 0 | O79: 0
A80: 2017-07-31 | B80: STFI | C80: ALL | D80: 0 | E80: 0 | F80: 0 | G80: 0 | H80: 0 | I80: 0 | J80: ALL | K80: 0 | L80: 0 | M80: 0 | N80: 0 | O80: 0
A81: 2017-07-31 | B81: TRA | C81: NULL | D81: 0 | E81: 0 | F81: 31.8 | G81: 0 | H81: 0 | I81: 0 | J81: NULL | K81: 0 | L81: 0 | M81: 0 | N81: 0 | O81: 0
A82: 2017-07-31 | B82: TRA | C82: ALL | D82: 0 | E82: 0 | F82: 31.8 | G82: 0 | H82: 0 | I82: 0 | J82: ALL | K82: 0 | L82: 0 | M82: 0 | N82: 0 | O82: 0
A83: 2017-07-31 | B83: VALUE | C83: NULL | D83: 0 | E83: 0 | F83: 0 | G83: 0 | H83: 0 | I83: 0 | J83: NULL | K83: 0 | L83: 0 | M83: 0 | N83: 0 | O83: 0
A84: 2017-07-31 | B84: VALUE | C84: SHLI | D84: 50773183.42 | E84: 1.352764113e+11 | F84: 0 | G84: 212 | H84: 0.07956978 | I84: 1.352764113e+11 | J84: EQT | K84: 0 | L84: 212 | M84: 0 | N84: 0 | O84: 0
A85: 2017-07-31 | B85: VALUE | C85: ALL | D85: 50773183.42 | E85: 1.352764113e+11 | F85: 0 | G85: 212 | H85: 0.07956978 | I85: 1.352764113e+11 | J85: ALL | K85: 0 | L85: 212 | M85: 0 | N85: 0 | O85: 0
A86: 2017-03-31 | B86: CASH | C86: NULL | D86: 1927882.53 | E86: 0 | F86: 685.82 | G86: 0 | H86: 0 | I86: 0 | J86: NULL | K86: 0 | L86: 0 | M86: 0 | N86: 0 | O86: 0
A87: 2017-03-31 | B87: CASH | C87: BDCG | D87: 0 | E87: 0 | F87: 0 | G87: 0 | H87: 0 | I87: 0 | J87: BND | K87: 0 | L87: 0 | M87: 0 | N87: 0 | O87: 0
A88: 2017-03-31 | B88: CASH | C88: CSMM | D88: 11902526.44 | E88: 113233319225 | F88: 0 | G88: 90 | H88: 0.00946035 | I88: 113233319225 | J88: CSH | K88: 0 | L88: 0 | M88: 90 | N88: 0 | O88: 0
A89: 2017-03-31 | B89: CASH | C89: SHLI | D89: 0 | E89: 0 | F89: 0 | G89: 0 | H89: 0 | I89: 0 | J89: EQT | K89: 0 | L89: 0 | M89: 0 | N89: 0 | O89: 0
A90: 2017-03-31 | B90: CASH | C90: ALL | D90: 13830408.97 | E90: 113233319225 | F90: 685.82 | G90: 90 | H90: 0.01099213 | I90: 113233319225 | J90: ALL | K90: 0 | L90: 0 | M90: 90 | N90: 0 | O90: 0
A91: 2017-03-31 | B91: CORE | C91: NULL | D91: 0 | E91: 0 | F91: 0 | G91: 0 | H91: 0 | I91: 0 | J91: NULL | K91: 0 | L91: 0 | M91: 0 | N91: 0 | O91: 0
A92: 2017-03-31 | B92: CORE | C92: SHLI | D92: 18798361.25 | E92: 8.090468594e+10 | F92: 0 | G92: 90 | H92: 0.02091168 | I92: 8.090468594e+10 | J92: EQT | K92: 0 | L92: 0 | M92: 90 | N92: 0 | O92: 0
A93: 2017-03-31 | B93: CORE | C93: ALL | D93: 18798361.25 | E93: 8.090468594e+10 | F93: 0 | G93: 90 | H93: 0.02091168 | I93: 8.090468594e+10 | J93: ALL | K93: 0 | L93: 0 | M93: 90 | N93: 0 | O93: 0
A94: 2017-03-31 | B94: DIVIDEND | C94: NULL | D94: 0 | E94: 0 | F94: 0 | G94: 0 | H94: 0 | I94: 0 | J94: NULL | K94: 0 | L94: 0 | M94: 0 | N94: 0 | O94: 0
A95: 2017-03-31 | B95: DIVIDEND | C95: SHLI | D95: 25374563.58 | E95: 6.613024924e+10 | F95: 0 | G95: 90 | H95: 0.03453353 | I95: 6.613024924e+10 | J95: EQT | K95: 0 | L95: 0 | M95: 90 | N95: 0 | O95: 0
A96: 2017-03-31 | B96: DIVIDEND | C96: ALL | D96: 25374563.58 | E96: 6.613024924e+10 | F96: 0 | G96: 90 | H96: 0.03453353 | I96: 6.613024924e+10 | J96: ALL | K96: 0 | L96: 0 | M96: 90 | N96: 0 | O96: 0
A97: 2017-03-31 | B97: DSRA | C97: NULL | D97: 0 | E97: 0 | F97: 4.24 | G97: 0 | H97: 0 | I97: 0 | J97: NULL | K97: 0 | L97: 0 | M97: 0 | N97: 0 | O97: 0
A98: 2017-03-31 | B98: DSRA | C98: CSMM | D98: 1059594.85 | E98: 9668803000 | F98: 0 | G98: 90 | H98: 0.00986301 | I98: 9668803000 | J98: CSH | K98: 0 | L98: 0 | M98: 90 | N98: 0 | O98: 0
A99: 2017-03-31 | B99: DSRA | C99: ALL | D99: 1059594.85 | E99: 9668803000 | F99: 4.24 | G99: 90 | H99: 0.00986297 | I99: 9668803000 | J99: ALL | K99: 0 | L99: 0 | M99: 90 | N99: 0 | O99: 0
A100: 2017-03-31 | B100: FUND | C100: NULL | D100: 0 | E100: 0 | F100: 0 | G100: 0 | H100: 0 | I100: 0 | J100: NULL | K100: 0 | L100: 0 | M100: 0 | N100: 0 | O100: 0
A101: 2017-03-31 | B101: FUND | C101: UTCX | D101: 101329.1 | E101: 655435385.4 | F101: 0 | G101: 30 | H101: 0.00463794 | I101: 655435385.4 | J101: FMM | K101: 0 | L101: 0 | M101: 30 | N101: 0 | O101: 0
A102: 2017-03-31 | B102: FUND | C102: UTEX | D102: 0 | E102: 1353000000 | F102: 0 | G102: 90 | H102: 0 | I102: 1353000000 | J102: FEQ | K102: 0 | L102: 0 | M102: 90 | N102: 0 | O102: 0
A103: 2017-03-31 | B103: FUND | C103: ALL | D103: 101329.1 | E103: 2008435385 | F103: 0 | G103: 90 | H103: 0.00454066 | I103: 2008435385 | J103: ALL | K103: 0 | L103: 0 | M103: 90 | N103: 0 | O103: 0
A104: 2017-03-31 | B104: GROWTH | C104: NULL | D104: 0 | E104: 0 | F104: 0 | G104: 0 | H104: 0 | I104: 0 | J104: NULL | K104: 0 | L104: 0 | M104: 0 | N104: 0 | O104: 0
A105: 2017-03-31 | B105: GROWTH | C105: SHLI | D105: 9302385.85 | E105: 2.915010091e+10 | F105: 0 | G105: 90 | H105: 0.02872082 | I105: 2.915010091e+10 | J105: EQT | K105: 0 | L105: 0 | M105: 90 | N105: 0 | O105: 0
A106: 2017-03-31 | B106: GROWTH | C106: ALL | D106: 9302385.85 | E106: 2.915010091e+10 | F106: 0 | G106: 90 | H106: 0.02872082 | I106: 2.915010091e+10 | J106: ALL | K106: 0 | L106: 0 | M106: 90 | N106: 0 | O106: 0
A107: 2017-03-31 | B107: INDEX | C107: NULL | D107: 0 | E107: 0 | F107: 0 | G107: 0 | H107: 0 | I107: 0 | J107: NULL | K107: 0 | L107: 0 | M107: 0 | N107: 0 | O107: 0
A108: 2017-03-31 | B108: INDEX | C108: SHLI | D108: 2122519.73 | E108: 1.063420644e+10 | F108: 0 | G108: 90 | H108: 0.01796343 | I108: 1.063420644e+10 | J108: EQT | K108: 0 | L108: 0 | M108: 90 | N108: 0 | O108: 0
A109: 2017-03-31 | B109: INDEX | C109: ALL | D109: 2122519.73 | E109: 1.063420644e+10 | F109: 0 | G109: 90 | H109: 0.01796343 | I109: 1.063420644e+10 | J109: ALL | K109: 0 | L109: 0 | M109: 90 | N109: 0 | O109: 0
A110: 2017-03-31 | B110: OPR | C110: NULL | D110: 1242.78 | E110: 0 | F110: 9476358.67 | G110: 0 | H110: 0 | I110: 0 | J110: NULL | K110: 0 | L110: 0 | M110: 0 | N110: 0 | O110: 0
A111: 2017-03-31 | B111: OPR | C111: ALL | D111: 1242.78 | E111: 0 | F111: 9476358.67 | G111: 0 | H111: 0 | I111: 0 | J111: ALL | K111: 0 | L111: 0 | M111: 0 | N111: 0 | O111: 0
A112: 2017-03-31 | B112: REITS | C112: NULL | D112: 0 | E112: 0 | F112: 0 | G112: 0 | H112: 0 | I112: 0 | J112: NULL | K112: 0 | L112: 0 | M112: 0 | N112: 0 | O112: 0
A113: 2017-03-31 | B113: REITS | C113: REIT | D113: 13002653.79 | E113: 6.972036824e+10 | F113: 0 | G113: 90 | H113: 0.01678475 | I113: 6.972036824e+10 | J113: EQT | K113: 0 | L113: 0 | M113: 90 | N113: 0 | O113: 0
A114: 2017-03-31 | B114: REITS | C114: ALL | D114: 13002653.79 | E114: 6.972036824e+10 | F114: 0 | G114: 90 | H114: 0.01678475 | I114: 6.972036824e+10 | J114: ALL | K114: 0 | L114: 0 | M114: 90 | N114: 0 | O114: 0
A115: 2017-03-31 | B115: SMALLMIDCAP | C115: NULL | D115: 0 | E115: 0 | F115: 0 | G115: 0 | H115: 0 | I115: 0 | J115: NULL | K115: 0 | L115: 0 | M115: 0 | N115: 0 | O115: 0
A116: 2017-03-31 | B116: SMALLMIDCAP | C116: SHLI | D116: 2246536.52 | E116: 1.171210718e+10 | F116: 0 | G116: 90 | H116: 0.01726319 | I116: 1.171210718e+10 | J116: EQT | K116: 0 | L116: 0 | M116: 90 | N116: 0 | O116: 0
A117: 2017-03-31 | B117: SMALLMIDCAP | C117: ALL | D117: 2246536.52 | E117: 1.171210718e+10 | F117: 0 | G117: 90 | H117: 0.01726319 | I117: 1.171210718e+10 | J117: ALL | K117: 0 | L117: 0 | M117: 90 | N117: 0 | O117: 0
A118: 2017-03-31 | B118: STFI | C118: NULL | D118: 0 | E118: 0 | F118: 0 | G118: 0 | H118: 0 | I118: 0 | J118: NULL | K118: 0 | L118: 0 | M118: 0 | N118: 0 | O118: 0
A119: 2017-03-31 | B119: STFI | C119: BDCP | D119: 0 | E119: 0 | F119: 0 | G119: 0 | H119: 0 | I119: 0 | J119: CPR | K119: 0 | L119: 0 | M119: 0 | N119: 0 | O119: 0
A120: 2017-03-31 | B120: STFI | C120: ALL | D120: 0 | E120: 0 | F120: 0 | G120: 0 | H120: 0 | I120: 0 | J120: ALL | K120: 0 | L120: 0 | M120: 0 | N120: 0 | O120: 0
A121: 2017-03-31 | B121: TRA | C121: NULL | D121: 0 | E121: 0 | F121: 31.8 | G121: 0 | H121: 0 | I121: 0 | J121: NULL | K121: 0 | L121: 0 | M121: 0 | N121: 0 | O121: 0
A122: 2017-03-31 | B122: TRA | C122: ALL | D122: 0 | E122: 0 | F122: 31.8 | G122: 0 | H122: 0 | I122: 0 | J122: ALL | K122: 0 | L122: 0 | M122: 0 | N122: 0 | O122: 0
A123: 2017-03-31 | B123: VALUE | C123: NULL | D123: 0 | E123: 0 | F123: 0 | G123: 0 | H123: 0 | I123: 0 | J123: NULL | K123: 0 | L123: 0 | M123: 0 | N123: 0 | O123: 0
A124: 2017-03-31 | B124: VALUE | C124: SHLI | D124: 7820889.22 | E124: 7.569976885e+10 | F124: 0 | G124: 90 | H124: 0.00929831 | I124: 7.569976885e+10 | J124: EQT | K124: 0 | L124: 0 | M124: 90 | N124: 0 | O124: 0
A125: 2017-03-31 | B125: VALUE | C125: ALL | D125: 7820889.22 | E125: 7.569976885e+10 | F125: 0 | G125: 90 | H125: 0.00929831 | I125: 7.569976885e+10 | J125: ALL | K125: 0 | L125: 0 | M125: 90 | N125: 0 | O125: 0
A126: 2017-06-30 | B126: CASH | C126: NULL | D126: 4075732.77 | E126: 0 | F126: 1399.2 | G126: 0 | H126: 0 | I126: 0 | J126: NULL | K126: 0 | L126: 0 | M126: 0 | N126: 0 | O126: 0
A127: 2017-06-30 | B127: CASH | C127: BDCG | D127: 0 | E127: 0 | F127: 0 | G127: 0 | H127: 0 | I127: 0 | J127: BND | K127: 0 | L127: 0 | M127: 0 | N127: 0 | O127: 0
A128: 2017-06-30 | B128: CASH | C128: CSMM | D128: 28965328.38 | E128: 278847616825 | F128: 0 | G128: 181 | H128: 0.0188014 | I128: 278847616825 | J128: CSH | K128: 0 | L128: 0 | M128: 0 | N128: 181 | O128: 0
A129: 2017-06-30 | B129: CASH | C129: SHLI | D129: 0 | E129: 0 | F129: 0 | G129: 0 | H129: 0 | I129: 0 | J129: EQT | K129: 0 | L129: 0 | M129: 0 | N129: 0 | O129: 0
A130: 2017-06-30 | B130: CASH | C130: ALL | D130: 33041061.15 | E130: 278847616825 | F130: 1399.2 | G130: 181 | H130: 0.02144605 | I130: 278847616825 | J130: ALL | K130: 0 | L130: 0 | M130: 0 | N130: 181 | O130: 0
A131: 2017-06-30 | B131: CORE | C131: NULL | D131: 0 | E131: 0 | F131: 0 | G131: 0 | H131: 0 | I131: 0 | J131: NULL | K131: 0 | L131: 0 | M131: 0 | N131: 0 | O131: 0
A132: 2017-06-30 | B132: CORE | C132: SHLI | D132: 59541909.18 | E132: 1.678767449e+11 | F132: 0 | G132: 181 | H132: 0.06419642 | I132: 1.678767449e+11 | J132: EQT | K132: 0 | L132: 0 | M132: 0 | N132: 181 | O132: 0
A133: 2017-06-30 | B133: CORE | C133: ALL | D133: 59541909.18 | E133: 1.678767449e+11 | F133: 0 | G133: 181 | H133: 0.06419642 | I133: 1.678767449e+11 | J133: ALL | K133: 0 | L133: 0 | M133: 0 | N133: 181 | O133: 0
A134: 2017-06-30 | B134: DIVIDEND | C134: NULL | D134: 0 | E134: 0 | F134: 0 | G134: 0 | H134: 0 | I134: 0 | J134: NULL | K134: 0 | L134: 0 | M134: 0 | N134: 0 | O134: 0
A135: 2017-06-30 | B135: DIVIDEND | C135: SHLI | D135: 41677828.35 | E135: 1.390772754e+11 | F135: 0 | G135: 181 | H135: 0.05424097 | I135: 1.390772754e+11 | J135: EQT | K135: 0 | L135: 0 | M135: 0 | N135: 181 | O135: 0
A136: 2017-06-30 | B136: DIVIDEND | C136: ALL | D136: 41677828.35 | E136: 1.390772754e+11 | F136: 0 | G136: 181 | H136: 0.05424097 | I136: 1.390772754e+11 | J136: ALL | K136: 0 | L136: 0 | M136: 0 | N136: 181 | O136: 0
A137: 2017-06-30 | B137: DSRA | C137: NULL | D137: 0 | E137: 0 | F137: 107185568.2 | G137: 0 | H137: 0 | I137: 0 | J137: NULL | K137: 0 | L137: 0 | M137: 0 | N137: 0 | O137: 0
A138: 2017-06-30 | B138: DSRA | C138: CSMM | D138: 2307417.7 | E138: 21079756900 | F138: 0 | G138: 181 | H138: 0.0198125 | I138: 21079756900 | J138: CSH | K138: 0 | L138: 0 | M138: 0 | N138: 181 | O138: 0
A139: 2017-06-30 | B139: DSRA | C139: ALL | D139: 2307417.7 | E139: 21079756900 | F139: 107185568.2 | G139: 181 | H139: -0.90052961 | I139: 21079756900 | J139: ALL | K139: 0 | L139: 0 | M139: 0 | N139: 181 | O139: 0
A140: 2017-06-30 | B140: FUND | C140: NULL | D140: 0 | E140: 0 | F140: 0 | G140: 0 | H140: 0 | I140: 0 | J140: NULL | K140: 0 | L140: 0 | M140: 0 | N140: 0 | O140: 0
A141: 2017-06-30 | B141: FUND | C141: UTCX | D141: 101329.1 | E141: 655435385.4 | F141: 0 | G141: 30 | H141: 0.00463794 | I141: 655435385.4 | J141: FMM | K141: 0 | L141: 0 | M141: 0 | N141: 30 | O141: 0
A142: 2017-06-30 | B142: FUND | C142: UTEX | D142: 600000 | E142: 3341000000 | F142: 0 | G142: 181 | H142: 0.03250524 | I142: 3341000000 | J142: FEQ | K142: 0 | L142: 0 | M142: 0 | N142: 181 | O142: 0
A143: 2017-06-30 | B143: FUND | C143: ALL | D143: 701329.1 | E143: 3996435385 | F143: 0 | G143: 181 | H143: 0.03176345 | I143: 3996435385 | J143: ALL | K143: 0 | L143: 0 | M143: 0 | N143: 181 | O143: 0
A144: 2017-06-30 | B144: GROWTH | C144: NULL | D144: 0 | E144: 0 | F144: 0 | G144: 0 | H144: 0 | I144: 0 | J144: NULL | K144: 0 | L144: 0 | M144: 0 | N144: 0 | O144: 0
A145: 2017-06-30 | B145: GROWTH | C145: SHLI | D145: 34661293.03 | E145: 1.060923265e+11 | F145: 0 | G145: 181 | H145: 0.05913429 | I145: 1.060923265e+11 | J145: EQT | K145: 0 | L145: 0 | M145: 0 | N145: 181 | O145: 0
A146: 2017-06-30 | B146: GROWTH | C146: ALL | D146: 34661293.03 | E146: 1.060923265e+11 | F146: 0 | G146: 181 | H146: 0.05913429 | I146: 1.060923265e+11 | J146: ALL | K146: 0 | L146: 0 | M146: 0 | N146: 181 | O146: 0
A147: 2017-06-30 | B147: INDEX | C147: NULL | D147: 0 | E147: 0 | F147: 0 | G147: 0 | H147: 0 | I147: 0 | J147: NULL | K147: 0 | L147: 0 | M147: 0 | N147: 0 | O147: 0
A148: 2017-06-30 | B148: INDEX | C148: SHLI | D148: 2130868.17 | E148: 2.137343551e+10 | F148: 0 | G148: 181 | H148: 0.01804516 | I148: 2.137343551e+10 | J148: EQT | K148: 0 | L148: 0 | M148: 0 | N148: 181 | O148: 0
A149: 2017-06-30 | B149: INDEX | C149: ALL | D149: 2130868.17 | E149: 2.137343551e+10 | F149: 0 | G149: 181 | H149: 0.01804516 | I149: 2.137343551e+10 | J149: ALL | K149: 0 | L149: 0 | M149: 0 | N149: 181 | O149: 0
A150: 2017-06-30 | B150: OPR | C150: NULL | D150: 67094.91 | E150: 0 | F150: 23024383.67 | G150: 0 | H150: 0 | I150: 0 | J150: NULL | K150: 0 | L150: 0 | M150: 0 | N150: 0 | O150: 0
A151: 2017-06-30 | B151: OPR | C151: ALL | D151: 67094.91 | E151: 0 | F151: 23024383.67 | G151: 0 | H151: 0 | I151: 0 | J151: ALL | K151: 0 | L151: 0 | M151: 0 | N151: 0 | O151: 0
A152: 2017-06-30 | B152: REITS | C152: NULL | D152: 0 | E152: 0 | F152: 0 | G152: 0 | H152: 0 | I152: 0 | J152: NULL | K152: 0 | L152: 0 | M152: 0 | N152: 0 | O152: 0
A153: 2017-06-30 | B153: REITS | C153: REIT | D153: 19828805.03 | E153: 1.571881608e+11 | F153: 0 | G153: 181 | H153: 0.0228326 | I153: 1.571881608e+11 | J153: EQT | K153: 0 | L153: 0 | M153: 0 | N153: 181 | O153: 0
A154: 2017-06-30 | B154: REITS | C154: ALL | D154: 19828805.03 | E154: 1.571881608e+11 | F154: 0 | G154: 181 | H154: 0.0228326 | I154: 1.571881608e+11 | J154: ALL | K154: 0 | L154: 0 | M154: 0 | N154: 181 | O154: 0
A155: 2017-06-30 | B155: SMALLMIDCAP | C155: NULL | D155: 0 | E155: 0 | F155: 0 | G155: 0 | H155: 0 | I155: 0 | J155: NULL | K155: 0 | L155: 0 | M155: 0 | N155: 0 | O155: 0
A156: 2017-06-30 | B156: SMALLMIDCAP | C156: SHLI | D156: 1036866.81 | E156: 2.700138666e+10 | F156: 0 | G156: 181 | H156: 0.00695049 | I156: 2.700138666e+10 | J156: EQT | K156: 0 | L156: 0 | M156: 0 | N156: 181 | O156: 0
A157: 2017-06-30 | B157: SMALLMIDCAP | C157: ALL | D157: 1036866.81 | E157: 2.700138666e+10 | F157: 0 | G157: 181 | H157: 0.00695049 | I157: 2.700138666e+10 | J157: ALL | K157: 0 | L157: 0 | M157: 0 | N157: 181 | O157: 0
A158: 2017-06-30 | B158: STFI | C158: NULL | D158: 0 | E158: 0 | F158: 0 | G158: 0 | H158: 0 | I158: 0 | J158: NULL | K158: 0 | L158: 0 | M158: 0 | N158: 0 | O158: 0
A159: 2017-06-30 | B159: STFI | C159: BDCP | D159: 0 | E159: 0 | F159: 0 | G159: 0 | H159: 0 | I159: 0 | J159: CPR | K159: 0 | L159: 0 | M159: 0 | N159: 0 | O159: 0
A160: 2017-06-30 | B160: STFI | C160: ALL | D160: 0 | E160: 0 | F160: 0 | G160: 0 | H160: 0 | I160: 0 | J160: ALL | K160: 0 | L160: 0 | M160: 0 | N160: 0 | O160: 0
A161: 2017-06-30 | B161: TRA | C161: NULL | D161: 0 | E161: 0 | F161: 31.8 | G161: 0 | H161: 0 | I161: 0 | J161: NULL | K161: 0 | L161: 0 | M161: 0 | N161: 0 | O161: 0
A162: 2017-06-30 | B162: TRA | C162: ALL | D162: 0 | E162: 0 | F162: 31.8 | G162: 0 | H162: 0 | I162: 0 | J162: ALL | K162: 0 | L162: 0 | M162: 0 | N162: 0 | O162: 0
A163: 2017-06-30 | B163: VALUE | C163: NULL | D163: 0 | E163: 0 | F163: 0 | G163: 0 | H163: 0 | I163: 0 | J163: NULL | K163: 0 | L163: 0 | M163: 0 | N163: 0 | O163: 0
A164: 2017-06-30 | B164: VALUE | C164: SHLI | D164: 48984659.85 | E164: 1.215984875e+11 | F164: 0 | G164: 181 | H164: 0.07291393 | I164: 1.215984875e+11 | J164: EQT | K164: 0 | L164: 0 | M164: 0 | N164: 181 | O164: 0
A165: 2017-06-30 | B165: VALUE | C165: ALL | D165: 48984659.85 | E165: 1.215984875e+11 | F165: 0 | G165: 181 | H165: 0.07291393 | I165: 1.215984875e+11 | J165: ALL | K165: 0 | L165: 0 | M165: 0 | N165: 181 | O165: 0

Sheet InCalROILM (hidden)
I1: =IF(D1=0,E1,E1) -> 0 | J1: =IFERROR(IF(OR(C1="ALL",C1="NULL"),C1,VLOOKUP(C1,AccTypeRef!$A:$D,3,0)),"") ->  | K1: Unique | L1: Unique
A2: TBDate | B2: qFundCode | C2: qAccType | D2: TotIncome | E2: TotHolding | F2: TotExpenses | G2: WorkingDay | H2: ROI | I2: CalHolding | J2: AssetClass | AA2: Asset Class
A3: 2017-01-31 | B3: CASH | C3: NULL | D3: 1544698.44 | E3: 0 | F3: 259.7 | G3: 0 | H3: 0 | I3: 0 | J3: NULL | AA3: ZZZZZZ
A4: 2017-01-31 | B4: CASH | C4: BDCG | D4: 0 | E4: 0 | F4: 0 | G4: 0 | H4: 0 | I4: 0 | J4: BND | AA4: ZZZZZZ
A5: 2017-01-31 | B5: CASH | C5: CSMM | D5: 4175835.13 | E5: 39426185575 | F5: 0 | G5: 31 | H5: 0.00328337 | I5: 39426185575 | J5: CSH | AA5: CSH
A6: 2017-01-31 | B6: CASH | C6: SHLI | D6: 0 | E6: 0 | F6: 0 | G6: 0 | H6: 0 | I6: 0 | J6: EQT | AA6: EQT
A7: 2017-01-31 | B7: CASH | C7: ALL | D7: 5720533.57 | E7: 39426185575 | F7: 259.7 | G7: 31 | H7: 0.00449773 | I7: 39426185575 | J7: ALL | AA7: ZZZZZZ
A8: 2017-01-31 | B8: CORE | C8: NULL | D8: 0 | E8: 0 | F8: 0 | G8: 0 | H8: 0 | I8: 0 | J8: NULL | AA8: BND
A9: 2017-01-31 | B9: CORE | C9: SHLI | D9: 137250 | E9: 2.914765751e+10 | F9: 0 | G9: 31 | H9: 0.00014597 | I9: 2.914765751e+10 | J9: EQT | AA9: CIS
A10: 2017-01-31 | B10: CORE | C10: ALL | D10: 137250 | E10: 2.914765751e+10 | F10: 0 | G10: 31 | H10: 0.00014597 | I10: 2.914765751e+10 | J10: ALL
A11: 2017-01-31 | B11: DIVIDEND | C11: NULL | D11: 0 | E11: 0 | F11: 0 | G11: 0 | H11: 0 | I11: 0 | J11: NULL
A12: 2017-01-31 | B12: DIVIDEND | C12: SHLI | D12: 40230.33 | E12: 2.582005675e+10 | F12: 0 | G12: 31 | H12: 4.83e-05 | I12: 2.582005675e+10 | J12: EQT
A13: 2017-01-31 | B13: DIVIDEND | C13: ALL | D13: 40230.33 | E13: 2.582005675e+10 | F13: 0 | G13: 31 | H13: 4.83e-05 | I13: 2.582005675e+10 | J13: ALL
A14: 2017-01-31 | B14: DSRA | C14: NULL | D14: 0 | E14: 0 | F14: 0 | G14: 0 | H14: 0 | I14: 0 | J14: NULL
A15: 2017-01-31 | B15: DSRA | C15: CSMM | D15: 364135.68 | E15: 3322738100 | F15: 0 | G15: 31 | H15: 0.00339726 | I15: 3322738100 | J15: CSH
A16: 2017-01-31 | B16: DSRA | C16: ALL | D16: 364135.68 | E16: 3322738100 | F16: 0 | G16: 31 | H16: 0.00339726 | I16: 3322738100 | J16: ALL
A17: 2017-01-31 | B17: FUND | C17: NULL | D17: 0 | E17: 0 | F17: 0 | G17: 0 | H17: 0 | I17: 0 | J17: NULL
A18: 2017-01-31 | B18: FUND | C18: UTCX | D18: 101329.1 | E18: 655435385.4 | F18: 0 | G18: 30 | H18: 0.00463794 | I18: 655435385.4 | J18: FMM
A19: 2017-01-31 | B19: FUND | C19: UTEX | D19: 0 | E19: 465000000 | F19: 0 | G19: 31 | H19: 0 | I19: 465000000 | J19: FEQ
A20: 2017-01-31 | B20: FUND | C20: ALL | D20: 101329.1 | E20: 1120435385 | F20: 0 | G20: 31 | H20: 0.00280355 | I20: 1120435385 | J20: ALL
A21: 2017-01-31 | B21: GROWTH | C21: NULL | D21: 0 | E21: 0 | F21: 0 | G21: 0 | H21: 0 | I21: 0 | J21: NULL
A22: 2017-01-31 | B22: GROWTH | C22: SHLI | D22: 3457228.29 | E22: 9491907424 | F22: 0 | G22: 31 | H22: 0.0112911 | I22: 9491907424 | J22: EQT
A23: 2017-01-31 | B23: GROWTH | C23: ALL | D23: 3457228.29 | E23: 9491907424 | F23: 0 | G23: 31 | H23: 0.0112911 | I23: 9491907424 | J23: ALL
A24: 2017-01-31 | B24: INDEX | C24: NULL | D24: 0 | E24: 0 | F24: 0 | G24: 0 | H24: 0 | I24: 0 | J24: NULL
A25: 2017-01-31 | B25: INDEX | C25: SHLI | D25: 0 | E25: 3662969380 | F25: 0 | G25: 31 | H25: 0 | I25: 3662969380 | J25: EQT
A26: 2017-01-31 | B26: INDEX | C26: ALL | D26: 0 | E26: 3662969380 | F26: 0 | G26: 31 | H26: 0 | I26: 3662969380 | J26: ALL
A27: 2017-01-31 | B27: OPR | C27: NULL | D27: 1242.78 | E27: 0 | F27: 4089991.14 | G27: 0 | H27: 0 | I27: 0 | J27: NULL
A28: 2017-01-31 | B28: OPR | C28: ALL | D28: 1242.78 | E28: 0 | F28: 4089991.14 | G28: 0 | H28: 0 | I28: 0 | J28: ALL
A29: 2017-01-31 | B29: REITS | C29: NULL | D29: 0 | E29: 0 | F29: 0 | G29: 0 | H29: 0 | I29: 0 | J29: NULL
A30: 2017-01-31 | B30: REITS | C30: REIT | D30: 50097.79 | E30: 1.833457015e+10 | F30: 0 | G30: 31 | H30: 8.471e-05 | I30: 1.833457015e+10 | J30: EQT
A31: 2017-01-31 | B31: REITS | C31: ALL | D31: 50097.79 | E31: 1.833457015e+10 | F31: 0 | G31: 31 | H31: 8.471e-05 | I31: 1.833457015e+10 | J31: ALL
A32: 2017-01-31 | B32: SMALLMIDCAP | C32: NULL | D32: 0 | E32: 0 | F32: 0 | G32: 0 | H32: 0 | I32: 0 | J32: NULL
A33: 2017-01-31 | B33: SMALLMIDCAP | C33: SHLI | D33: 636603.52 | E33: 3270818111 | F33: 0 | G33: 31 | H33: 0.00603357 | I33: 3270818111 | J33: EQT
A34: 2017-01-31 | B34: SMALLMIDCAP | C34: ALL | D34: 636603.52 | E34: 3270818111 | F34: 0 | G34: 31 | H34: 0.00603357 | I34: 3270818111 | J34: ALL
A35: 2017-01-31 | B35: STFI | C35: NULL | D35: 0 | E35: 0 | F35: 0 | G35: 0 | H35: 0 | I35: 0 | J35: NULL
A36: 2017-01-31 | B36: STFI | C36: BDCP | D36: 0 | E36: 0 | F36: 0 | G36: 0 | H36: 0 | I36: 0 | J36: CPR
A37: 2017-01-31 | B37: STFI | C37: ALL | D37: 0 | E37: 0 | F37: 0 | G37: 0 | H37: 0 | I37: 0 | J37: ALL
A38: 2017-01-31 | B38: TRA | C38: NULL | D38: 0 | E38: 0 | F38: 31.8 | G38: 0 | H38: 0 | I38: 0 | J38: NULL
A39: 2017-01-31 | B39: TRA | C39: ALL | D39: 0 | E39: 0 | F39: 31.8 | G39: 0 | H39: 0 | I39: 0 | J39: ALL
A40: 2017-01-31 | B40: VALUE | C40: NULL | D40: 0 | E40: 0 | F40: 0 | G40: 0 | H40: 0 | I40: 0 | J40: NULL
A41: 2017-01-31 | B41: VALUE | C41: SHLI | D41: 945357.32 | E41: 2.810228523e+10 | F41: 0 | G41: 31 | H41: 0.00104284 | I41: 2.810228523e+10 | J41: EQT
A42: 2017-01-31 | B42: VALUE | C42: ALL | D42: 945357.32 | E42: 2.810228523e+10 | F42: 0 | G42: 31 | H42: 0.00104284 | I42: 2.810228523e+10 | J42: ALL

Sheet Sheet5 (hidden)
A1: a | B1: a | C1: a | D1: a | E1: a | F1: a | G1: a
A2: 2017-01-03 | B2: CASH | C2: MYR | D2: 100210 | E2: CSMM | F2: BS | G2: NULL
A3: 2017-01-03 | B3: CASH | C3: MYR | D3: 139210 | E3: CSMM | F3: BS | G3: NULL
A4: 2017-01-03 | B4: CASH | C4: MYR | D4: 200100 | E4: BDCG | F4: BS | G4: NULL
A5: 2017-01-03 | B5: CASH | C5: MYR | D5: 500000 | E5: NULL | F5: BS | G5: NULL
A6: 2017-01-03 | B6: CASH | C6: MYR | D6: 630210 | E6: CSMM | F6: PLR | G6: 48180.93
A7: 2017-01-03 | B7: CASH | C7: MYR | D7: 636003 | E7: NULL | F7: PLR | G7: 0
A8: 2017-01-03 | B8: CASH | C8: MYR | D8: 636010 | E8: SHLI | F8: PLR | G8: 0
A9: 2017-01-03 | B9: CASH | C9: MYR | D9: 639210 | E9: CSMM | F9: PLR | G9: 4330190.18
A10: 2017-01-03 | B10: CASH | C10: MYR | D10: 710102 | E10: NULL | F10: PLR | G10: NULL
A11: 2017-01-03 | B11: CASH | C11: MYR | D11: 710876 | E11: NULL | F11: PLR | G11: NULL
A12: 2017-01-03 | B12: CASH | C12: MYR | D12: 800000 | E12: NULL | F12: BS | G12: NULL
A13: 2017-01-03 | B13: CASH | C13: MYR | D13: 830000 | E13: NULL | F13: BS | G13: NULL
A14: 2017-01-03 | B14: CASH | C14: MYR | D14: 939210 | E14: CSMM | F14: PLR | G14: -3882763.86
A15: 2017-01-04 | B15: CASH | C15: MYR | D15: 100210 | E15: CSMM | F15: BS | G15: NULL
A16: 2017-01-04 | B16: CASH | C16: MYR | D16: 139210 | E16: CSMM | F16: BS | G16: NULL
A17: 2017-01-04 | B17: CASH | C17: MYR | D17: 500000 | E17: NULL | F17: BS | G17: NULL
A18: 2017-01-04 | B18: CASH | C18: MYR | D18: 630210 | E18: CSMM | F18: PLR | G18: 81276.82
A19: 2017-01-04 | B19: CASH | C19: MYR | D19: 639210 | E19: CSMM | F19: PLR | G19: 4457706.57
A20: 2017-01-04 | B20: CASH | C20: MYR | D20: 710102 | E20: NULL | F20: PLR | G20: NULL
A21: 2017-01-04 | B21: CASH | C21: MYR | D21: 710876 | E21: NULL | F21: PLR | G21: NULL
A22: 2017-01-04 | B22: CASH | C22: MYR | D22: 800000 | E22: NULL | F22: BS | G22: NULL
A23: 2017-01-04 | B23: CASH | C23: MYR | D23: 830000 | E23: NULL | F23: BS | G23: NULL
A24: 2017-01-04 | B24: CASH | C24: MYR | D24: 939210 | E24: CSMM | F24: PLR | G24: -3882763.86
A25: 2017-01-05 | B25: CASH | C25: MYR | D25: 100210 | E25: CSMM | F25: BS | G25: NULL
A26: 2017-01-05 | B26: CASH | C26: MYR | D26: 139210 | E26: CSMM | F26: BS | G26: NULL
A27: 2017-01-05 | B27: CASH | C27: MYR | D27: 200100 | E27: BDCG | F27: BS | G27: NULL
A28: 2017-01-05 | B28: CASH | C28: MYR | D28: 500000 | E28: NULL | F28: BS | G28: NULL
A29: 2017-01-05 | B29: CASH | C29: MYR | D29: 630210 | E29: CSMM | F29: PLR | G29: 1065602.5
A30: 2017-01-05 | B30: CASH | C30: MYR | D30: 639210 | E30: CSMM | F30: PLR | G30: 3606586.19
A31: 2017-01-05 | B31: CASH | C31: MYR | D31: 710102 | E31: NULL | F31: PLR | G31: NULL
A32: 2017-01-05 | B32: CASH | C32: MYR | D32: 710876 | E32: NULL | F32: PLR | G32: NULL
A33: 2017-01-05 | B33: CASH | C33: MYR | D33: 800000 | E33: NULL | F33: BS | G33: NULL
A34: 2017-01-05 | B34: CASH | C34: MYR | D34: 830000 | E34: NULL | F34: BS | G34: NULL
A35: 2017-01-05 | B35: CASH | C35: MYR | D35: 939210 | E35: CSMM | F35: PLR | G35: -3882763.86
A36: 2017-01-06 | B36: CASH | C36: MYR | D36: 100210 | E36: CSMM | F36: BS | G36: NULL
A37: 2017-01-06 | B37: CASH | C37: MYR | D37: 139210 | E37: CSMM | F37: BS | G37: NULL
A38: 2017-01-06 | B38: CASH | C38: MYR | D38: 500000 | E38: NULL | F38: BS | G38: NULL
A39: 2017-01-06 | B39: CASH | C39: MYR | D39: 630210 | E39: CSMM | F39: PLR | G39: 1066013.46
A40: 2017-01-06 | B40: CASH | C40: MYR | D40: 639210 | E40: CSMM | F40: PLR | G40: 3739240.71
A41: 2017-01-06 | B41: CASH | C41: MYR | D41: 710102 | E41: NULL | F41: PLR | G41: NULL
A42: 2017-01-06 | B42: CASH | C42: MYR | D42: 710876 | E42: NULL | F42: PLR | G42: NULL
A43: 2017-01-06 | B43: CASH | C43: MYR | D43: 800000 | E43: NULL | F43: BS | G43: NULL
A44: 2017-01-06 | B44: CASH | C44: MYR | D44: 830000 | E44: NULL | F44: BS | G44: NULL
A45: 2017-01-06 | B45: CASH | C45: MYR | D45: 939210 | E45: CSMM | F45: PLR | G45: -3882763.86
A46: 2017-01-09 | B46: CASH | C46: MYR | D46: 100210 | E46: CSMM | F46: BS | G46: NULL
A47: 2017-01-09 | B47: CASH | C47: MYR | D47: 139210 | E47: CSMM | F47: BS | G47: NULL
A48: 2017-01-09 | B48: CASH | C48: MYR | D48: 500000 | E48: NULL | F48: BS | G48: NULL
A49: 2017-01-09 | B49: CASH | C49: MYR | D49: 630210 | E49: CSMM | F49: PLR | G49: 1067074.28
A50: 2017-01-09 | B50: CASH | C50: MYR | D50: 639210 | E50: CSMM | F50: PLR | G50: 4138519.8
A51: 2017-01-09 | B51: CASH | C51: MYR | D51: 710102 | E51: NULL | F51: PLR | G51: NULL
A52: 2017-01-09 | B52: CASH | C52: MYR | D52: 710876 | E52: NULL | F52: PLR | G52: NULL
A53: 2017-01-09 | B53: CASH | C53: MYR | D53: 800000 | E53: NULL | F53: BS | G53: NULL
A54: 2017-01-09 | B54: CASH | C54: MYR | D54: 830000 | E54: NULL | F54: BS | G54: NULL
A55: 2017-01-09 | B55: CASH | C55: MYR | D55: 939210 | E55: CSMM | F55: PLR | G55: -3882763.86
A56: 2017-01-10 | B56: CASH | C56: MYR | D56: 100210 | E56: CSMM | F56: BS | G56: NULL
A57: 2017-01-10 | B57: CASH | C57: MYR | D57: 139210 | E57: CSMM | F57: BS | G57: NULL
A58: 2017-01-10 | B58: CASH | C58: MYR | D58: 500000 | E58: NULL | F58: BS | G58: NULL
A59: 2017-01-10 | B59: CASH | C59: MYR | D59: 630210 | E59: CSMM | F59: PLR | G59: 1312999.91
A60: 2017-01-10 | B60: CASH | C60: MYR | D60: 639210 | E60: CSMM | F60: PLR | G60: 4025712.16
A61: 2017-01-10 | B61: CASH | C61: MYR | D61: 710102 | E61: NULL | F61: PLR | G61: NULL
A62: 2017-01-10 | B62: CASH | C62: MYR | D62: 710876 | E62: NULL | F62: PLR | G62: NULL
A63: 2017-01-10 | B63: CASH | C63: MYR | D63: 800000 | E63: NULL | F63: BS | G63: NULL
A64: 2017-01-10 | B64: CASH | C64: MYR | D64: 830000 | E64: NULL | F64: BS | G64: NULL
A65: 2017-01-10 | B65: CASH | C65: MYR | D65: 939210 | E65: CSMM | F65: PLR | G65: -3882763.86
A66: 2017-01-11 | B66: CASH | C66: MYR | D66: 100210 | E66: CSMM | F66: BS | G66: NULL
A67: 2017-01-11 | B67: CASH | C67: MYR | D67: 139210 | E67: CSMM | F67: BS | G67: NULL
A68: 2017-01-11 | B68: CASH | C68: MYR | D68: 500000 | E68: NULL | F68: BS | G68: NULL
A69: 2017-01-11 | B69: CASH | C69: MYR | D69: 630210 | E69: CSMM | F69: PLR | G69: 2187520.46
A70: 2017-01-11 | B70: CASH | C70: MYR | D70: 639210 | E70: CSMM | F70: PLR | G70: 3284016.59
A71: 2017-01-11 | B71: CASH | C71: MYR | D71: 710102 | E71: NULL | F71: PLR | G71: NULL
A72: 2017-01-11 | B72: CASH | C72: MYR | D72: 710876 | E72: NULL | F72: PLR | G72: NULL
A73: 2017-01-11 | B73: CASH | C73: MYR | D73: 800000 | E73: NULL | F73: BS | G73: NULL
A74: 2017-01-11 | B74: CASH | C74: MYR | D74: 830000 | E74: NULL | F74: BS | G74: NULL
A75: 2017-01-11 | B75: CASH | C75: MYR | D75: 939210 | E75: CSMM | F75: PLR | G75: -3882763.86
A76: 2017-01-12 | B76: CASH | C76: MYR | D76: 100210 | E76: CSMM | F76: BS | G76: NULL
A77: 2017-01-12 | B77: CASH | C77: MYR | D77: 139210 | E77: CSMM | F77: BS | G77: NULL
A78: 2017-01-12 | B78: CASH | C78: MYR | D78: 500000 | E78: NULL | F78: BS | G78: NULL
A79: 2017-01-12 | B79: CASH | C79: MYR | D79: 630210 | E79: CSMM | F79: PLR | G79: 2270384.77
A80: 2017-01-12 | B80: CASH | C80: MYR | D80: 639210 | E80: CSMM | F80: PLR | G80: 3332713.29
A81: 2017-01-12 | B81: CASH | C81: MYR | D81: 710102 | E81: NULL | F81: PLR | G81: NULL
A82: 2017-01-12 | B82: CASH | C82: MYR | D82: 710876 | E82: NULL | F82: PLR | G82: NULL
A83: 2017-01-12 | B83: CASH | C83: MYR | D83: 800000 | E83: NULL | F83: BS | G83: NULL
A84: 2017-01-12 | B84: CASH | C84: MYR | D84: 830000 | E84: NULL | F84: BS | G84: NULL
A85: 2017-01-12 | B85: CASH | C85: MYR | D85: 939210 | E85: CSMM | F85: PLR | G85: -3882763.86
A86: 2017-01-13 | B86: CASH | C86: MYR | D86: 100210 | E86: CSMM | F86: BS | G86: NULL
A87: 2017-01-13 | B87: CASH | C87: MYR | D87: 139210 | E87: CSMM | F87: BS | G87: NULL
A88: 2017-01-13 | B88: CASH | C88: MYR | D88: 500000 | E88: NULL | F88: BS | G88: NULL
A89: 2017-01-13 | B89: CASH | C89: MYR | D89: 630210 | E89: CSMM | F89: PLR | G89: 2436673.19
A90: 2017-01-13 | B90: CASH | C90: MYR | D90: 636003 | E90: NULL | F90: PLR | G90: 16133.87
A91: 2017-01-13 | B91: CASH | C91: MYR | D91: 639210 | E91: CSMM | F91: PLR | G91: 3296464.52
A92: 2017-01-13 | B92: CASH | C92: MYR | D92: 710102 | E92: NULL | F92: PLR | G92: NULL
A93: 2017-01-13 | B93: CASH | C93: MYR | D93: 710876 | E93: NULL | F93: PLR | G93: NULL
A94: 2017-01-13 | B94: CASH | C94: MYR | D94: 800000 | E94: NULL | F94: BS | G94: NULL
A95: 2017-01-13 | B95: CASH | C95: MYR | D95: 830000 | E95: NULL | F95: BS | G95: NULL
A96: 2017-01-13 | B96: CASH | C96: MYR | D96: 939210 | E96: CSMM | F96: PLR | G96: -3882763.86
A97: 2017-01-16 | B97: CASH | C97: MYR | D97: 100210 | E97: CSMM | F97: BS | G97: NULL
A98: 2017-01-16 | B98: CASH | C98: MYR | D98: 139210 | E98: CSMM | F98: BS | G98: NULL
A99: 2017-01-16 | B99: CASH | C99: MYR | D99: 500000 | E99: NULL | F99: BS | G99: NULL
A100: 2017-01-16 | B100: CASH | C100: MYR | D100: 630210 | E100: CSMM | F100: PLR | G100: 2501130.14
A101: 2017-01-16 | B101: CASH | C101: MYR | D101: 636003 | E101: NULL | F101: PLR | G101: 533301.81
A102: 2017-01-16 | B102: CASH | C102: MYR | D102: 639210 | E102: CSMM | F102: PLR | G102: 3622330.87
A103: 2017-01-16 | B103: CASH | C103: MYR | D103: 710102 | E103: NULL | F103: PLR | G103: NULL
A104: 2017-01-16 | B104: CASH | C104: MYR | D104: 710876 | E104: NULL | F104: PLR | G104: NULL
A105: 2017-01-16 | B105: CASH | C105: MYR | D105: 800000 | E105: NULL | F105: BS | G105: NULL
A106: 2017-01-16 | B106: CASH | C106: MYR | D106: 830000 | E106: NULL | F106: BS | G106: NULL
A107: 2017-01-16 | B107: CASH | C107: MYR | D107: 939210 | E107: CSMM | F107: PLR | G107: -3882763.86
A108: 2017-01-17 | B108: CASH | C108: MYR | D108: 100210 | E108: CSMM | F108: BS | G108: NULL
A109: 2017-01-17 | B109: CASH | C109: MYR | D109: 139210 | E109: CSMM | F109: BS | G109: NULL
A110: 2017-01-17 | B110: CASH | C110: MYR | D110: 500000 | E110: NULL | F110: BS | G110: NULL
A111: 2017-01-17 | B111: CASH | C111: MYR | D111: 630210 | E111: CSMM | F111: PLR | G111: 2541426.67
A112: 2017-01-17 | B112: CASH | C112: MYR | D112: 636003 | E112: NULL | F112: PLR | G112: 533301.81
A113: 2017-01-17 | B113: CASH | C113: MYR | D113: 639210 | E113: CSMM | F113: PLR | G113: 3712980.43
A114: 2017-01-17 | B114: CASH | C114: MYR | D114: 710102 | E114: NULL | F114: PLR | G114: NULL
A115: 2017-01-17 | B115: CASH | C115: MYR | D115: 710876 | E115: NULL | F115: PLR | G115: NULL
A116: 2017-01-17 | B116: CASH | C116: MYR | D116: 800000 | E116: NULL | F116: BS | G116: NULL
A117: 2017-01-17 | B117: CASH | C117: MYR | D117: 830000 | E117: NULL | F117: BS | G117: NULL
A118: 2017-01-17 | B118: CASH | C118: MYR | D118: 939210 | E118: CSMM | F118: PLR | G118: -3882763.86
A119: 2017-01-18 | B119: CASH | C119: MYR | D119: 100210 | E119: CSMM | F119: BS | G119: NULL
A120: 2017-01-18 | B120: CASH | C120: MYR | D120: 139210 | E120: CSMM | F120: BS | G120: NULL
A121: 2017-01-18 | B121: CASH | C121: MYR | D121: 500000 | E121: NULL | F121: BS | G121: NULL
A122: 2017-01-18 | B122: CASH | C122: MYR | D122: 630210 | E122: CSMM | F122: PLR | G122: 2581388.52
A123: 2017-01-18 | B123: CASH | C123: MYR | D123: 636003 | E123: NULL | F123: PLR | G123: 533301.81
A124: 2017-01-18 | B124: CASH | C124: MYR | D124: 639210 | E124: CSMM | F124: PLR | G124: 3803753.57
A125: 2017-01-18 | B125: CASH | C125: MYR | D125: 710102 | E125: NULL | F125: PLR | G125: NULL
A126: 2017-01-18 | B126: CASH | C126: MYR | D126: 710876 | E126: NULL | F126: PLR | G126: NULL
A127: 2017-01-18 | B127: CASH | C127: MYR | D127: 800000 | E127: NULL | F127: BS | G127: NULL
A128: 2017-01-18 | B128: CASH | C128: MYR | D128: 830000 | E128: NULL | F128: BS | G128: NULL
A129: 2017-01-18 | B129: CASH | C129: MYR | D129: 939210 | E129: CSMM | F129: PLR | G129: -3882763.86
A130: 2017-01-19 | B130: CASH | C130: MYR | D130: 100210 | E130: CSMM | F130: BS | G130: NULL
A131: 2017-01-19 | B131: CASH | C131: MYR | D131: 139210 | E131: CSMM | F131: BS | G131: NULL
A132: 2017-01-19 | B132: CASH | C132: MYR | D132: 500000 | E132: NULL | F132: BS | G132: NULL
A133: 2017-01-19 | B133: CASH | C133: MYR | D133: 630210 | E133: CSMM | F133: PLR | G133: 2612301.93
A134: 2017-01-19 | B134: CASH | C134: MYR | D134: 636003 | E134: NULL | F134: PLR | G134: 533301.81
A135: 2017-01-19 | B135: CASH | C135: MYR | D135: 639210 | E135: CSMM | F135: PLR | G135: 3902830.09
A136: 2017-01-19 | B136: CASH | C136: MYR | D136: 710102 | E136: NULL | F136: PLR | G136: NULL
A137: 2017-01-19 | B137: CASH | C137: MYR | D137: 710876 | E137: NULL | F137: PLR | G137: NULL
A138: 2017-01-19 | B138: CASH | C138: MYR | D138: 800000 | E138: NULL | F138: BS | G138: NULL
A139: 2017-01-19 | B139: CASH | C139: MYR | D139: 830000 | E139: NULL | F139: BS | G139: NULL
A140: 2017-01-19 | B140: CASH | C140: MYR | D140: 939210 | E140: CSMM | F140: PLR | G140: -3882763.86
A141: 2017-01-20 | B141: CASH | C141: MYR | D141: 100210 | E141: CSMM | F141: BS | G141: NULL
A142: 2017-01-20 | B142: CASH | C142: MYR | D142: 139210 | E142: CSMM | F142: BS | G142: NULL
A143: 2017-01-20 | B143: CASH | C143: MYR | D143: 500000 | E143: NULL | F143: BS | G143: NULL
A144: 2017-01-20 | B144: CASH | C144: MYR | D144: 630210 | E144: CSMM | F144: PLR | G144: 2638285.55
A145: 2017-01-20 | B145: CASH | C145: MYR | D145: 636003 | E145: NULL | F145: PLR | G145: 533301.81
A146: 2017-01-20 | B146: CASH | C146: MYR | D146: 639210 | E146: CSMM | F146: PLR | G146: 4006363.9
A147: 2017-01-20 | B147: CASH | C147: MYR | D147: 710102 | E147: NULL | F147: PLR | G147: NULL
A148: 2017-01-20 | B148: CASH | C148: MYR | D148: 710876 | E148: NULL | F148: PLR | G148: NULL
A149: 2017-01-20 | B149: CASH | C149: MYR | D149: 800000 | E149: NULL | F149: BS | G149: NULL
A150: 2017-01-20 | B150: CASH | C150: MYR | D150: 830000 | E150: NULL | F150: BS | G150: NULL
A151: 2017-01-20 | B151: CASH | C151: MYR | D151: 939210 | E151: CSMM | F151: PLR | G151: -3882763.86
A152: 2017-01-23 | B152: CASH | C152: MYR | D152: 100210 | E152: CSMM | F152: BS | G152: NULL
A153: 2017-01-23 | B153: CASH | C153: MYR | D153: 139210 | E153: CSMM | F153: BS | G153: NULL
A154: 2017-01-23 | B154: CASH | C154: MYR | D154: 500000 | E154: NULL | F154: BS | G154: NULL
A155: 2017-01-23 | B155: CASH | C155: MYR | D155: 630210 | E155: CSMM | F155: PLR | G155: 2678753.55
A156: 2017-01-23 | B156: CASH | C156: MYR | D156: 636003 | E156: NULL | F156: PLR | G156: 533301.81
A157: 2017-01-23 | B157: CASH | C157: MYR | D157: 639210 | E157: CSMM | F157: PLR | G157: 4355144.29
A158: 2017-01-23 | B158: CASH | C158: MYR | D158: 710102 | E158: NULL | F158: PLR | G158: NULL
A159: 2017-01-23 | B159: CASH | C159: MYR | D159: 710876 | E159: NULL | F159: PLR | G159: NULL
A160: 2017-01-23 | B160: CASH | C160: MYR | D160: 800000 | E160: NULL | F160: BS | G160: NULL
A161: 2017-01-23 | B161: CASH | C161: MYR | D161: 830000 | E161: NULL | F161: BS | G161: NULL
A162: 2017-01-23 | B162: CASH | C162: MYR | D162: 939210 | E162: CSMM | F162: PLR | G162: -3882763.86
A163: 2017-01-24 | B163: CASH | C163: MYR | D163: 100210 | E163: CSMM | F163: BS | G163: NULL
A164: 2017-01-24 | B164: CASH | C164: MYR | D164: 139210 | E164: CSMM | F164: BS | G164: NULL
A165: 2017-01-24 | B165: CASH | C165: MYR | D165: 500000 | E165: NULL | F165: BS | G165: NULL
A166: 2017-01-24 | B166: CASH | C166: MYR | D166: 630210 | E166: CSMM | F166: PLR | G166: 2713811.24
A167: 2017-01-24 | B167: CASH | C167: MYR | D167: 636003 | E167: NULL | F167: PLR | G167: 533301.81
A168: 2017-01-24 | B168: CASH | C168: MYR | D168: 639210 | E168: CSMM | F168: PLR | G168: 4449065.1
A169: 2017-01-24 | B169: CASH | C169: MYR | D169: 710102 | E169: NULL | F169: PLR | G169: NULL
A170: 2017-01-24 | B170: CASH | C170: MYR | D170: 710876 | E170: NULL | F170: PLR | G170: NULL
A171: 2017-01-24 | B171: CASH | C171: MYR | D171: 800000 | E171: NULL | F171: BS | G171: NULL
A172: 2017-01-24 | B172: CASH | C172: MYR | D172: 830000 | E172: NULL | F172: BS | G172: NULL
A173: 2017-01-24 | B173: CASH | C173: MYR | D173: 939210 | E173: CSMM | F173: PLR | G173: -3882763.86
A174: 2017-01-25 | B174: CASH | C174: MYR | D174: 100210 | E174: CSMM | F174: BS | G174: NULL
A175: 2017-01-25 | B175: CASH | C175: MYR | D175: 139210 | E175: CSMM | F175: BS | G175: NULL
A176: 2017-01-25 | B176: CASH | C176: MYR | D176: 500000 | E176: NULL | F176: BS | G176: NULL
A177: 2017-01-25 | B177: CASH | C177: MYR | D177: 630210 | E177: CSMM | F177: PLR | G177: 2739132.06
A178: 2017-01-25 | B178: CASH | C178: MYR | D178: 636003 | E178: NULL | F178: PLR | G178: 533301.81
A179: 2017-01-25 | B179: CASH | C179: MYR | D179: 639210 | E179: CSMM | F179: PLR | G179: 4553137.86
A180: 2017-01-25 | B180: CASH | C180: MYR | D180: 710102 | E180: NULL | F180: PLR | G180: NULL
A181: 2017-01-25 | B181: CASH | C181: MYR | D181: 710876 | E181: NULL | F181: PLR | G181: NULL
A182: 2017-01-25 | B182: CASH | C182: MYR | D182: 800000 | E182: NULL | F182: BS | G182: NULL
A183: 2017-01-25 | B183: CASH | C183: MYR | D183: 830000 | E183: NULL | F183: BS | G183: NULL
A184: 2017-01-25 | B184: CASH | C184: MYR | D184: 939210 | E184: CSMM | F184: PLR | G184: -3882763.86
A185: 2017-01-26 | B185: CASH | C185: MYR | D185: 100210 | E185: CSMM | F185: BS | G185: NULL
A186: 2017-01-26 | B186: CASH | C186: MYR | D186: 139210 | E186: CSMM | F186: BS | G186: NULL
A187: 2017-01-26 | B187: CASH | C187: MYR | D187: 500000 | E187: NULL | F187: BS | G187: NULL
A188: 2017-01-26 | B188: CASH | C188: MYR | D188: 630210 | E188: CSMM | F188: PLR | G188: 2775272.14
A189: 2017-01-26 | B189: CASH | C189: MYR | D189: 636003 | E189: NULL | F189: PLR | G189: 533301.81
A190: 2017-01-26 | B190: CASH | C190: MYR | D190: 639210 | E190: CSMM | F190: PLR | G190: 4645744.65
A191: 2017-01-26 | B191: CASH | C191: MYR | D191: 710102 | E191: NULL | F191: PLR | G191: NULL
A192: 2017-01-26 | B192: CASH | C192: MYR | D192: 710876 | E192: NULL | F192: PLR | G192: NULL
A193: 2017-01-26 | B193: CASH | C193: MYR | D193: 800000 | E193: NULL | F193: BS | G193: NULL
A194: 2017-01-26 | B194: CASH | C194: MYR | D194: 830000 | E194: NULL | F194: BS | G194: NULL
A195: 2017-01-26 | B195: CASH | C195: MYR | D195: 939210 | E195: CSMM | F195: PLR | G195: -3882763.86
A196: 2017-01-27 | B196: CASH | C196: MYR | D196: 100210 | E196: CSMM | F196: BS | G196: NULL
A197: 2017-01-27 | B197: CASH | C197: MYR | D197: 139210 | E197: CSMM | F197: BS | G197: NULL
A198: 2017-01-27 | B198: CASH | C198: MYR | D198: 500000 | E198: NULL | F198: BS | G198: NULL
A199: 2017-01-27 | B199: CASH | C199: MYR | D199: 630210 | E199: CSMM | F199: PLR | G199: 2795984.47
A200: 2017-01-27 | B200: CASH | C200: MYR | D200: 636003 | E200: NULL | F200: PLR | G200: 1544698.44
... 162 more rows

Sheet AccTypeRef
A1: Map AccType to AssetClass (Put NA for unmatched AccType) | F1: Available Asset Class
A2: qAccType | B2: GLMapProdCode | C2: Description | F2: qAssetClass | G2: AssetClassDesc
A3: BDCG | B3: 100 | C3: Cagamas Bond | D3: BND | F3: BND | G3: Bond | AA3: BDCG | AB3: 100 | AC3: Cagamas Bond | AD3: BND
A4: BDCO | B4: 110 | C4: Commercial Bond | D4: NA | F4: CAP | G4: Capital | AA4: BDCO | AB4: 110 | AC4: Commercial Bond | AD4: NA
A5: BDCP | B5: 120 | C5: Commercial Paper | D5: CPR | F5: CIS | G5: Collective Investment | AA5: BDCP | AB5: 120 | AC5: Commercial Paper | AD5: CPR
A6: BDGG | B6: 130 | C6: Government Guaranteed Bond | D6: NA | F6: CPR | G6: Commercial Papers | AA6: BDGG | AB6: 130 | AC6: Government Guaranteed Bond | AD6: NA
A7: BDMG | B7: 140 | C7: Malaysia Government Securities | D7: NA | F7: CSH | G7: Cash | AA7: BDMG | AB7: 140 | AC7: Malaysia Government Securities | AD7: NA
A8: BNID | B8: 190 | C8: NID | D8: NA | F8: DCI | G8: Dual Currency Investment | AA8: BNID | AB8: 190 | AC8: NID | AD8: NA
A9: BXCO | B9: 115 | C9: Foreign Commercial Bond | D9: NA | F9: DEV | G9: Derivative | AA9: BXCO | AB9: 115 | AC9: Foreign Commercial Bond | AD9: NA
A10: BXCP | B10: 125 | C10: Foreign Commercial Paper | D10: NA | F10: EQT | G10: Equity | AA10: BXCP | AB10: 125 | AC10: Foreign Commercial Paper | AD10: NA
A11: CAPT | B11: 000 | C11: Unitholder Capital | D11: CSH | F11: ESG | G11: ESG Fund | AA11: CAPT | AB11: 000 | AC11: Unitholder Capital | AD11: CSH
A12: CSFD | B12: 220 | C12: Local Fixed Deposit Placement | D12: NA | F12: FEQ | G12: Fund Equity | AA12: CSFD | AB12: 220 | AC12: Local Fixed Deposit Placement | AD12: NA
A13: CSMF | B13: 215 | C13: Foreign Money Market Placement | D13: NA | F13: FMM | G13: Fund Money Market/Fixed Income | AA13: CSMF | AB13: 215 | AC13: Foreign Money Market Placement | AD13: NA
A14: CSMM | B14: 210 | C14: Local Money Market Placement | D14: CSH | F14: FRX | G14: Forex | AA14: CSMM | AB14: 210 | AC14: Local Money Market Placement | AD14: CSH
A15: DEVCF | B15: 330 | C15: Derivative | D15: NA | F15: O-BND | G15: Bond-Foreign | AA15: DEVCF | AB15: 330 | AC15: Derivative | AD15: NA
A16: FORD | B16: 310 | C16: Forward Contract | D16: NA | F16: O-CSH | G16: Cash-Foreign | AA16: FORD | AB16: 310 | AC16: Forward Contract | AD16: NA
A17: FRX | B17: 000 | C17: Forex | D17: NA | F17: O-EQT | G17: Equity-Foreign | AA17: FRX | AB17: 000 | AC17: Forex | AD17: NA
A18: FUDE | B18: 300 | C18: Futures | D18: NA | F18: O-ESG | G18: ESG Fund-Foreign | AA18: FUDE | AB18: 300 | AC18: Futures | AD18: NA
A19: LNST | B19: 150 | C19: Loan Stock | D19: NA | F19: O-FEQ | G19: Fund Equity-Foreign | AA19: LNST | AB19: 150 | AC19: Loan Stock | AD19: NA
A20: OPFO | B20: 325 | C20: Options Foreign | D20: NA | F20: O-FMM | G20: Fund Money Market/Fixed Income-Foreign | AA20: OPFO | AB20: 325 | AC20: Options Foreign | AD20: NA
A21: OPLO | B21: 320 | C21: Options Local | D21: NA | F21: OTC | G21: OTC Derivative | AA21: OPLO | AB21: 320 | AC21: Options Local | AD21: NA
A22: PROL | B22: 010 | C22: Local Property | D22: NA | F22: OTH | G22: Other Investments | AA22: PROL | AB22: 010 | AC22: Local Property | AD22: NA
A23: PROP | B23: 010 | C23: Property | D23: NA | F23: PRO | G23: Property | AA23: PROP | AB23: 010 | AC23: Property | AD23: NA
A24: REIF | B24: 465 | C24: Foreign Real Estate Investment Trust | D24: NA | F24: SBL | G24: Securities Borrowing & Lending | AA24: REIF | AB24: 465 | AC24: Foreign Real Estate Investment Trust | AD24: NA
A25: REIT | B25: 460 | C25: Real Estate Investment Trust | D25: EQT | F25: STP | G25: Structured Product | AA25: REIT | AB25: 460 | AC25: Real Estate Investment Trust | AD25: EQT
A26: SBLL | B26: 600 | C26: Local Security Borrowing Lending | D26: NA | F26: WHF | G26: Wholesale Fund | AA26: SBLL | AB26: 600 | AC26: Local Security Borrowing Lending | AD26: NA
A27: SHFL | B27: 015 | C27: Foreign Listed Equities | D27: NA | AA27: SHFL | AB27: 015 | AC27: Foreign Listed Equities | AD27: NA
A28: SHLI | B28: 010 | C28: Local Listed Share | D28: EQT | AA28: SHLI | AB28: 010 | AC28: Local Listed Share | AD28: EQT
A29: SHUL | B29: 030 | C29: Local UnListed Share | D29: NA | AA29: SHUL | AB29: 030 | AC29: Local UnListed Share | AD29: NA
A30: UTCX | B30: 430 | C30: Local Cash Unit Trust | D30: FMM | AA30: UTCX | AB30: 430 | AC30: Local Cash Unit Trust | AD30: FMM
A31: UTEX | B31: 410 | C31: Local Equity Unit Trust | D31: FEQ | AA31: UTEX | AB31: 410 | AC31: Local Equity Unit Trust | AD31: FEQ
A32: UTFX | B32: 415 | C32: Foreign Equity Unit Trust | D32: NA | AA32: UTFX | AB32: 415 | AC32: Foreign Equity Unit Trust | AD32: NA

Sheet Sheet1 (hidden)
A1: TBDate | B1: qFundCode | C1: qCurrencyCode | D1: ShortGL | E1: qAccType | F1: TBType | G1: TotIncome | H1: TotHoldings | I1: TotExp | J1: TotDays
A2: 2017-01-03 | B2: CASH | C2: MYR | D2: 100210 | E2: CSMM | F2: BS | G2: NULL | H2: 1509567000 | I2: NULL | J2: 1 | M2: 2017-02-01 | N2: 3907938599
A3: 2017-01-03 | B3: CASH | C3: MYR | D3: 139210 | E3: CSMM | F3: BS | G3: NULL | H3: NULL | I3: NULL | J3: 1 | M3: 2017-02-02 | N3: 3907938599 | O3: =SUMIFS(H:H,E:E,"SHLI",A:A,M3)+SUMIFS(H:H,E:E,"REIT",A:A,M3) -> 3928593826 | P3: =O3-N3 -> 20655226.77
A4: 2017-01-03 | B4: CASH | C4: MYR | D4: 200100 | E4: BDCG | F4: BS | G4: NULL | H4: NULL | I4: NULL | J4: 1 | M4: 2017-02-03 | N4: 3940654597 | O4: =SUMIFS(H:H,E:E,"SHLI",A:A,M4)+SUMIFS(H:H,E:E,"REIT",A:A,M4) -> 3940654597 | P4: =O4-N4 -> 0
A5: 2017-01-03 | B5: CASH | C5: MYR | D5: 500000 | E5: NULL | F5: BS | G5: NULL | H5: NULL | I5: NULL | J5: 1 | M5: 2017-02-04 | N5: 3940654597 | O5: =SUMIFS(H:H,E:E,"SHLI",A:A,M5)+SUMIFS(H:H,E:E,"REIT",A:A,M5) -> 0 | P5: -3940654597
A6: 2017-01-03 | B6: CASH | C6: MYR | D6: 630210 | E6: CSMM | F6: PLR | G6: 48180.93 | H6: NULL | I6: NULL | J6: 1 | M6: 2017-02-05 | N6: 3940654597 | O6: =SUMIFS(H:H,E:E,"SHLI",A:A,M6)+SUMIFS(H:H,E:E,"REIT",A:A,M6) -> 0 | P6: -3940654597
A7: 2017-01-03 | B7: CASH | C7: MYR | D7: 636003 | E7: NULL | F7: PLR | G7: 0 | H7: NULL | I7: NULL | J7: 1 | M7: 2017-02-06 | N7: 3929320446 | O7: =SUMIFS(H:H,E:E,"SHLI",A:A,M7)+SUMIFS(H:H,E:E,"REIT",A:A,M7) -> 3929320446 | P7: 0
A8: 2017-01-03 | B8: CASH | C8: MYR | D8: 636010 | E8: SHLI | F8: PLR | G8: 0 | H8: NULL | I8: NULL | J8: 1 | M8: 2017-02-07 | N8: 3917805922 | O8: =SUMIFS(H:H,E:E,"SHLI",A:A,M8)+SUMIFS(H:H,E:E,"REIT",A:A,M8) -> 3917805922 | P8: 0
A9: 2017-01-03 | B9: CASH | C9: MYR | D9: 639210 | E9: CSMM | F9: PLR | G9: 4330190.18 | H9: NULL | I9: NULL | J9: 1 | M9: 2017-02-08 | N9: 3909906717 | O9: 3909906717 | P9: 0
A10: 2017-01-03 | B10: CASH | C10: MYR | D10: 710102 | E10: NULL | F10: PLR | G10: NULL | H10: NULL | I10: 200 | J10: 1 | M10: 2017-02-09 | N10: 3909906717 | O10: 0 | P10: -3909906717
A11: 2017-01-03 | B11: CASH | C11: MYR | D11: 710876 | E11: NULL | F11: PLR | G11: NULL | H11: NULL | I11: 12 | J11: 1 | M11: 2017-02-10 | N11: 3902559136 | O11: 3902559136 | P11: 0
A12: 2017-01-03 | B12: CASH | C12: MYR | D12: 800000 | E12: NULL | F12: BS | G12: NULL | H12: NULL | I12: NULL | J12: 1 | M12: 2017-02-11 | N12: 3902559136 | O12: 0 | P12: -3902559136
A13: 2017-01-03 | B13: CASH | C13: MYR | D13: 830000 | E13: NULL | F13: BS | G13: NULL | H13: NULL | I13: NULL | J13: 1 | M13: 2017-02-12 | N13: 3902559136 | O13: 0 | P13: -3902559136
A14: 2017-01-03 | B14: CASH | C14: MYR | D14: 939210 | E14: CSMM | F14: PLR | G14: -3882763.86 | H14: NULL | I14: NULL | J14: 1 | M14: 2017-02-13 | N14: 3889817922 | O14: 3889817922 | P14: 0
A15: 2017-01-03 | B15: CORE | C15: MYR | D15: 100010 | E15: SHLI | F15: BS | G15: NULL | H15: 939426348.3 | I15: NULL | J15: 1 | M15: 2017-02-14 | N15: 3889064332 | O15: 3889064332 | P15: 0
A16: 2017-01-03 | B16: CORE | C16: MYR | D16: 189010 | E16: SHLI | F16: BS | G16: NULL | H16: NULL | I16: NULL | J16: 1 | M16: 2017-02-15 | N16: 3892331487 | O16: 3892331487 | P16: 0
A17: 2017-01-03 | B17: CORE | C17: MYR | D17: 300200 | E17: NULL | F17: BS | G17: NULL | H17: NULL | I17: NULL | J17: 1 | M17: 2017-02-16 | N17: 3899810612 | O17: 3899810612 | P17: 0
A18: 2017-01-03 | B18: CORE | C18: MYR | D18: 600010 | E18: SHLI | F18: PLR | G18: 0 | H18: NULL | I18: NULL | J18: 1 | M18: 2017-02-17 | N18: 3872727076 | O18: 3872727076 | P18: 0
A19: 2017-01-03 | B19: CORE | C19: MYR | D19: 635010 | E19: SHLI | F19: PLR | G19: 0 | H19: NULL | I19: NULL | J19: 1 | M19: 2017-02-18 | N19: 3872727076 | O19: 0 | P19: -3872727076
A20: 2017-01-03 | B20: CORE | C20: MYR | D20: 689010 | E20: SHLI | F20: PLU | G20: NULL | H20: NULL | I20: NULL | J20: 1 | M20: 2017-02-19 | N20: 3872727076 | O20: 0 | P20: -3872727076
A21: 2017-01-03 | B21: CORE | C21: MYR | D21: 800000 | E21: NULL | F21: BS | G21: NULL | H21: NULL | I21: NULL | J21: 1 | M21: 2017-02-20 | N21: 3868593867 | O21: 3868593867 | P21: 0
A22: 2017-01-03 | B22: CORE | C22: MYR | D22: 810000 | E22: NULL | F22: BS | G22: NULL | H22: NULL | I22: NULL | J22: 1 | M22: 2017-02-21 | N22: 3869185253 | O22: 3869185253 | P22: 0
A23: 2017-01-03 | B23: CORE | C23: MYR | D23: 830000 | E23: NULL | F23: BS | G23: NULL | H23: NULL | I23: NULL | J23: 1 | M23: 2017-02-22 | N23: 3829229488 | O23: 3829229488 | P23: 0
A24: 2017-01-03 | B24: CORE | C24: MYR | D24: 989010 | E24: SHLI | F24: PLU | G24: NULL | H24: NULL | I24: NULL | J24: 1 | M24: 2017-02-23 | N24: 3828903063 | O24: 3828903063 | P24: 0
A25: 2017-01-03 | B25: DSRA | C25: MYR | D25: 100210 | E25: CSMM | F25: BS | G25: NULL | H25: 107185100 | I25: NULL | J25: 1 | M25: 2017-02-24 | N25: 3821247086 | O25: 3821247086 | P25: 0
A26: 2017-01-03 | B26: DSRA | C26: MYR | D26: 139210 | E26: CSMM | F26: BS | G26: NULL | H26: NULL | I26: NULL | J26: 1 | M26: 2017-02-25 | N26: 3821247086 | O26: 0 | P26: -3821247086
A27: 2017-01-03 | B27: DSRA | C27: MYR | D27: 500000 | E27: NULL | F27: BS | G27: NULL | H27: NULL | I27: NULL | J27: 1 | M27: 2017-02-26 | N27: 3821247086 | O27: 0 | P27: -3821247086
A28: 2017-01-03 | B28: DSRA | C28: MYR | D28: 630210 | E28: CSMM | F28: PLR | G28: 0 | H28: NULL | I28: NULL | J28: 1 | M28: 2017-02-27 | N28: 3810969507 | O28: 3810969507 | P28: 0
A29: 2017-01-03 | B29: DSRA | C29: MYR | D29: 639210 | E29: CSMM | F29: PLR | G29: 110055.73 | H29: NULL | I29: NULL | J29: 1 | M29: 2017-02-28 | N29: 3884611168 | O29: 3884611168 | P29: 0
A30: 2017-01-03 | B30: DSRA | C30: MYR | D30: 710102 | E30: NULL | F30: PLR | G30: NULL | H30: NULL | I30: 0 | J30: 1
A31: 2017-01-03 | B31: DSRA | C31: MYR | D31: 710104 | E31: NULL | F31: PLR | G31: NULL | H31: NULL | I31: 0 | J31: 1
A32: 2017-01-03 | B32: DSRA | C32: MYR | D32: 710876 | E32: NULL | F32: PLR | G32: NULL | H32: NULL | I32: 0 | J32: 1
A33: 2017-01-03 | B33: DSRA | C33: MYR | D33: 800000 | E33: NULL | F33: BS | G33: NULL | H33: NULL | I33: NULL | J33: 1
A34: 2017-01-03 | B34: DSRA | C34: MYR | D34: 830000 | E34: NULL | F34: BS | G34: NULL | H34: NULL | I34: NULL | J34: 1
A35: 2017-01-03 | B35: DSRA | C35: MYR | D35: 850000 | E35: NULL | F35: PLR | G35: NULL | H35: NULL | I35: NULL | J35: 1
A36: 2017-01-03 | B36: DSRA | C36: MYR | D36: 939210 | E36: CSMM | F36: PLR | G36: -74816.79 | H36: NULL | I36: NULL | J36: 1
A37: 2017-01-03 | B37: DIVIDEND | C37: MYR | D37: 100010 | E37: SHLI | F37: BS | G37: NULL | H37: 832479400.8 | I37: NULL | J37: 1
A38: 2017-01-03 | B38: DIVIDEND | C38: MYR | D38: 189010 | E38: SHLI | F38: BS | G38: NULL | H38: NULL | I38: NULL | J38: 1
A39: 2017-01-03 | B39: DIVIDEND | C39: MYR | D39: 299010 | E39: SHLI | F39: BS | G39: NULL | H39: NULL | I39: NULL | J39: 1
A40: 2017-01-03 | B40: DIVIDEND | C40: MYR | D40: 300200 | E40: NULL | F40: BS | G40: NULL | H40: NULL | I40: NULL | J40: 1
A41: 2017-01-03 | B41: DIVIDEND | C41: MYR | D41: 600010 | E41: SHLI | F41: PLR | G41: 0 | H41: NULL | I41: NULL | J41: 1
A42: 2017-01-03 | B42: DIVIDEND | C42: MYR | D42: 635010 | E42: SHLI | F42: PLR | G42: 0 | H42: NULL | I42: NULL | J42: 1
A43: 2017-01-03 | B43: DIVIDEND | C43: MYR | D43: 689010 | E43: SHLI | F43: PLU | G43: NULL | H43: NULL | I43: NULL | J43: 1
A44: 2017-01-03 | B44: DIVIDEND | C44: MYR | D44: 800000 | E44: NULL | F44: BS | G44: NULL | H44: NULL | I44: NULL | J44: 1
A45: 2017-01-03 | B45: DIVIDEND | C45: MYR | D45: 810000 | E45: NULL | F45: BS | G45: NULL | H45: NULL | I45: NULL | J45: 1
A46: 2017-01-03 | B46: DIVIDEND | C46: MYR | D46: 830000 | E46: NULL | F46: BS | G46: NULL | H46: NULL | I46: NULL | J46: 1
A47: 2017-01-03 | B47: DIVIDEND | C47: MYR | D47: 989010 | E47: SHLI | F47: PLU | G47: NULL | H47: NULL | I47: NULL | J47: 1
A48: 2017-01-03 | B48: FUND | C48: MYR | D48: 100410 | E48: UTEX | F48: BS | G48: NULL | H48: 15000000 | I48: NULL | J48: 1
A49: 2017-01-03 | B49: FUND | C49: MYR | D49: 100430 | E49: UTCX | F49: BS | G49: NULL | H49: 21847846.18 | I49: NULL | J49: 1
A50: 2017-01-03 | B50: FUND | C50: MYR | D50: 189410 | E50: UTEX | F50: BS | G50: NULL | H50: NULL | I50: NULL | J50: 1
A51: 2017-01-03 | B51: FUND | C51: MYR | D51: 189430 | E51: UTCX | F51: BS | G51: NULL | H51: NULL | I51: NULL | J51: 1
A52: 2017-01-03 | B52: FUND | C52: MYR | D52: 299430 | E52: UTCX | F52: BS | G52: NULL | H52: NULL | I52: NULL | J52: 1
A53: 2017-01-03 | B53: FUND | C53: MYR | D53: 635430 | E53: UTCX | F53: PLR | G53: 0 | H53: NULL | I53: NULL | J53: 1
A54: 2017-01-03 | B54: FUND | C54: MYR | D54: 636430 | E54: UTCX | F54: PLR | G54: 0 | H54: NULL | I54: NULL | J54: 1
A55: 2017-01-03 | B55: FUND | C55: MYR | D55: 689410 | E55: UTEX | F55: PLU | G55: NULL | H55: NULL | I55: NULL | J55: 1
A56: 2017-01-03 | B56: FUND | C56: MYR | D56: 689430 | E56: UTCX | F56: PLU | G56: NULL | H56: NULL | I56: NULL | J56: 1
A57: 2017-01-03 | B57: FUND | C57: MYR | D57: 800000 | E57: NULL | F57: BS | G57: NULL | H57: NULL | I57: NULL | J57: 1
A58: 2017-01-03 | B58: FUND | C58: MYR | D58: 810000 | E58: NULL | F58: BS | G58: NULL | H58: NULL | I58: NULL | J58: 1
A59: 2017-01-03 | B59: FUND | C59: MYR | D59: 830000 | E59: NULL | F59: BS | G59: NULL | H59: NULL | I59: NULL | J59: 1
A60: 2017-01-03 | B60: FUND | C60: MYR | D60: 989410 | E60: UTEX | F60: PLU | G60: NULL | H60: NULL | I60: NULL | J60: 1
A61: 2017-01-03 | B61: FUND | C61: MYR | D61: 989430 | E61: UTCX | F61: PLU | G61: NULL | H61: NULL | I61: NULL | J61: 1
A62: 2017-01-03 | B62: GROWTH | C62: MYR | D62: 100010 | E62: SHLI | F62: BS | G62: NULL | H62: 388622887.4 | I62: NULL | J62: 1
A63: 2017-01-03 | B63: GROWTH | C63: MYR | D63: 189010 | E63: SHLI | F63: BS | G63: NULL | H63: NULL | I63: NULL | J63: 1
A64: 2017-01-03 | B64: GROWTH | C64: MYR | D64: 200200 | E64: NULL | F64: BS | G64: NULL | H64: NULL | I64: NULL | J64: 1
A65: 2017-01-03 | B65: GROWTH | C65: MYR | D65: 299010 | E65: SHLI | F65: BS | G65: NULL | H65: NULL | I65: NULL | J65: 1
A66: 2017-01-03 | B66: GROWTH | C66: MYR | D66: 300200 | E66: NULL | F66: BS | G66: NULL | H66: NULL | I66: NULL | J66: 1
A67: 2017-01-03 | B67: GROWTH | C67: MYR | D67: 500000 | E67: NULL | F67: BS | G67: NULL | H67: NULL | I67: NULL | J67: 1
A68: 2017-01-03 | B68: GROWTH | C68: MYR | D68: 600010 | E68: SHLI | F68: PLR | G68: 91289.23 | H68: NULL | I68: NULL | J68: 1
A69: 2017-01-03 | B69: GROWTH | C69: MYR | D69: 635010 | E69: SHLI | F69: PLR | G69: 0 | H69: NULL | I69: NULL | J69: 1
A70: 2017-01-03 | B70: GROWTH | C70: MYR | D70: 689010 | E70: SHLI | F70: PLU | G70: NULL | H70: NULL | I70: NULL | J70: 1
A71: 2017-01-03 | B71: GROWTH | C71: MYR | D71: 800000 | E71: NULL | F71: BS | G71: NULL | H71: NULL | I71: NULL | J71: 1
A72: 2017-01-03 | B72: GROWTH | C72: MYR | D72: 810000 | E72: NULL | F72: BS | G72: NULL | H72: NULL | I72: NULL | J72: 1
A73: 2017-01-03 | B73: GROWTH | C73: MYR | D73: 830000 | E73: NULL | F73: BS | G73: NULL | H73: NULL | I73: NULL | J73: 1
A74: 2017-01-03 | B74: GROWTH | C74: MYR | D74: 989010 | E74: SHLI | F74: PLU | G74: NULL | H74: NULL | I74: NULL | J74: 1
A75: 2017-01-03 | B75: INDEX | C75: MYR | D75: 100010 | E75: SHLI | F75: BS | G75: NULL | H75: 118160302.6 | I75: NULL | J75: 1
A76: 2017-01-03 | B76: INDEX | C76: MYR | D76: 189010 | E76: SHLI | F76: BS | G76: NULL | H76: NULL | I76: NULL | J76: 1
A77: 2017-01-03 | B77: INDEX | C77: MYR | D77: 600010 | E77: SHLI | F77: PLR | G77: 0 | H77: NULL | I77: NULL | J77: 1
A78: 2017-01-03 | B78: INDEX | C78: MYR | D78: 635010 | E78: SHLI | F78: PLR | G78: 0 | H78: NULL | I78: NULL | J78: 1
A79: 2017-01-03 | B79: INDEX | C79: MYR | D79: 689010 | E79: SHLI | F79: PLU | G79: NULL | H79: NULL | I79: NULL | J79: 1
A80: 2017-01-03 | B80: INDEX | C80: MYR | D80: 800000 | E80: NULL | F80: BS | G80: NULL | H80: NULL | I80: NULL | J80: 1
A81: 2017-01-03 | B81: INDEX | C81: MYR | D81: 810000 | E81: NULL | F81: BS | G81: NULL | H81: NULL | I81: NULL | J81: 1
A82: 2017-01-03 | B82: INDEX | C82: MYR | D82: 830000 | E82: NULL | F82: BS | G82: NULL | H82: NULL | I82: NULL | J82: 1
A83: 2017-01-03 | B83: INDEX | C83: MYR | D83: 989010 | E83: SHLI | F83: PLU | G83: NULL | H83: NULL | I83: NULL | J83: 1
A84: 2017-01-03 | B84: OPR | C84: MYR | D84: 500000 | E84: NULL | F84: BS | G84: NULL | H84: NULL | I84: NULL | J84: 1
A85: 2017-01-03 | B85: OPR | C85: MYR | D85: 636003 | E85: NULL | F85: PLR | G85: 0 | H85: NULL | I85: NULL | J85: 1
A86: 2017-01-03 | B86: OPR | C86: MYR | D86: 710102 | E86: NULL | F86: PLR | G86: NULL | H86: NULL | I86: 0 | J86: 1
A87: 2017-01-03 | B87: OPR | C87: MYR | D87: 710104 | E87: NULL | F87: PLR | G87: NULL | H87: NULL | I87: 0 | J87: 1
A88: 2017-01-03 | B88: OPR | C88: MYR | D88: 710876 | E88: NULL | F88: PLR | G88: NULL | H88: NULL | I88: 0 | J88: 1
A89: 2017-01-03 | B89: OPR | C89: MYR | D89: 800000 | E89: NULL | F89: BS | G89: NULL | H89: NULL | I89: NULL | J89: 1
A90: 2017-01-03 | B90: OPR | C90: MYR | D90: 830000 | E90: NULL | F90: BS | G90: NULL | H90: NULL | I90: NULL | J90: 1
A91: 2017-01-03 | B91: REITS | C91: MYR | D91: 100460 | E91: REIT | F91: BS | G91: NULL | H91: 490154582.9 | I91: NULL | J91: 1
A92: 2017-01-03 | B92: REITS | C92: MYR | D92: 189460 | E92: REIT | F92: BS | G92: NULL | H92: NULL | I92: NULL | J92: 1
A93: 2017-01-03 | B93: REITS | C93: MYR | D93: 299460 | E93: REIT | F93: BS | G93: NULL | H93: NULL | I93: NULL | J93: 1
A94: 2017-01-03 | B94: REITS | C94: MYR | D94: 300200 | E94: NULL | F94: BS | G94: NULL | H94: NULL | I94: NULL | J94: 1
A95: 2017-01-03 | B95: REITS | C95: MYR | D95: 500000 | E95: NULL | F95: BS | G95: NULL | H95: NULL | I95: NULL | J95: 1
A96: 2017-01-03 | B96: REITS | C96: MYR | D96: 600460 | E96: REIT | F96: PLR | G96: 0 | H96: NULL | I96: NULL | J96: 1
A97: 2017-01-03 | B97: REITS | C97: MYR | D97: 635460 | E97: REIT | F97: PLR | G97: 0 | H97: NULL | I97: NULL | J97: 1
A98: 2017-01-03 | B98: REITS | C98: MYR | D98: 689460 | E98: REIT | F98: PLU | G98: NULL | H98: NULL | I98: NULL | J98: 1
A99: 2017-01-03 | B99: REITS | C99: MYR | D99: 800000 | E99: NULL | F99: BS | G99: NULL | H99: NULL | I99: NULL | J99: 1
A100: 2017-01-03 | B100: REITS | C100: MYR | D100: 810000 | E100: NULL | F100: BS | G100: NULL | H100: NULL | I100: NULL | J100: 1
A101: 2017-01-03 | B101: REITS | C101: MYR | D101: 830000 | E101: NULL | F101: BS | G101: NULL | H101: NULL | I101: NULL | J101: 1
A102: 2017-01-03 | B102: REITS | C102: MYR | D102: 989460 | E102: REIT | F102: PLU | G102: NULL | H102: NULL | I102: NULL | J102: 1
A103: 2017-01-03 | B103: SMALLMIDCAP | C103: MYR | D103: 100010 | E103: SHLI | F103: BS | G103: NULL | H103: 109407779.9 | I103: NULL | J103: 1
A104: 2017-01-03 | B104: SMALLMIDCAP | C104: MYR | D104: 189010 | E104: SHLI | F104: BS | G104: NULL | H104: NULL | I104: NULL | J104: 1
A105: 2017-01-03 | B105: SMALLMIDCAP | C105: MYR | D105: 200200 | E105: NULL | F105: BS | G105: NULL | H105: NULL | I105: NULL | J105: 1
A106: 2017-01-03 | B106: SMALLMIDCAP | C106: MYR | D106: 299010 | E106: SHLI | F106: BS | G106: NULL | H106: NULL | I106: NULL | J106: 1
A107: 2017-01-03 | B107: SMALLMIDCAP | C107: MYR | D107: 300200 | E107: NULL | F107: BS | G107: NULL | H107: NULL | I107: NULL | J107: 1
A108: 2017-01-03 | B108: SMALLMIDCAP | C108: MYR | D108: 600010 | E108: SHLI | F108: PLR | G108: 33278.57 | H108: NULL | I108: NULL | J108: 1
A109: 2017-01-03 | B109: SMALLMIDCAP | C109: MYR | D109: 635010 | E109: SHLI | F109: PLR | G109: 0 | H109: NULL | I109: NULL | J109: 1
A110: 2017-01-03 | B110: SMALLMIDCAP | C110: MYR | D110: 689010 | E110: SHLI | F110: PLU | G110: NULL | H110: NULL | I110: NULL | J110: 1
A111: 2017-01-03 | B111: SMALLMIDCAP | C111: MYR | D111: 800000 | E111: NULL | F111: BS | G111: NULL | H111: NULL | I111: NULL | J111: 1
A112: 2017-01-03 | B112: SMALLMIDCAP | C112: MYR | D112: 810000 | E112: NULL | F112: BS | G112: NULL | H112: NULL | I112: NULL | J112: 1
A113: 2017-01-03 | B113: SMALLMIDCAP | C113: MYR | D113: 830000 | E113: NULL | F113: BS | G113: NULL | H113: NULL | I113: NULL | J113: 1
A114: 2017-01-03 | B114: SMALLMIDCAP | C114: MYR | D114: 989010 | E114: SHLI | F114: PLU | G114: NULL | H114: NULL | I114: NULL | J114: 1
A115: 2017-01-03 | B115: STFI | C115: MYR | D115: 620120 | E115: BDCP | F115: PLR | G115: 0 | H115: NULL | I115: NULL | J115: 1
A116: 2017-01-03 | B116: STFI | C116: MYR | D116: 800000 | E116: NULL | F116: BS | G116: NULL | H116: NULL | I116: NULL | J116: 1
A117: 2017-01-03 | B117: STFI | C117: MYR | D117: 830000 | E117: NULL | F117: BS | G117: NULL | H117: NULL | I117: NULL | J117: 1
A118: 2017-01-03 | B118: TRA | C118: MYR | D118: 500000 | E118: NULL | F118: BS | G118: NULL | H118: NULL | I118: NULL | J118: 1
A119: 2017-01-03 | B119: TRA | C119: MYR | D119: 710102 | E119: NULL | F119: PLR | G119: NULL | H119: NULL | I119: 0 | J119: 1
A120: 2017-01-03 | B120: TRA | C120: MYR | D120: 710876 | E120: NULL | F120: PLR | G120: NULL | H120: NULL | I120: 0 | J120: 1
A121: 2017-01-03 | B121: TRA | C121: MYR | D121: 800000 | E121: NULL | F121: BS | G121: NULL | H121: NULL | I121: NULL | J121: 1
A122: 2017-01-03 | B122: TRA | C122: MYR | D122: 830000 | E122: NULL | F122: BS | G122: NULL | H122: NULL | I122: NULL | J122: 1
A123: 2017-01-03 | B123: VALUE | C123: MYR | D123: 100010 | E123: SHLI | F123: BS | G123: NULL | H123: 909502485.7 | I123: NULL | J123: 1
A124: 2017-01-03 | B124: VALUE | C124: MYR | D124: 189010 | E124: SHLI | F124: BS | G124: NULL | H124: NULL | I124: NULL | J124: 1
A125: 2017-01-03 | B125: VALUE | C125: MYR | D125: 200200 | E125: NULL | F125: BS | G125: NULL | H125: NULL | I125: NULL | J125: 1
A126: 2017-01-03 | B126: VALUE | C126: MYR | D126: 299010 | E126: SHLI | F126: BS | G126: NULL | H126: NULL | I126: NULL | J126: 1
A127: 2017-01-03 | B127: VALUE | C127: MYR | D127: 300200 | E127: NULL | F127: BS | G127: NULL | H127: NULL | I127: NULL | J127: 1
A128: 2017-01-03 | B128: VALUE | C128: MYR | D128: 600010 | E128: SHLI | F128: PLR | G128: 0 | H128: NULL | I128: NULL | J128: 1
A129: 2017-01-03 | B129: VALUE | C129: MYR | D129: 635010 | E129: SHLI | F129: PLR | G129: 729054 | H129: NULL | I129: NULL | J129: 1
A130: 2017-01-03 | B130: VALUE | C130: MYR | D130: 689010 | E130: SHLI | F130: PLU | G130: NULL | H130: NULL | I130: NULL | J130: 1
A131: 2017-01-03 | B131: VALUE | C131: MYR | D131: 800000 | E131: NULL | F131: BS | G131: NULL | H131: NULL | I131: NULL | J131: 1
A132: 2017-01-03 | B132: VALUE | C132: MYR | D132: 810000 | E132: NULL | F132: BS | G132: NULL | H132: NULL | I132: NULL | J132: 1
A133: 2017-01-03 | B133: VALUE | C133: MYR | D133: 830000 | E133: NULL | F133: BS | G133: NULL | H133: NULL | I133: NULL | J133: 1
A134: 2017-01-03 | B134: VALUE | C134: MYR | D134: 989010 | E134: SHLI | F134: PLU | G134: NULL | H134: NULL | I134: NULL | J134: 1
A135: 2017-01-04 | B135: CASH | C135: MYR | D135: 100210 | E135: CSMM | F135: BS | G135: NULL | H135: 1492106000 | I135: NULL | J135: 1
A136: 2017-01-04 | B136: CASH | C136: MYR | D136: 139210 | E136: CSMM | F136: BS | G136: NULL | H136: NULL | I136: NULL | J136: 1
A137: 2017-01-04 | B137: CASH | C137: MYR | D137: 500000 | E137: NULL | F137: BS | G137: NULL | H137: NULL | I137: NULL | J137: 1
A138: 2017-01-04 | B138: CASH | C138: MYR | D138: 630210 | E138: CSMM | F138: PLR | G138: 81276.82 | H138: NULL | I138: NULL | J138: 1
A139: 2017-01-04 | B139: CASH | C139: MYR | D139: 639210 | E139: CSMM | F139: PLR | G139: 4457706.57 | H139: NULL | I139: NULL | J139: 1
A140: 2017-01-04 | B140: CASH | C140: MYR | D140: 710102 | E140: NULL | F140: PLR | G140: NULL | H140: NULL | I140: 200 | J140: 1
A141: 2017-01-04 | B141: CASH | C141: MYR | D141: 710876 | E141: NULL | F141: PLR | G141: NULL | H141: NULL | I141: 12 | J141: 1
A142: 2017-01-04 | B142: CASH | C142: MYR | D142: 800000 | E142: NULL | F142: BS | G142: NULL | H142: NULL | I142: NULL | J142: 1
A143: 2017-01-04 | B143: CASH | C143: MYR | D143: 830000 | E143: NULL | F143: BS | G143: NULL | H143: NULL | I143: NULL | J143: 1
A144: 2017-01-04 | B144: CASH | C144: MYR | D144: 939210 | E144: CSMM | F144: PLR | G144: -3882763.86 | H144: NULL | I144: NULL | J144: 1
A145: 2017-01-04 | B145: CORE | C145: MYR | D145: 100010 | E145: SHLI | F145: BS | G145: NULL | H145: 940430763.8 | I145: NULL | J145: 1
A146: 2017-01-04 | B146: CORE | C146: MYR | D146: 189010 | E146: SHLI | F146: BS | G146: NULL | H146: NULL | I146: NULL | J146: 1
A147: 2017-01-04 | B147: CORE | C147: MYR | D147: 300200 | E147: NULL | F147: BS | G147: NULL | H147: NULL | I147: NULL | J147: 1
A148: 2017-01-04 | B148: CORE | C148: MYR | D148: 689010 | E148: SHLI | F148: PLU | G148: NULL | H148: NULL | I148: NULL | J148: 1
A149: 2017-01-04 | B149: CORE | C149: MYR | D149: 800000 | E149: NULL | F149: BS | G149: NULL | H149: NULL | I149: NULL | J149: 1
A150: 2017-01-04 | B150: CORE | C150: MYR | D150: 810000 | E150: NULL | F150: BS | G150: NULL | H150: NULL | I150: NULL | J150: 1
A151: 2017-01-04 | B151: CORE | C151: MYR | D151: 830000 | E151: NULL | F151: BS | G151: NULL | H151: NULL | I151: NULL | J151: 1
A152: 2017-01-04 | B152: CORE | C152: MYR | D152: 989010 | E152: SHLI | F152: PLU | G152: NULL | H152: NULL | I152: NULL | J152: 1
A153: 2017-01-04 | B153: DSRA | C153: MYR | D153: 100210 | E153: CSMM | F153: BS | G153: NULL | H153: 107185100 | I153: NULL | J153: 1
A154: 2017-01-04 | B154: DSRA | C154: MYR | D154: 139210 | E154: CSMM | F154: BS | G154: NULL | H154: NULL | I154: NULL | J154: 1
A155: 2017-01-04 | B155: DSRA | C155: MYR | D155: 500000 | E155: NULL | F155: BS | G155: NULL | H155: NULL | I155: NULL | J155: 1
A156: 2017-01-04 | B156: DSRA | C156: MYR | D156: 639210 | E156: CSMM | F156: PLR | G156: 121802.04 | H156: NULL | I156: NULL | J156: 1
A157: 2017-01-04 | B157: DSRA | C157: MYR | D157: 800000 | E157: NULL | F157: BS | G157: NULL | H157: NULL | I157: NULL | J157: 1
A158: 2017-01-04 | B158: DSRA | C158: MYR | D158: 830000 | E158: NULL | F158: BS | G158: NULL | H158: NULL | I158: NULL | J158: 1
A159: 2017-01-04 | B159: DSRA | C159: MYR | D159: 939210 | E159: CSMM | F159: PLR | G159: -74816.79 | H159: NULL | I159: NULL | J159: 1
A160: 2017-01-04 | B160: DIVIDEND | C160: MYR | D160: 100010 | E160: SHLI | F160: BS | G160: NULL | H160: 832479400.8 | I160: NULL | J160: 1
A161: 2017-01-04 | B161: DIVIDEND | C161: MYR | D161: 189010 | E161: SHLI | F161: BS | G161: NULL | H161: NULL | I161: NULL | J161: 1
A162: 2017-01-04 | B162: DIVIDEND | C162: MYR | D162: 299010 | E162: SHLI | F162: BS | G162: NULL | H162: NULL | I162: NULL | J162: 1
A163: 2017-01-04 | B163: DIVIDEND | C163: MYR | D163: 300200 | E163: NULL | F163: BS | G163: NULL | H163: NULL | I163: NULL | J163: 1
A164: 2017-01-04 | B164: DIVIDEND | C164: MYR | D164: 500000 | E164: NULL | F164: BS | G164: NULL | H164: NULL | I164: NULL | J164: 1
A165: 2017-01-04 | B165: DIVIDEND | C165: MYR | D165: 689010 | E165: SHLI | F165: PLU | G165: NULL | H165: NULL | I165: NULL | J165: 1
A166: 2017-01-04 | B166: DIVIDEND | C166: MYR | D166: 800000 | E166: NULL | F166: BS | G166: NULL | H166: NULL | I166: NULL | J166: 1
A167: 2017-01-04 | B167: DIVIDEND | C167: MYR | D167: 810000 | E167: NULL | F167: BS | G167: NULL | H167: NULL | I167: NULL | J167: 1
A168: 2017-01-04 | B168: DIVIDEND | C168: MYR | D168: 830000 | E168: NULL | F168: BS | G168: NULL | H168: NULL | I168: NULL | J168: 1
A169: 2017-01-04 | B169: DIVIDEND | C169: MYR | D169: 989010 | E169: SHLI | F169: PLU | G169: NULL | H169: NULL | I169: NULL | J169: 1
A170: 2017-01-04 | B170: FUND | C170: MYR | D170: 100410 | E170: UTEX | F170: BS | G170: NULL | H170: 15000000 | I170: NULL | J170: 1
A171: 2017-01-04 | B171: FUND | C171: MYR | D171: 100430 | E171: UTCX | F171: BS | G171: NULL | H171: 21847846.18 | I171: NULL | J171: 1
A172: 2017-01-04 | B172: FUND | C172: MYR | D172: 189410 | E172: UTEX | F172: BS | G172: NULL | H172: NULL | I172: NULL | J172: 1
A173: 2017-01-04 | B173: FUND | C173: MYR | D173: 189430 | E173: UTCX | F173: BS | G173: NULL | H173: NULL | I173: NULL | J173: 1
A174: 2017-01-04 | B174: FUND | C174: MYR | D174: 689410 | E174: UTEX | F174: PLU | G174: NULL | H174: NULL | I174: NULL | J174: 1
A175: 2017-01-04 | B175: FUND | C175: MYR | D175: 689430 | E175: UTCX | F175: PLU | G175: NULL | H175: NULL | I175: NULL | J175: 1
A176: 2017-01-04 | B176: FUND | C176: MYR | D176: 800000 | E176: NULL | F176: BS | G176: NULL | H176: NULL | I176: NULL | J176: 1
A177: 2017-01-04 | B177: FUND | C177: MYR | D177: 810000 | E177: NULL | F177: BS | G177: NULL | H177: NULL | I177: NULL | J177: 1
A178: 2017-01-04 | B178: FUND | C178: MYR | D178: 830000 | E178: NULL | F178: BS | G178: NULL | H178: NULL | I178: NULL | J178: 1
A179: 2017-01-04 | B179: FUND | C179: MYR | D179: 989410 | E179: UTEX | F179: PLU | G179: NULL | H179: NULL | I179: NULL | J179: 1
A180: 2017-01-04 | B180: FUND | C180: MYR | D180: 989430 | E180: UTCX | F180: PLU | G180: NULL | H180: NULL | I180: NULL | J180: 1
A181: 2017-01-04 | B181: GROWTH | C181: MYR | D181: 100010 | E181: SHLI | F181: BS | G181: NULL | H181: 360848188.6 | I181: NULL | J181: 1
A182: 2017-01-04 | B182: GROWTH | C182: MYR | D182: 189010 | E182: SHLI | F182: BS | G182: NULL | H182: NULL | I182: NULL | J182: 1
A183: 2017-01-04 | B183: GROWTH | C183: MYR | D183: 200200 | E183: NULL | F183: BS | G183: NULL | H183: NULL | I183: NULL | J183: 1
A184: 2017-01-04 | B184: GROWTH | C184: MYR | D184: 299010 | E184: SHLI | F184: BS | G184: NULL | H184: NULL | I184: NULL | J184: 1
A185: 2017-01-04 | B185: GROWTH | C185: MYR | D185: 300200 | E185: NULL | F185: BS | G185: NULL | H185: NULL | I185: NULL | J185: 1
A186: 2017-01-04 | B186: GROWTH | C186: MYR | D186: 600010 | E186: SHLI | F186: PLR | G186: 606023.99 | H186: NULL | I186: NULL | J186: 1
A187: 2017-01-04 | B187: GROWTH | C187: MYR | D187: 689010 | E187: SHLI | F187: PLU | G187: NULL | H187: NULL | I187: NULL | J187: 1
A188: 2017-01-04 | B188: GROWTH | C188: MYR | D188: 800000 | E188: NULL | F188: BS | G188: NULL | H188: NULL | I188: NULL | J188: 1
A189: 2017-01-04 | B189: GROWTH | C189: MYR | D189: 810000 | E189: NULL | F189: BS | G189: NULL | H189: NULL | I189: NULL | J189: 1
A190: 2017-01-04 | B190: GROWTH | C190: MYR | D190: 830000 | E190: NULL | F190: BS | G190: NULL | H190: NULL | I190: NULL | J190: 1
A191: 2017-01-04 | B191: GROWTH | C191: MYR | D191: 989010 | E191: SHLI | F191: PLU | G191: NULL | H191: NULL | I191: NULL | J191: 1
A192: 2017-01-04 | B192: INDEX | C192: MYR | D192: 100010 | E192: SHLI | F192: BS | G192: NULL | H192: 118160302.6 | I192: NULL | J192: 1
A193: 2017-01-04 | B193: INDEX | C193: MYR | D193: 189010 | E193: SHLI | F193: BS | G193: NULL | H193: NULL | I193: NULL | J193: 1
A194: 2017-01-04 | B194: INDEX | C194: MYR | D194: 689010 | E194: SHLI | F194: PLU | G194: NULL | H194: NULL | I194: NULL | J194: 1
A195: 2017-01-04 | B195: INDEX | C195: MYR | D195: 800000 | E195: NULL | F195: BS | G195: NULL | H195: NULL | I195: NULL | J195: 1
A196: 2017-01-04 | B196: INDEX | C196: MYR | D196: 810000 | E196: NULL | F196: BS | G196: NULL | H196: NULL | I196: NULL | J196: 1
A197: 2017-01-04 | B197: INDEX | C197: MYR | D197: 830000 | E197: NULL | F197: BS | G197: NULL | H197: NULL | I197: NULL | J197: 1
A198: 2017-01-04 | B198: INDEX | C198: MYR | D198: 989010 | E198: SHLI | F198: PLU | G198: NULL | H198: NULL | I198: NULL | J198: 1
A199: 2017-01-04 | B199: OPR | C199: MYR | D199: 500000 | E199: NULL | F199: BS | G199: NULL | H199: NULL | I199: NULL | J199: 1
A200: 2017-01-04 | B200: OPR | C200: MYR | D200: 710104 | E200: NULL | F200: PLR | G200: NULL | H200: NULL | I200: 7200 | J200: 1
... 3839 more rows

Sheet Sheet3 (hidden)
A1: 2017-02-01 | B1: 3907938599
A2: 2017-02-02 | B2: 3907938599
A3: 2017-02-03 | B3: 3940654597 | C3: 3940654597
A4: 2017-02-04 | B4: 3940654597 | C4: 0
A5: 2017-02-05 | B5: 3940654597 | C5: 0
A6: 2017-02-06 | B6: 3929320446 | C6: 3929320446
A7: 2017-02-07 | B7: 3917805922 | C7: 3917805922
A8: 2017-02-08 | B8: 3909906717 | C8: 3909906717
A9: 2017-02-09 | B9: 3909906717 | C9: 0
A10: 2017-02-10 | B10: 3902559136 | C10: 3902559136
A11: 2017-02-11 | B11: 3902559136 | C11: 0
A12: 2017-02-12 | B12: 3902559136 | C12: 0
A13: 2017-02-13 | B13: 3889817922 | C13: 3889817922
A14: 2017-02-14 | B14: 3889064332 | C14: 3889064332
A15: 2017-02-15 | B15: 3892331487 | C15: 3892331487
A16: 2017-02-16 | B16: 3899810612 | C16: 3899810612
A17: 2017-02-17 | B17: 3872727076 | C17: 3872727076
A18: 2017-02-18 | B18: 3872727076 | C18: 0
A19: 2017-02-19 | B19: 3872727076 | C19: 0
A20: 2017-02-20 | B20: 3868593867 | C20: 3868593867
A21: 2017-02-21 | B21: 3869185253 | C21: 3869185253
A22: 2017-02-22 | B22: 3829229488 | C22: 3829229488
A23: 2017-02-23 | B23: 3828903063 | C23: 3828903063
A24: 2017-02-24 | B24: 3821247086 | C24: 3821247086
A25: 2017-02-25 | B25: 3821247086 | C25: 0
A26: 2017-02-26 | B26: 3821247086 | C26: 0
A27: 2017-02-27 | B27: 3810969507 | C27: 3810969507
A28: 2017-02-28 | B28: 3884611168 | C28: 3884611168

Sheet Sheet2 (hidden)
A1: a | B1: s | C1: d | D1: f | E1: g | F1: h | G1: j | H1: k | I1: l | J1: q
A2: 2016-12-31 | B2: FUND | C2: MYR | D2: 100410 | E2: UTEX | F2: BS | G2: NULL | H2: 15000000 | I2: NULL | J2: 3 | K2: 228
A3: 2017-01-03 | B3: FUND | C3: MYR | D3: 100410 | E3: UTEX | F3: BS | G3: NULL | H3: 15000000 | I3: NULL | J3: 1
A4: 2017-01-04 | B4: FUND | C4: MYR | D4: 100410 | E4: UTEX | F4: BS | G4: NULL | H4: 15000000 | I4: NULL | J4: 1
A5: 2017-01-05 | B5: FUND | C5: MYR | D5: 100410 | E5: UTEX | F5: BS | G5: NULL | H5: 15000000 | I5: NULL | J5: 1
A6: 2017-01-06 | B6: FUND | C6: MYR | D6: 100410 | E6: UTEX | F6: BS | G6: NULL | H6: 15000000 | I6: NULL | J6: 3
A7: 2017-01-09 | B7: FUND | C7: MYR | D7: 100410 | E7: UTEX | F7: BS | G7: NULL | H7: 15000000 | I7: NULL | J7: 1
A8: 2017-01-10 | B8: FUND | C8: MYR | D8: 100410 | E8: UTEX | F8: BS | G8: NULL | H8: 15000000 | I8: NULL | J8: 1
A9: 2017-01-11 | B9: FUND | C9: MYR | D9: 100410 | E9: UTEX | F9: BS | G9: NULL | H9: 15000000 | I9: NULL | J9: 1
A10: 2017-01-12 | B10: FUND | C10: MYR | D10: 100410 | E10: UTEX | F10: BS | G10: NULL | H10: 15000000 | I10: NULL | J10: 1
A11: 2017-01-13 | B11: FUND | C11: MYR | D11: 100410 | E11: UTEX | F11: BS | G11: NULL | H11: 15000000 | I11: NULL | J11: 3
A12: 2017-01-16 | B12: FUND | C12: MYR | D12: 100410 | E12: UTEX | F12: BS | G12: NULL | H12: 15000000 | I12: NULL | J12: 1
A13: 2017-01-17 | B13: FUND | C13: MYR | D13: 100410 | E13: UTEX | F13: BS | G13: NULL | H13: 15000000 | I13: NULL | J13: 1
A14: 2017-01-18 | B14: FUND | C14: MYR | D14: 100410 | E14: UTEX | F14: BS | G14: NULL | H14: 15000000 | I14: NULL | J14: 1
A15: 2017-01-19 | B15: FUND | C15: MYR | D15: 100410 | E15: UTEX | F15: BS | G15: NULL | H15: 15000000 | I15: NULL | J15: 1
A16: 2017-01-20 | B16: FUND | C16: MYR | D16: 100410 | E16: UTEX | F16: BS | G16: NULL | H16: 15000000 | I16: NULL | J16: 3
A17: 2017-01-23 | B17: FUND | C17: MYR | D17: 100410 | E17: UTEX | F17: BS | G17: NULL | H17: 15000000 | I17: NULL | J17: 1
A18: 2017-01-24 | B18: FUND | C18: MYR | D18: 100410 | E18: UTEX | F18: BS | G18: NULL | H18: 15000000 | I18: NULL | J18: 1
A19: 2017-01-25 | B19: FUND | C19: MYR | D19: 100410 | E19: UTEX | F19: BS | G19: NULL | H19: 15000000 | I19: NULL | J19: 1
A20: 2017-01-26 | B20: FUND | C20: MYR | D20: 100410 | E20: UTEX | F20: BS | G20: NULL | H20: 15000000 | I20: NULL | J20: 1
A21: 2017-01-27 | B21: FUND | C21: MYR | D21: 100410 | E21: UTEX | F21: BS | G21: NULL | H21: 15000000 | I21: NULL | J21: 4
A22: 2017-01-31 | B22: FUND | C22: MYR | D22: 100410 | E22: UTEX | F22: BS | G22: NULL | H22: 15000000 | I22: NULL | J22: 2
A23: 2017-02-02 | B23: FUND | C23: MYR | D23: 100410 | E23: UTEX | F23: BS | G23: NULL | H23: 15000000 | I23: NULL | J23: 1
A24: 2017-02-03 | B24: FUND | C24: MYR | D24: 100410 | E24: UTEX | F24: BS | G24: NULL | H24: 15000000 | I24: NULL | J24: 3
A25: 2017-02-06 | B25: FUND | C25: MYR | D25: 100410 | E25: UTEX | F25: BS | G25: NULL | H25: 15000000 | I25: NULL | J25: 1
A26: 2017-02-07 | B26: FUND | C26: MYR | D26: 100410 | E26: UTEX | F26: BS | G26: NULL | H26: 15000000 | I26: NULL | J26: 1
A27: 2017-02-08 | B27: FUND | C27: MYR | D27: 100410 | E27: UTEX | F27: BS | G27: NULL | H27: 15000000 | I27: NULL | J27: 2
A28: 2017-02-10 | B28: FUND | C28: MYR | D28: 100410 | E28: UTEX | F28: BS | G28: NULL | H28: 15000000 | I28: NULL | J28: 3
A29: 2017-02-13 | B29: FUND | C29: MYR | D29: 100410 | E29: UTEX | F29: BS | G29: NULL | H29: 15000000 | I29: NULL | J29: 1
A30: 2017-02-14 | B30: FUND | C30: MYR | D30: 100410 | E30: UTEX | F30: BS | G30: NULL | H30: 15000000 | I30: NULL | J30: 1
A31: 2017-02-15 | B31: FUND | C31: MYR | D31: 100410 | E31: UTEX | F31: BS | G31: NULL | H31: 15000000 | I31: NULL | J31: 1
A32: 2017-02-16 | B32: FUND | C32: MYR | D32: 100410 | E32: UTEX | F32: BS | G32: NULL | H32: 15000000 | I32: NULL | J32: 1
A33: 2017-02-17 | B33: FUND | C33: MYR | D33: 100410 | E33: UTEX | F33: BS | G33: NULL | H33: 15000000 | I33: NULL | J33: 3
A34: 2017-02-20 | B34: FUND | C34: MYR | D34: 100410 | E34: UTEX | F34: BS | G34: NULL | H34: 15000000 | I34: NULL | J34: 1
A35: 2017-02-21 | B35: FUND | C35: MYR | D35: 100410 | E35: UTEX | F35: BS | G35: NULL | H35: 15000000 | I35: NULL | J35: 1
A36: 2017-02-22 | B36: FUND | C36: MYR | D36: 100410 | E36: UTEX | F36: BS | G36: NULL | H36: 15000000 | I36: NULL | J36: 1
A37: 2017-02-23 | B37: FUND | C37: MYR | D37: 100410 | E37: UTEX | F37: BS | G37: NULL | H37: 15000000 | I37: NULL | J37: 1
A38: 2017-02-24 | B38: FUND | C38: MYR | D38: 100410 | E38: UTEX | F38: BS | G38: NULL | H38: 15000000 | I38: NULL | J38: 3
A39: 2017-02-27 | B39: FUND | C39: MYR | D39: 100410 | E39: UTEX | F39: BS | G39: NULL | H39: 15000000 | I39: NULL | J39: 1
A40: 2017-02-28 | B40: FUND | C40: MYR | D40: 100410 | E40: UTEX | F40: BS | G40: NULL | H40: 15000000 | I40: NULL | J40: 1
A41: 2017-01-27 | B41: FUND | C41: MYR | D41: 100430 | E41: UTCX | F41: BS | G41: NULL | H41: 21847846.18 | I41: NULL | J41: 4
A42: 2017-01-26 | B42: FUND | C42: MYR | D42: 100430 | E42: UTCX | F42: BS | G42: NULL | H42: 21847846.18 | I42: NULL | J42: 1
A43: 2017-01-25 | B43: FUND | C43: MYR | D43: 100430 | E43: UTCX | F43: BS | G43: NULL | H43: 21847846.18 | I43: NULL | J43: 1
A44: 2017-01-24 | B44: FUND | C44: MYR | D44: 100430 | E44: UTCX | F44: BS | G44: NULL | H44: 21847846.18 | I44: NULL | J44: 1
A45: 2017-01-23 | B45: FUND | C45: MYR | D45: 100430 | E45: UTCX | F45: BS | G45: NULL | H45: 21847846.18 | I45: NULL | J45: 1
A46: 2017-01-20 | B46: FUND | C46: MYR | D46: 100430 | E46: UTCX | F46: BS | G46: NULL | H46: 21847846.18 | I46: NULL | J46: 3
A47: 2017-01-19 | B47: FUND | C47: MYR | D47: 100430 | E47: UTCX | F47: BS | G47: NULL | H47: 21847846.18 | I47: NULL | J47: 1
A48: 2017-01-18 | B48: FUND | C48: MYR | D48: 100430 | E48: UTCX | F48: BS | G48: NULL | H48: 21847846.18 | I48: NULL | J48: 1
A49: 2017-01-17 | B49: FUND | C49: MYR | D49: 100430 | E49: UTCX | F49: BS | G49: NULL | H49: 21847846.18 | I49: NULL | J49: 1
A50: 2017-01-16 | B50: FUND | C50: MYR | D50: 100430 | E50: UTCX | F50: BS | G50: NULL | H50: 21847846.18 | I50: NULL | J50: 1
A51: 2017-01-13 | B51: FUND | C51: MYR | D51: 100430 | E51: UTCX | F51: BS | G51: NULL | H51: 21847846.18 | I51: NULL | J51: 3
A52: 2017-01-12 | B52: FUND | C52: MYR | D52: 100430 | E52: UTCX | F52: BS | G52: NULL | H52: 21847846.18 | I52: NULL | J52: 1
A53: 2017-01-11 | B53: FUND | C53: MYR | D53: 100430 | E53: UTCX | F53: BS | G53: NULL | H53: 21847846.18 | I53: NULL | J53: 1
A54: 2017-01-10 | B54: FUND | C54: MYR | D54: 100430 | E54: UTCX | F54: BS | G54: NULL | H54: 21847846.18 | I54: NULL | J54: 1
A55: 2017-01-09 | B55: FUND | C55: MYR | D55: 100430 | E55: UTCX | F55: BS | G55: NULL | H55: 21847846.18 | I55: NULL | J55: 1
A56: 2017-01-06 | B56: FUND | C56: MYR | D56: 100430 | E56: UTCX | F56: BS | G56: NULL | H56: 21847846.18 | I56: NULL | J56: 3
A57: 2017-01-05 | B57: FUND | C57: MYR | D57: 100430 | E57: UTCX | F57: BS | G57: NULL | H57: 21847846.18 | I57: NULL | J57: 1
A58: 2017-01-04 | B58: FUND | C58: MYR | D58: 100430 | E58: UTCX | F58: BS | G58: NULL | H58: 21847846.18 | I58: NULL | J58: 1
A59: 2017-01-03 | B59: FUND | C59: MYR | D59: 100430 | E59: UTCX | F59: BS | G59: NULL | H59: 21847846.18 | I59: NULL | J59: 1
A60: 2016-12-31 | B60: FUND | C60: MYR | D60: 100430 | E60: UTCX | F60: BS | G60: NULL | H60: 21847846.18 | I60: NULL | J60: 3
A61: 2016-12-31 | B61: FUND | C61: MYR | D61: 189410 | E61: UTEX | F61: BS | G61: NULL | H61: NULL | I61: NULL | J61: 3
A62: 2017-01-03 | B62: FUND | C62: MYR | D62: 189410 | E62: UTEX | F62: BS | G62: NULL | H62: NULL | I62: NULL | J62: 1
A63: 2017-01-04 | B63: FUND | C63: MYR | D63: 189410 | E63: UTEX | F63: BS | G63: NULL | H63: NULL | I63: NULL | J63: 1
A64: 2017-01-05 | B64: FUND | C64: MYR | D64: 189410 | E64: UTEX | F64: BS | G64: NULL | H64: NULL | I64: NULL | J64: 1
A65: 2017-01-06 | B65: FUND | C65: MYR | D65: 189410 | E65: UTEX | F65: BS | G65: NULL | H65: NULL | I65: NULL | J65: 3
A66: 2017-01-09 | B66: FUND | C66: MYR | D66: 189410 | E66: UTEX | F66: BS | G66: NULL | H66: NULL | I66: NULL | J66: 1
A67: 2017-01-10 | B67: FUND | C67: MYR | D67: 189410 | E67: UTEX | F67: BS | G67: NULL | H67: NULL | I67: NULL | J67: 1
A68: 2017-01-11 | B68: FUND | C68: MYR | D68: 189410 | E68: UTEX | F68: BS | G68: NULL | H68: NULL | I68: NULL | J68: 1
A69: 2017-01-12 | B69: FUND | C69: MYR | D69: 189410 | E69: UTEX | F69: BS | G69: NULL | H69: NULL | I69: NULL | J69: 1
A70: 2017-01-13 | B70: FUND | C70: MYR | D70: 189410 | E70: UTEX | F70: BS | G70: NULL | H70: NULL | I70: NULL | J70: 3
A71: 2017-01-16 | B71: FUND | C71: MYR | D71: 189410 | E71: UTEX | F71: BS | G71: NULL | H71: NULL | I71: NULL | J71: 1
A72: 2017-01-17 | B72: FUND | C72: MYR | D72: 189410 | E72: UTEX | F72: BS | G72: NULL | H72: NULL | I72: NULL | J72: 1
A73: 2017-01-18 | B73: FUND | C73: MYR | D73: 189410 | E73: UTEX | F73: BS | G73: NULL | H73: NULL | I73: NULL | J73: 1
A74: 2017-01-19 | B74: FUND | C74: MYR | D74: 189410 | E74: UTEX | F74: BS | G74: NULL | H74: NULL | I74: NULL | J74: 1
A75: 2017-01-20 | B75: FUND | C75: MYR | D75: 189410 | E75: UTEX | F75: BS | G75: NULL | H75: NULL | I75: NULL | J75: 3
A76: 2017-01-23 | B76: FUND | C76: MYR | D76: 189410 | E76: UTEX | F76: BS | G76: NULL | H76: NULL | I76: NULL | J76: 1
A77: 2017-01-24 | B77: FUND | C77: MYR | D77: 189410 | E77: UTEX | F77: BS | G77: NULL | H77: NULL | I77: NULL | J77: 1
A78: 2017-01-25 | B78: FUND | C78: MYR | D78: 189410 | E78: UTEX | F78: BS | G78: NULL | H78: NULL | I78: NULL | J78: 1
A79: 2017-01-26 | B79: FUND | C79: MYR | D79: 189410 | E79: UTEX | F79: BS | G79: NULL | H79: NULL | I79: NULL | J79: 1
A80: 2017-01-27 | B80: FUND | C80: MYR | D80: 189410 | E80: UTEX | F80: BS | G80: NULL | H80: NULL | I80: NULL | J80: 4
A81: 2017-02-06 | B81: FUND | C81: MYR | D81: 189410 | E81: UTEX | F81: BS | G81: NULL | H81: NULL | I81: NULL | J81: 1
A82: 2017-02-03 | B82: FUND | C82: MYR | D82: 189410 | E82: UTEX | F82: BS | G82: NULL | H82: NULL | I82: NULL | J82: 3
A83: 2017-02-02 | B83: FUND | C83: MYR | D83: 189410 | E83: UTEX | F83: BS | G83: NULL | H83: NULL | I83: NULL | J83: 1
A84: 2017-01-31 | B84: FUND | C84: MYR | D84: 189410 | E84: UTEX | F84: BS | G84: NULL | H84: NULL | I84: NULL | J84: 2
A85: 2017-02-17 | B85: FUND | C85: MYR | D85: 189410 | E85: UTEX | F85: BS | G85: NULL | H85: NULL | I85: NULL | J85: 3
A86: 2017-02-16 | B86: FUND | C86: MYR | D86: 189410 | E86: UTEX | F86: BS | G86: NULL | H86: NULL | I86: NULL | J86: 1
A87: 2017-02-15 | B87: FUND | C87: MYR | D87: 189410 | E87: UTEX | F87: BS | G87: NULL | H87: NULL | I87: NULL | J87: 1
A88: 2017-02-14 | B88: FUND | C88: MYR | D88: 189410 | E88: UTEX | F88: BS | G88: NULL | H88: NULL | I88: NULL | J88: 1
A89: 2017-02-13 | B89: FUND | C89: MYR | D89: 189410 | E89: UTEX | F89: BS | G89: NULL | H89: NULL | I89: NULL | J89: 1
A90: 2017-02-10 | B90: FUND | C90: MYR | D90: 189410 | E90: UTEX | F90: BS | G90: NULL | H90: NULL | I90: NULL | J90: 3
A91: 2017-02-08 | B91: FUND | C91: MYR | D91: 189410 | E91: UTEX | F91: BS | G91: NULL | H91: NULL | I91: NULL | J91: 2
A92: 2017-02-07 | B92: FUND | C92: MYR | D92: 189410 | E92: UTEX | F92: BS | G92: NULL | H92: NULL | I92: NULL | J92: 1
A93: 2017-02-28 | B93: FUND | C93: MYR | D93: 189410 | E93: UTEX | F93: BS | G93: NULL | H93: NULL | I93: NULL | J93: 1
A94: 2017-02-27 | B94: FUND | C94: MYR | D94: 189410 | E94: UTEX | F94: BS | G94: NULL | H94: NULL | I94: NULL | J94: 1
A95: 2017-02-24 | B95: FUND | C95: MYR | D95: 189410 | E95: UTEX | F95: BS | G95: NULL | H95: NULL | I95: NULL | J95: 3
A96: 2017-02-23 | B96: FUND | C96: MYR | D96: 189410 | E96: UTEX | F96: BS | G96: NULL | H96: NULL | I96: NULL | J96: 1
A97: 2017-02-22 | B97: FUND | C97: MYR | D97: 189410 | E97: UTEX | F97: BS | G97: NULL | H97: NULL | I97: NULL | J97: 1
A98: 2017-02-21 | B98: FUND | C98: MYR | D98: 189410 | E98: UTEX | F98: BS | G98: NULL | H98: NULL | I98: NULL | J98: 1
A99: 2017-02-20 | B99: FUND | C99: MYR | D99: 189410 | E99: UTEX | F99: BS | G99: NULL | H99: NULL | I99: NULL | J99: 1
A100: 2017-01-27 | B100: FUND | C100: MYR | D100: 189430 | E100: UTCX | F100: BS | G100: NULL | H100: NULL | I100: NULL | J100: 4
A101: 2017-01-26 | B101: FUND | C101: MYR | D101: 189430 | E101: UTCX | F101: BS | G101: NULL | H101: NULL | I101: NULL | J101: 1
A102: 2017-01-25 | B102: FUND | C102: MYR | D102: 189430 | E102: UTCX | F102: BS | G102: NULL | H102: NULL | I102: NULL | J102: 1
A103: 2017-01-24 | B103: FUND | C103: MYR | D103: 189430 | E103: UTCX | F103: BS | G103: NULL | H103: NULL | I103: NULL | J103: 1
A104: 2017-01-23 | B104: FUND | C104: MYR | D104: 189430 | E104: UTCX | F104: BS | G104: NULL | H104: NULL | I104: NULL | J104: 1
A105: 2017-01-20 | B105: FUND | C105: MYR | D105: 189430 | E105: UTCX | F105: BS | G105: NULL | H105: NULL | I105: NULL | J105: 3
A106: 2017-01-19 | B106: FUND | C106: MYR | D106: 189430 | E106: UTCX | F106: BS | G106: NULL | H106: NULL | I106: NULL | J106: 1
A107: 2017-01-18 | B107: FUND | C107: MYR | D107: 189430 | E107: UTCX | F107: BS | G107: NULL | H107: NULL | I107: NULL | J107: 1
A108: 2017-01-17 | B108: FUND | C108: MYR | D108: 189430 | E108: UTCX | F108: BS | G108: NULL | H108: NULL | I108: NULL | J108: 1
A109: 2017-01-16 | B109: FUND | C109: MYR | D109: 189430 | E109: UTCX | F109: BS | G109: NULL | H109: NULL | I109: NULL | J109: 1
A110: 2017-01-13 | B110: FUND | C110: MYR | D110: 189430 | E110: UTCX | F110: BS | G110: NULL | H110: NULL | I110: NULL | J110: 3
A111: 2017-01-12 | B111: FUND | C111: MYR | D111: 189430 | E111: UTCX | F111: BS | G111: NULL | H111: NULL | I111: NULL | J111: 1
A112: 2017-01-11 | B112: FUND | C112: MYR | D112: 189430 | E112: UTCX | F112: BS | G112: NULL | H112: NULL | I112: NULL | J112: 1
A113: 2017-01-10 | B113: FUND | C113: MYR | D113: 189430 | E113: UTCX | F113: BS | G113: NULL | H113: NULL | I113: NULL | J113: 1
A114: 2017-01-09 | B114: FUND | C114: MYR | D114: 189430 | E114: UTCX | F114: BS | G114: NULL | H114: NULL | I114: NULL | J114: 1
A115: 2017-01-06 | B115: FUND | C115: MYR | D115: 189430 | E115: UTCX | F115: BS | G115: NULL | H115: NULL | I115: NULL | J115: 3
A116: 2017-01-05 | B116: FUND | C116: MYR | D116: 189430 | E116: UTCX | F116: BS | G116: NULL | H116: NULL | I116: NULL | J116: 1
A117: 2017-01-04 | B117: FUND | C117: MYR | D117: 189430 | E117: UTCX | F117: BS | G117: NULL | H117: NULL | I117: NULL | J117: 1
A118: 2017-01-03 | B118: FUND | C118: MYR | D118: 189430 | E118: UTCX | F118: BS | G118: NULL | H118: NULL | I118: NULL | J118: 1
A119: 2016-12-31 | B119: FUND | C119: MYR | D119: 189430 | E119: UTCX | F119: BS | G119: NULL | H119: NULL | I119: NULL | J119: 3
A120: 2016-12-31 | B120: FUND | C120: MYR | D120: 299430 | E120: UTCX | F120: BS | G120: NULL | H120: NULL | I120: NULL | J120: 3
A121: 2017-01-03 | B121: FUND | C121: MYR | D121: 299430 | E121: UTCX | F121: BS | G121: NULL | H121: NULL | I121: NULL | J121: 1
A122: 2017-01-31 | B122: FUND | C122: MYR | D122: 600430 | E122: UTCX | F122: PLR | G122: 101329.1 | H122: NULL | I122: NULL | J122: 2
A123: 2017-02-02 | B123: FUND | C123: MYR | D123: 600430 | E123: UTCX | F123: PLR | G123: 101329.1 | H123: NULL | I123: NULL | J123: 1
A124: 2017-02-03 | B124: FUND | C124: MYR | D124: 600430 | E124: UTCX | F124: PLR | G124: 101329.1 | H124: NULL | I124: NULL | J124: 3
A125: 2017-02-06 | B125: FUND | C125: MYR | D125: 600430 | E125: UTCX | F125: PLR | G125: 101329.1 | H125: NULL | I125: NULL | J125: 1
A126: 2017-02-07 | B126: FUND | C126: MYR | D126: 600430 | E126: UTCX | F126: PLR | G126: 101329.1 | H126: NULL | I126: NULL | J126: 1
A127: 2017-02-08 | B127: FUND | C127: MYR | D127: 600430 | E127: UTCX | F127: PLR | G127: 101329.1 | H127: NULL | I127: NULL | J127: 2
A128: 2017-02-10 | B128: FUND | C128: MYR | D128: 600430 | E128: UTCX | F128: PLR | G128: 101329.1 | H128: NULL | I128: NULL | J128: 3
A129: 2017-02-13 | B129: FUND | C129: MYR | D129: 600430 | E129: UTCX | F129: PLR | G129: 101329.1 | H129: NULL | I129: NULL | J129: 1
A130: 2017-02-14 | B130: FUND | C130: MYR | D130: 600430 | E130: UTCX | F130: PLR | G130: 101329.1 | H130: NULL | I130: NULL | J130: 1
A131: 2017-02-15 | B131: FUND | C131: MYR | D131: 600430 | E131: UTCX | F131: PLR | G131: 101329.1 | H131: NULL | I131: NULL | J131: 1
A132: 2017-02-16 | B132: FUND | C132: MYR | D132: 600430 | E132: UTCX | F132: PLR | G132: 101329.1 | H132: NULL | I132: NULL | J132: 1
A133: 2017-02-17 | B133: FUND | C133: MYR | D133: 600430 | E133: UTCX | F133: PLR | G133: 101329.1 | H133: NULL | I133: NULL | J133: 3
A134: 2017-02-20 | B134: FUND | C134: MYR | D134: 600430 | E134: UTCX | F134: PLR | G134: 101329.1 | H134: NULL | I134: NULL | J134: 1
A135: 2017-02-21 | B135: FUND | C135: MYR | D135: 600430 | E135: UTCX | F135: PLR | G135: 101329.1 | H135: NULL | I135: NULL | J135: 1
A136: 2017-02-22 | B136: FUND | C136: MYR | D136: 600430 | E136: UTCX | F136: PLR | G136: 101329.1 | H136: NULL | I136: NULL | J136: 1
A137: 2017-02-23 | B137: FUND | C137: MYR | D137: 600430 | E137: UTCX | F137: PLR | G137: 101329.1 | H137: NULL | I137: NULL | J137: 1
A138: 2017-02-24 | B138: FUND | C138: MYR | D138: 600430 | E138: UTCX | F138: PLR | G138: 101329.1 | H138: NULL | I138: NULL | J138: 3
A139: 2017-02-27 | B139: FUND | C139: MYR | D139: 600430 | E139: UTCX | F139: PLR | G139: 101329.1 | H139: NULL | I139: NULL | J139: 1
A140: 2017-02-28 | B140: FUND | C140: MYR | D140: 600430 | E140: UTCX | F140: PLR | G140: 101329.1 | H140: NULL | I140: NULL | J140: 1
A141: 2017-01-03 | B141: FUND | C141: MYR | D141: 635430 | E141: UTCX | F141: PLR | G141: 0 | H141: NULL | I141: NULL | J141: 1
A142: 2016-12-31 | B142: FUND | C142: MYR | D142: 635430 | E142: UTCX | F142: PLR | G142: 201611.19 | H142: NULL | I142: NULL | J142: 3
A143: 2016-12-31 | B143: FUND | C143: MYR | D143: 636430 | E143: UTCX | F143: PLR | G143: 546293.29 | H143: NULL | I143: NULL | J143: 3
A144: 2017-01-03 | B144: FUND | C144: MYR | D144: 636430 | E144: UTCX | F144: PLR | G144: 0 | H144: NULL | I144: NULL | J144: 1
A145: 2017-01-03 | B145: FUND | C145: MYR | D145: 689410 | E145: UTEX | F145: PLU | G145: NULL | H145: NULL | I145: NULL | J145: 1
A146: 2016-12-31 | B146: FUND | C146: MYR | D146: 689410 | E146: UTEX | F146: PLU | G146: NULL | H146: NULL | I146: NULL | J146: 3
A147: 2017-01-04 | B147: FUND | C147: MYR | D147: 689410 | E147: UTEX | F147: PLU | G147: NULL | H147: NULL | I147: NULL | J147: 1
A148: 2017-01-05 | B148: FUND | C148: MYR | D148: 689410 | E148: UTEX | F148: PLU | G148: NULL | H148: NULL | I148: NULL | J148: 1
A149: 2017-01-06 | B149: FUND | C149: MYR | D149: 689410 | E149: UTEX | F149: PLU | G149: NULL | H149: NULL | I149: NULL | J149: 3
A150: 2017-01-09 | B150: FUND | C150: MYR | D150: 689410 | E150: UTEX | F150: PLU | G150: NULL | H150: NULL | I150: NULL | J150: 1
A151: 2017-01-10 | B151: FUND | C151: MYR | D151: 689410 | E151: UTEX | F151: PLU | G151: NULL | H151: NULL | I151: NULL | J151: 1
A152: 2017-01-11 | B152: FUND | C152: MYR | D152: 689410 | E152: UTEX | F152: PLU | G152: NULL | H152: NULL | I152: NULL | J152: 1
A153: 2017-01-12 | B153: FUND | C153: MYR | D153: 689410 | E153: UTEX | F153: PLU | G153: NULL | H153: NULL | I153: NULL | J153: 1
A154: 2017-01-13 | B154: FUND | C154: MYR | D154: 689410 | E154: UTEX | F154: PLU | G154: NULL | H154: NULL | I154: NULL | J154: 3
A155: 2017-01-16 | B155: FUND | C155: MYR | D155: 689410 | E155: UTEX | F155: PLU | G155: NULL | H155: NULL | I155: NULL | J155: 1
A156: 2017-01-17 | B156: FUND | C156: MYR | D156: 689410 | E156: UTEX | F156: PLU | G156: NULL | H156: NULL | I156: NULL | J156: 1
A157: 2017-01-18 | B157: FUND | C157: MYR | D157: 689410 | E157: UTEX | F157: PLU | G157: NULL | H157: NULL | I157: NULL | J157: 1
A158: 2017-01-19 | B158: FUND | C158: MYR | D158: 689410 | E158: UTEX | F158: PLU | G158: NULL | H158: NULL | I158: NULL | J158: 1
A159: 2017-01-20 | B159: FUND | C159: MYR | D159: 689410 | E159: UTEX | F159: PLU | G159: NULL | H159: NULL | I159: NULL | J159: 3
A160: 2017-01-23 | B160: FUND | C160: MYR | D160: 689410 | E160: UTEX | F160: PLU | G160: NULL | H160: NULL | I160: NULL | J160: 1
A161: 2017-02-17 | B161: FUND | C161: MYR | D161: 689410 | E161: UTEX | F161: PLU | G161: NULL | H161: NULL | I161: NULL | J161: 3
A162: 2017-02-16 | B162: FUND | C162: MYR | D162: 689410 | E162: UTEX | F162: PLU | G162: NULL | H162: NULL | I162: NULL | J162: 1
A163: 2017-02-15 | B163: FUND | C163: MYR | D163: 689410 | E163: UTEX | F163: PLU | G163: NULL | H163: NULL | I163: NULL | J163: 1
A164: 2017-02-14 | B164: FUND | C164: MYR | D164: 689410 | E164: UTEX | F164: PLU | G164: NULL | H164: NULL | I164: NULL | J164: 1
A165: 2017-02-13 | B165: FUND | C165: MYR | D165: 689410 | E165: UTEX | F165: PLU | G165: NULL | H165: NULL | I165: NULL | J165: 1
A166: 2017-02-10 | B166: FUND | C166: MYR | D166: 689410 | E166: UTEX | F166: PLU | G166: NULL | H166: NULL | I166: NULL | J166: 3
A167: 2017-02-08 | B167: FUND | C167: MYR | D167: 689410 | E167: UTEX | F167: PLU | G167: NULL | H167: NULL | I167: NULL | J167: 2
A168: 2017-02-07 | B168: FUND | C168: MYR | D168: 689410 | E168: UTEX | F168: PLU | G168: NULL | H168: NULL | I168: NULL | J168: 1
A169: 2017-02-06 | B169: FUND | C169: MYR | D169: 689410 | E169: UTEX | F169: PLU | G169: NULL | H169: NULL | I169: NULL | J169: 1
A170: 2017-02-03 | B170: FUND | C170: MYR | D170: 689410 | E170: UTEX | F170: PLU | G170: NULL | H170: NULL | I170: NULL | J170: 3
A171: 2017-02-02 | B171: FUND | C171: MYR | D171: 689410 | E171: UTEX | F171: PLU | G171: NULL | H171: NULL | I171: NULL | J171: 1
A172: 2017-01-31 | B172: FUND | C172: MYR | D172: 689410 | E172: UTEX | F172: PLU | G172: NULL | H172: NULL | I172: NULL | J172: 2
A173: 2017-01-24 | B173: FUND | C173: MYR | D173: 689410 | E173: UTEX | F173: PLU | G173: NULL | H173: NULL | I173: NULL | J173: 1
A174: 2017-01-25 | B174: FUND | C174: MYR | D174: 689410 | E174: UTEX | F174: PLU | G174: NULL | H174: NULL | I174: NULL | J174: 1
A175: 2017-01-26 | B175: FUND | C175: MYR | D175: 689410 | E175: UTEX | F175: PLU | G175: NULL | H175: NULL | I175: NULL | J175: 1
A176: 2017-01-27 | B176: FUND | C176: MYR | D176: 689410 | E176: UTEX | F176: PLU | G176: NULL | H176: NULL | I176: NULL | J176: 4
A177: 2017-02-28 | B177: FUND | C177: MYR | D177: 689410 | E177: UTEX | F177: PLU | G177: NULL | H177: NULL | I177: NULL | J177: 1
A178: 2017-02-27 | B178: FUND | C178: MYR | D178: 689410 | E178: UTEX | F178: PLU | G178: NULL | H178: NULL | I178: NULL | J178: 1
A179: 2017-02-24 | B179: FUND | C179: MYR | D179: 689410 | E179: UTEX | F179: PLU | G179: NULL | H179: NULL | I179: NULL | J179: 3
A180: 2017-02-23 | B180: FUND | C180: MYR | D180: 689410 | E180: UTEX | F180: PLU | G180: NULL | H180: NULL | I180: NULL | J180: 1
A181: 2017-02-22 | B181: FUND | C181: MYR | D181: 689410 | E181: UTEX | F181: PLU | G181: NULL | H181: NULL | I181: NULL | J181: 1
A182: 2017-02-21 | B182: FUND | C182: MYR | D182: 689410 | E182: UTEX | F182: PLU | G182: NULL | H182: NULL | I182: NULL | J182: 1
A183: 2017-02-20 | B183: FUND | C183: MYR | D183: 689410 | E183: UTEX | F183: PLU | G183: NULL | H183: NULL | I183: NULL | J183: 1
A184: 2017-01-27 | B184: FUND | C184: MYR | D184: 689430 | E184: UTCX | F184: PLU | G184: NULL | H184: NULL | I184: NULL | J184: 4
A185: 2017-01-26 | B185: FUND | C185: MYR | D185: 689430 | E185: UTCX | F185: PLU | G185: NULL | H185: NULL | I185: NULL | J185: 1
A186: 2017-01-25 | B186: FUND | C186: MYR | D186: 689430 | E186: UTCX | F186: PLU | G186: NULL | H186: NULL | I186: NULL | J186: 1
A187: 2017-01-24 | B187: FUND | C187: MYR | D187: 689430 | E187: UTCX | F187: PLU | G187: NULL | H187: NULL | I187: NULL | J187: 1
A188: 2017-01-23 | B188: FUND | C188: MYR | D188: 689430 | E188: UTCX | F188: PLU | G188: NULL | H188: NULL | I188: NULL | J188: 1
A189: 2017-01-20 | B189: FUND | C189: MYR | D189: 689430 | E189: UTCX | F189: PLU | G189: NULL | H189: NULL | I189: NULL | J189: 3
A190: 2017-01-19 | B190: FUND | C190: MYR | D190: 689430 | E190: UTCX | F190: PLU | G190: NULL | H190: NULL | I190: NULL | J190: 1
A191: 2017-01-18 | B191: FUND | C191: MYR | D191: 689430 | E191: UTCX | F191: PLU | G191: NULL | H191: NULL | I191: NULL | J191: 1
A192: 2017-01-17 | B192: FUND | C192: MYR | D192: 689430 | E192: UTCX | F192: PLU | G192: NULL | H192: NULL | I192: NULL | J192: 1
A193: 2017-01-16 | B193: FUND | C193: MYR | D193: 689430 | E193: UTCX | F193: PLU | G193: NULL | H193: NULL | I193: NULL | J193: 1
A194: 2017-01-13 | B194: FUND | C194: MYR | D194: 689430 | E194: UTCX | F194: PLU | G194: NULL | H194: NULL | I194: NULL | J194: 3
A195: 2017-01-12 | B195: FUND | C195: MYR | D195: 689430 | E195: UTCX | F195: PLU | G195: NULL | H195: NULL | I195: NULL | J195: 1
A196: 2017-01-11 | B196: FUND | C196: MYR | D196: 689430 | E196: UTCX | F196: PLU | G196: NULL | H196: NULL | I196: NULL | J196: 1
A197: 2017-01-10 | B197: FUND | C197: MYR | D197: 689430 | E197: UTCX | F197: PLU | G197: NULL | H197: NULL | I197: NULL | J197: 1
A198: 2017-01-09 | B198: FUND | C198: MYR | D198: 689430 | E198: UTCX | F198: PLU | G198: NULL | H198: NULL | I198: NULL | J198: 1
A199: 2017-01-06 | B199: FUND | C199: MYR | D199: 689430 | E199: UTCX | F199: PLU | G199: NULL | H199: NULL | I199: NULL | J199: 3
A200: 2017-01-05 | B200: FUND | C200: MYR | D200: 689430 | E200: UTCX | F200: PLU | G200: NULL | H200: NULL | I200: NULL | J200: 1
... 198 more rows
